Workbook

Sheet Input & Results
A1: SIM: HOOKE'S LAW ORBITS
A2: v4 — RK2 integration; plots (x,y),ℓ, ω, E, rCM; animation; massless spring; circ orb RPM calc; masses have size | K2: REFERENCE LIST
L3: k | M3: length L | N3: L
A4: Physical Setup | F4: Rotation Parameters | K4: Spring | L4: N/m | M4: m | N4: m
A5: mass A | B5: 0.991 | C5: kg | F5: ωo | G5: 51 | H5: RPM (pos=CCW) | K5: 1 | L5: 10.35192725 | M5: 0.187325
A6: CM-hook distance for mass A | B6: 0.048 | C6: m | F6: initial rotation axis | G6: 0.08 | H6: m (from mass A) | K6: 2 | L6: 183.14064 | M6: 0.1508125
A7: mass B | B7: 0.494 | C7: kg | F7: initial mass separation | G7: 0.24 | H7: m | K7: 3 | L7: 24.24922194 | M7: 0.0714375 | N7: 0.094
A8: CM-hook distance for mass B | B8: 0.0405 | C8: m | F8: ωo | G8: =RPMo*PI()/30 -> 5.340707511 | H8: rad/sec | K8: 4 | L8: 183.14064 | M8: 0.10795 | N8: 0.116
A9: unstretched length of spring | B9: 0.094 | C9: m | F9: initially CM is | G9: =initaxis+Calcs!AE7 -> 0.07983838384 | H9: m (from mass A) | K9: 5 | L9: 40.24011318 | M9: 0.1000125
A10: spring constant | B10: 24.2 | C10: N/m | F10: ωc | G10: =SQRT(k*(Li-L-CA-CB)*(1+MA/MB)/(MA*Li)) -> 4.193714967 | H10: rad/sec = | I10: =G10*30/PI() -> 40.04702802 | J10: RPM | K10: 6 | L10: 9.96134978 | M10: 0.14605
A11: timestep | B11: =1/300 -> 0.003333333333 | C11: sec | F11: Tosc,0 | G11: =2*PI()*SQRT((MB*MA)/(MA+MB)/k) -> 0.7333465619 | H11: sec | K11: 7 | L11: 139.7562 | M11: 0.0936625
A12: reduced mass | B12: =(MA*MB)/(MA+MB) -> 0.3296659933 | C12: kg | F12: Trot,0 | G12: =60/RPMo -> 1.176470588 | H12: sec | K12: 8 | L12: 41.58601182 | M12: 0.0635
K13: 9 | L13: 6.076356522 | M13: 0.117475 | N13: 0.1
F14: xi | G14: yi | H14: vix | I14: viy | K14: 10 | L14: 27.56596675 | M14: 0.0587375 | N14: 0.065
A15: non-conservation of E | B15: =(MAX(Calcs!AO7:AO1807)-MIN(Calcs!AO7:AO1807))/AVERAGE(Calcs!AO7:AO1807) -> 6.847388652e-05 | F15: (m) | G15: (m) | H15: (m/sec) | I15: (m/sec)
A16: non-conservation of ang mom | B16: =(MAX(Calcs!AT9:AT1807)-MIN(Calcs!AT9:AT1807))/AVERAGE(Calcs!AT9:AT1807) -> 0.01620651167 | F16: =-initaxis -> -0.08 | G16: 0 | H16: 0 | I16: =-initaxis*radperseci -> -0.4272566009 | K16: Mass | L16: kg | M16: C
F17: =Li-initaxis -> 0.16 | G17: 0 | H17: 0 | I17: =(Li-initaxis)*radperseci -> 0.8545132018 | K17: A | L17: 0.991 | M17: 0.048
K18: B | L18: 0.494 | M18: 0.0405
K19: C | L19: 0.196 | M19: 0.031
K20: D | L20: 0.094 | M20: 0.0335

Sheet Plots
A18: half-timestep
A19: 301 | B19: =INDEX(Calcs!B7:B1807,timestephighlight) -> 0.2969174958 | C19: =INDEX(Calcs!C7:C1807,timestephighlight) -> 0.3027288001 | D19: =INDEX(Calcs!D7:D1807,timestephighlight) -> 0.05325442294 | E19: =INDEX(Calcs!E7:E1807,timestephighlight) -> -0.06046803824 | F19: =INDEX(Calcs!F7:F1807,timestephighlight) -> -0.06046803824 | G19: =INDEX(Calcs!G7:G1807,timestephighlight) ->  | H19: =INDEX(Calcs!H7:H1807,timestephighlight) -> 0.0805755373 | I19: =INDEX(Calcs!I7:I1807,timestephighlight) -> 1.442391702 | J19: =INDEX(Calcs!J7:J1807,timestephighlight) -> -0.958777048 | K19: =INDEX(Calcs!K7:K1807,timestephighlight) -> 1.077608646 | L19: =INDEX(Calcs!L7:L1807,timestephighlight) -> 0.08909324159 | N19: =INDEX(Calcs!N7:N1807,timestephighlight) -> -0.5956381343 | O19: =INDEX(Calcs!O7:O1807,timestephighlight) -> -0.6098907098 | P19: =INDEX(Calcs!P7:P1807,timestephighlight) -> -0.1073180833 | Q19: =INDEX(Calcs!Q7:Q1807,timestephighlight) -> 0.1200059534 | R19: =INDEX(Calcs!R7:R1807,timestephighlight) -> 0.1200059534 | S19: =INDEX(Calcs!S7:S1807,timestephighlight) ->  | T19: =INDEX(Calcs!T7:T1807,timestephighlight) -> 0.160992546 | U19: =INDEX(Calcs!U7:U1807,timestephighlight) -> 2.893542867 | V19: =INDEX(Calcs!V7:V1807,timestephighlight) -> 1.923376629 | W19: =INDEX(Calcs!W7:W1807,timestephighlight) -> -2.161761474 | X19: =INDEX(Calcs!X7:X1807,timestephighlight) -> 0.1795076119 | Z19: =INDEX(Calcs!Z7:Z1807,timestephighlight) -> 0.2415665362 | AA19: =INDEX(Calcs!AA7:AA1807,timestephighlight) -> -0.1605725062 | AB19: =INDEX(Calcs!AB7:AB1807,timestephighlight) -> 0.1804739917 | AC19: =INDEX(Calcs!AC7:AC1807,timestephighlight) -> 0.05906653622 | AE19: =INDEX(Calcs!AE7:AE1807,timestephighlight) -> -0.0001616161616 | AF19: =INDEX(Calcs!AF7:AF1807,timestephighlight) -> -0.0004315723241 | AG19: =INDEX(Calcs!AG7:AG1807,timestephighlight) -> -0.0534160391 | AH19: =INDEX(Calcs!AH7:AH1807,timestephighlight) -> 0.06003646592 | AI19: =INDEX(Calcs!AI7:AI1807,timestephighlight) -> 0.08035950767 | AJ19: =INDEX(Calcs!AJ7:AJ1807,timestephighlight) -> 0.1071564671 | AK19: =INDEX(Calcs!AK7:AK1807,timestephighlight) -> -0.1204375258 | AL19: =INDEX(Calcs!AL7:AL1807,timestephighlight) -> 0.1612070285 | AN19: =INDEX(Calcs!AN7:AN1807,timestephighlight) -> 0.04221515398 | AO19: =INDEX(Calcs!AO7:AO1807,timestephighlight) -> 0.3108160074 | AQ19: =INDEX(Calcs!AQ7:AQ1807,timestephighlight) -> 0.01923745841 | AR19: =INDEX(Calcs!AR7:AR1807,timestephighlight) -> 131.6603396 | AS19: =INDEX(Calcs!AS7:AS1807,timestephighlight) -> 301.6746595 | AT19: =INDEX(Calcs!AT7:AT1807,timestephighlight) -> 5.803453715
Y20: 0 | Z20: =L -> 0.094 | AM20: highlighttime | AO20: E | AS20: ω
A21: 51 | B21: RPMo | C21: time (sec) | Y21: =Calcs!A1807 -> 3 | Z21: =L -> 0.094 | AI21: 0 | AM21: =C22 -> 0.5 | AN21: bottom | AO21: 0 | AS21: 0
C22: =INDEX(Calcs!A7:A1807,timestephighlight) -> 0.5 | AI22: =1.1*MAX(Calcs!AI7:AI1807,Calcs!AL7:AL1807) -> 0.2028592565 | AM22: =C22 -> 0.5 | AN22: top | AO22: =MAX(Calcs!AO7:AO1807)*1.1 -> 0.3419173612 | AS22: =1.1*MAX(Calcs!AS9:AS1807) -> 336.6073072

Sheet Calcs
A2: even rows are the half-steps in Runge-Kutta 2nd-order integration
A3: when changing formulas in rows 8 & 9, copy BOTH rows down to maintain alternation of half- and full-timesteps
B4: Mass A | N4: Mass B | Z4: RELATIVE POSITIONS | AE4: CENTER OF MASS | AN4: ENERGY | AQ4: ANGULAR MOMENTUM
A5: t | B5: vx | C5: vy | D5: x | E5: y | F5: y-tension | G5: y-compression | H5: r | I5: a | J5: ax | K5: ay | L5: KE | N5: vx | O5: vy | P5: x | Q5: y | R5: y-tension | S5: y-compression | T5: r | U5: a | V5: ax | W5: ay | X5: KE | Z5: rBA | AA5: xBA | AB5: YBA | AC5: ΔL | AE5: xCM | AF5: yCM | AG5: xCMA | AH5: yCMA | AI5: rCMA | AJ5: xCMB | AK5: yCMB | AL5: rCMB | AN5: PEel | AO5: E | AQ5: ICM | AR5: ϴ | AS5: ω | AT5: ℓ
A6: (sec) | B6: (m/sec) | C6: (m/sec) | D6: (m) | E6: (m) | H6: (m) | I6: (m/sec2) | J6: (m/sec2) | K6: (m/sec2) | L6: (J) | N6: (m/sec) | O6: (m/sec) | P6: (m) | Q6: (m) | T6: (m) | U6: (m/sec2) | V6: (m/sec2) | W6: (m/sec2) | X6: (J) | Z6: (m) | AA6: (m) | AB6: (m) | AC6: (m) | AE6: (m) | AF6: (m) | AG6: (m) | AH6: (m) | AI6: (m) | AJ6: (m) | AK6: (m) | AL6: (m) | AN6: (J) | AO6: (J) | AQ6: (kg·m2) | AR6: (deg) | AS6: (deg/sec) | AT6: (kg·m2·deg/sec)
A7: 0 | B7: ='Input & Results'!H16 -> 0 | C7: ='Input & Results'!I16 -> -0.4272566009 | D7: ='Input & Results'!F16 -> -0.08 | E7: ='Input & Results'!G16 -> 0 | F7: =IF($AC7<0,NA(),$E7) -> 0 | G7: =IF($AC7>=0,NA(),$E7) ->  | H7: =SQRT(D7*D7+E7*E7) -> 0.08 | I7: =SQRT(J7*J7+K7*K7) -> 1.404137235 | J7: =k*$AC7*$AA7/$Z7/MA -> 1.404137235 | K7: =k*$AC7*$AB7/$Z7/MA -> 0 | L7: =0.5*MA*(B7*B7+C7*C7) -> 0.09045263459 | N7: ='Input & Results'!H17 -> 0 | O7: ='Input & Results'!I17 -> 0.8545132018 | P7: ='Input & Results'!F17 -> 0.16 | Q7: ='Input & Results'!G17 -> 0 | R7: =IF($AC7<0,NA(),$Q7) -> 0 | S7: =IF($AC7>=0,NA(),$Q7) ->  | T7: =SQRT(P7*P7+Q7*Q7) -> 0.16 | U7: =SQRT(V7*V7+W7*W7) -> 2.816801619 | V7: =-k*$AC7*$AA7/$Z7/MB -> -2.816801619 | W7: =-k*$AC7*$AB7/$Z7/MB -> 0 | X7: =0.5*MB*(N7*N7+O7*O7) -> 0.1803576246 | Z7: =SQRT(AA7*AA7+AB7*AB7) -> 0.24 | AA7: =P7-D7 -> 0.24 | AB7: =Q7-E7 -> 0 | AC7: =Z7-L-CA-CB -> 0.0575 | AE7: =(MA*D7+MB*P7)/(MA+MB) -> -0.0001616161616 | AF7: =(MA*E7+MB*Q7)/(MA+MB) -> 0 | AG7: =AE7-D7 -> 0.07983838384 | AH7: =AF7-E7 -> 0 | AI7: =SQRT(AG7*AG7+AH7*AH7) -> 0.07983838384 | AJ7: =AE7-P7 -> -0.1601616162 | AK7: =AF7-Q7 -> 0 | AL7: =SQRT(AJ7*AJ7+AK7*AK7) -> 0.1601616162 | AN7: =0.5*k*(Z7-L-CA-CB)^2 -> 0.040005625 | AO7: =AN7+L7+X7 -> 0.3108158842 | AQ7: =MA*(AG7*AG7+AH7*AH7)+MB*(AJ7*AJ7+AK7*AK7) -> 0.01898876121 | AR7: =ATAN2(AA7,AB7)*180/PI() -> 0
A8: =A7+dt/2 -> 0.001666666667 | B8: =B7+J7*dt/2 -> 0.002340228725 | C8: =C7+K7*dt/2 -> -0.4272566009 | D8: =D7+B8*dt/2 -> -0.07999609962 | E8: =E7+C8*dt/2 -> -0.0007120943348 | F8: =IF($AC8<0,NA(),$E8) -> -0.0007120943348 | G8: =IF($AC8>=0,NA(),$E8) ->  | H8: =SQRT(D8*D8+E8*E8) -> 0.07999926895 | I8: =SQRT(J8*J8+K8*K8) -> 1.4040831 | J8: 1.404027475 | K8: 0.01249811071 | L8: 0.09045534828 | N8: =N7+V7*dt/2 -> -0.004694669366 | O8: =O7+W7*dt/2 -> 0.8545132018 | P8: =P7+N8*dt/2 -> 0.1599921756 | Q8: =Q7+O8*dt/2 -> 0.00142418867 | R8: =IF($AC8<0,NA(),$Q8) -> 0.00142418867 | S8: =IF($AC8>=0,NA(),$Q8) ->  | T8: =SQRT(P8*P8+Q8*Q8) -> 0.1599985142 | U8: =SQRT(V8*V8+W8*W8) -> 2.816693021 | V8: -2.816581432 | W8: -0.02507212088 | X8: 0.1803630684 | Z8: =SQRT(AA8*AA8+AB8*AB8) -> 0.2399977832 | AA8: 0.2399882752 | AB8: 0.002136283004 | AC8: 0.05749778316 | AE8: -0.0001616161616 | AF8: -1.438574414e-06 | AG8: =AE8-D8 -> 0.07983448346 | AH8: =AF8-E8 -> 0.0007106557604 | AI8: =SQRT(AG8*AG8+AH8*AH8) -> 0.07983764639 | AJ8: =AE8-P8 -> -0.1601537917 | AK8: =AF8-Q8 -> -0.001425627244 | AL8: =SQRT(AJ8*AJ8+AK8*AK8) -> 0.1601601368 | AN8: 0.04000254033 | AO8: =AN8+L8+X8 -> 0.310820957 | AQ8: 0.01898841042 | AR8: =ATAN2(AA8,AB8)*180/PI() -> 0.5100114459
A9: 0.003333333333 | B9: =B7+J8*dt -> 0.004680091583 | C9: =C7+K8*dt -> -0.4272149405 | D9: =D7+B8*dt -> -0.07999219924 | E9: =E7+C8*dt -> -0.00142418867 | F9: -0.00142418867 | H9: =SQRT(D9*D9+E9*E9) -> 0.08000487643 | I9: =SQRT(J9*J9+K9*K9) -> 1.404493322 | J9: 1.404270773 | K9: 0.0250017744 | L9: 0.09044584904 | N9: =N7+V8*dt -> -0.009388604775 | O9: =O7+W8*dt -> 0.854429628 | P9: =P7+N8*dt -> 0.1599843511 | Q9: =Q7+O8*dt -> 0.002848377339 | R9: 0.002848377339 | T9: =SQRT(P9*P9+Q9*Q9) -> 0.1600097055 | U9: =SQRT(V9*V9+W9*W9) -> 2.817515956 | V9: -2.817069506 | W9: -0.05015538143 | X9: 0.1803441194 | Z9: =SQRT(AA9*AA9+AB9*AB9) -> 0.2400145819 | AA9: 0.2399765503 | AB9: 0.004272566009 | AC9: 0.05751458192 | AE9: -0.0001616161616 | AF9: -2.877148828e-06 | AG9: 0.07983058308 | AH9: 0.001421311521 | AI9: 0.07984323466 | AJ9: -0.1601459673 | AK9: -0.002851254488 | AL9: 0.1601713473 | AN9: 0.04002591831 | AO9: 0.3108158867 | AQ9: 0.01899106872 | AR9: 1.019991906 | AS9: =IF(ABS((AR9-AR7)/dt)<1000,(AR9-AR7)/dt,AS8) -> 305.9975717 | AT9: =AQ9*AS9 -> 5.811220912
A10: 0.005 | B10: =B9+J9*dt/2 -> 0.007020542871 | C10: =C9+K9*dt/2 -> -0.4271732709 | D10: =D9+B10*dt/2 -> -0.07998049833 | E10: =E9+C10*dt/2 -> -0.002136144121 | F10: -0.002136144121 | H10: 0.08000901965 | I10: 1.404795117 | J10: 1.404294341 | K10: 0.03750634528 | L10: =0.5*MA*(B10*B10+C10*C10) -> 0.09044177738 | N10: =N9+V9*dt/2 -> -0.01408372062 | O10: =O9+W9*dt/2 -> 0.8543460357 | P10: =P9+N10*dt/2 -> 0.1599608782 | Q10: =Q9+O10*dt/2 -> 0.004272287399 | R10: 0.004272287399 | T10: 0.1600179209 | U10: 2.818121379 | V10: -2.817116784 | W10: -0.07524046188 | X10: =0.5*MB*(N10*N10+O10*O10) -> 0.1803360585 | Z10: 0.2400269405 | AA10: =P10-D10 -> 0.2399413766 | AB10: =Q10-E10 -> 0.00640843152 | AC10: 0.05752694054 | AE10: =(MA*D10+MB*P10)/(MA+MB) -> -0.0001616161616 | AF10: =(MA*E10+MB*Q10)/(MA+MB) -> -4.315723241e-06 | AG10: 0.07981888217 | AH10: 0.002131828398 | AI10: 0.07984734588 | AJ10: -0.1601224944 | AK10: -0.004276603122 | AL10: 0.1601795947 | AN10: 0.04004312154 | AO10: =AN10+L10+X10 -> 0.3108209574 | AQ10: 0.01899302451 | AR10: 1.529910412 | AS10: 305.9696898 | AT10: =AQ10*AS10 -> 5.81128982
A11: 0.006666666667 | B11: =B9+J10*dt -> 0.009361072718 | C11: =C9+K10*dt -> -0.4270899194 | D11: =D9+B10*dt -> -0.07996879743 | E11: =E9+C10*dt -> -0.002848099573 | F11: -0.002848099573 | H11: =SQRT(D11*D11+E11*E11) -> 0.08001949908 | I11: =SQRT(J11*J11+K11*K11) -> 1.405561099 | J11: 1.404670512 | K11: 0.05002756053 | L11: 0.09042549402 | N11: =N9+V10*dt -> -0.01877899406 | O11: =O9+W10*dt -> 0.8541788265 | P11: =P9+N10*dt -> 0.1599374054 | Q11: =Q9+O10*dt -> 0.005696197458 | R11: 0.005696197458 | T11: =SQRT(P11*P11+Q11*Q11) -> 0.1600388087 | U11: =SQRT(V11*V11+W11*W11) -> 2.819657994 | V11: -2.817871411 | W11: -0.1003589322 | X11: 0.1803036072 | Z11: =SQRT(AA11*AA11+AB11*AB11) -> 0.2400583078 | AA11: 0.2399062028 | AB11: 0.008544297031 | AC11: 0.05755830782 | AE11: -0.0001616161616 | AF11: -5.754297655e-06 | AG11: 0.07980718127 | AH11: 0.002842345275 | AI11: 0.07985778051 | AJ11: -0.1600990215 | AK11: -0.005701951756 | AL11: 0.1602005273 | AN11: 0.04008680146 | AO11: 0.3108159027 | AQ11: 0.01899798894 | AR11: =ATAN2(AA11,AB11)*180/PI() -> 2.039736036 | AS11: 305.9232391 | AT11: 5.811926314
A12: 0.008333333333 | B12: =B11+J11*dt/2 -> 0.01170219024 | C12: =C11+K11*dt/2 -> -0.4270065401 | D12: =D11+B12*dt/2 -> -0.07994929378 | E12: =E11+C12*dt/2 -> -0.003559777139 | F12: -0.003559777139 | H12: 0.08002850485 | I12: 1.406217965 | J12: 1.404826108 | K12: 0.06255055014 | L12: 0.0904146414 | N12: =N11+V11*dt/2 -> -0.02347544641 | O12: =O11+W11*dt/2 -> 0.8540115616 | P12: =P11+N12*dt/2 -> 0.1598982796 | Q12: =Q11+O12*dt/2 -> 0.007119550061 | R12: 0.007119550061 | T12: 0.1600567019 | U12: 2.820975715 | V12: -2.818183548 | W12: -0.1254809619 | X12: 0.1802820505 | Z12: 0.2400852067 | AA12: 0.2398475734 | AB12: 0.0106793272 | AC12: 0.05758520674 | AE12: -0.0001616161616 | AF12: -7.192872069e-06 | AG12: 0.07978767762 | AH12: 0.003552584267 | AI12: 0.07986672871 | AJ12: -0.1600598958 | AK12: -0.007126742933 | AL12: 0.160218478 | AN12: 0.04012427803 | AO12: 0.3108209699 | AQ12: 0.01900224669 | AR12: 2.549437935 | AS12: 305.858257 | AT12: 5.811994052
A13: 0.01 | B13: =B11+J12*dt -> 0.01404382641 | C13: =C11+K12*dt -> -0.4268814175 | D13: =D11+B12*dt -> -0.07992979013 | E13: =E11+C12*dt -> -0.004271454706 | F13: -0.004271454706 | H13: 0.08004384221 | I13: 1.40733868 | J13: 1.4053334 | K13: 0.07510122907 | L13: 0.09039157447 | N13: =N11+V12*dt -> -0.02817293922 | O13: =O11+W12*dt -> 0.8537605566 | P13: =P11+N12*dt -> 0.1598591539 | Q13: =Q11+O12*dt -> 0.008542902664 | R13: 0.008542902664 | T13: 0.1600872583 | U13: 2.823223951 | V13: -2.819201214 | W13: -0.1506585385 | X13: 0.1802360982 | Z13: 0.2401311005 | AA13: 0.239788944 | AB13: 0.01281435737 | AC13: 0.05763110049 | AE13: -0.0001616161616 | AF13: -8.631446483e-06 | AG13: 0.07976817397 | AH13: 0.00426282326 | AI13: 0.07988199572 | AJ13: -0.16002077 | AK13: -0.00855153411 | AL13: 0.1602491048 | AN13: 0.0401882593 | AO13: 0.310815932 | AQ13: 0.01900951218 | AR13: 3.058985321 | AS13: 305.7747855 | AT13: 5.812629509
A14: 0.01166666667 | B14: =B13+J13*dt/2 -> 0.01638604874 | C14: =C13+K13*dt/2 -> -0.4267562488 | D14: =D13+B14*dt/2 -> -0.07990248005 | E14: =E13+C14*dt/2 -> -0.004982715121 | F14: -0.004982715121 | H14: 0.08005769025 | I14: 1.408349132 | J14: 1.405618715 | K14: 0.08765446818 | L14: 0.09037394696 | N14: =N13+V13*dt/2 -> -0.03287160791 | O14: =O13+W13*dt/2 -> 0.8535094591 | P14: =P13+N14*dt/2 -> 0.1598043679 | Q14: =Q13+O14*dt/2 -> 0.009965418429 | R14: 0.009965418429 | T14: 0.1601147887 | U14: 2.825250992 | V14: -2.819773576 | W14: -0.1758412509 | X14: 0.180201058 | Z14: 0.2401724789 | AA14: 0.2397068479 | AB14: 0.01494813355 | AC14: 0.05767247892 | AE14: -0.0001616161616 | AF14: -1.00700209e-05 | AG14: 0.07974086388 | AH14: 0.0049726451 | AI14: 0.07989576067 | AJ14: -0.159965984 | AK14: -0.00997548845 | AL14: 0.1602767183 | AN14: 0.04024598938 | AO14: 0.3108209944 | AQ14: 0.01901606403 | AR14: 3.568347564 | AS14: 305.6728885 | AT14: 5.81269522
A15: 0.01333333333 | B15: =B13+J14*dt -> 0.01872922213 | C15: =C13+K14*dt -> -0.426589236 | D15: =D13+B14*dt -> -0.07987516996 | E15: =E13+C14*dt -> -0.005693975536 | F15: -0.005693975536 | H15: 0.08007786295 | I15: 1.409822928 | J15: 1.406254371 | K15: 0.1002463645 | L15: 0.09034409879 | N15: =N13+V14*dt -> -0.03757218447 | O15: =O13+W14*dt -> 0.8531744191 | P15: =P13+N14*dt -> 0.1597495819 | Q15: =Q13+O14*dt -> 0.01138793419 | R15: 0.01138793419 | T15: 0.1601549685 | U15: 2.828207534 | V15: -2.821048748 | W15: -0.2011015126 | X15: 0.1801416098 | Z15: 0.2402328315 | AA15: 0.2396247518 | AB15: 0.01708190973 | AC15: 0.05773283149 | AE15: -0.0001616161616 | AF15: -1.150859531e-05 | AG15: 0.0797135538 | AH15: 0.00568246694 | AI15: 0.07991583754 | AJ15: -0.159911198 | AK15: -0.01139944279 | AL15: 0.1603169939 | AN15: 0.04033026596 | AO15: 0.3108159746 | AQ15: 0.01902562226 | AR15: 4.077494102 | AS15: 305.5526343 | AT15: 5.813329002
A16: 0.015 | B16: =B15+J15*dt/2 -> 0.02107297941 | C16: =C15+K15*dt/2 -> -0.4264221587 | D16: =D15+B16*dt/2 -> -0.07984004833 | E16: =E15+C16*dt/2 -> -0.006404679134 | F16: -0.006404679134 | H16: 0.08009652447 | I16: 1.41118486 | J16: 1.406666097 | K16: 0.1128414855 | L16: 0.09031970427 | N16: =N15+V15*dt/2 -> -0.04227393238 | O16: =O15+W15*dt/2 -> 0.8528392499 | P16: =P15+N16*dt/2 -> 0.1596791253 | Q16: =Q15+O16*dt/2 -> 0.01280933294 | R16: 0.01280933294 | T16: 0.1601920787 | U16: 2.830939668 | V16: -2.8218747 | W16: -0.2263682433 | X16: 0.1800931023 | Z16: 0.2402886031 | AA16: 0.2395191736 | AB16: 0.01921401208 | AC16: 0.05778860314 | AE16: -0.0001616161616 | AF16: -1.294716972e-05 | AG16: 0.07967843217 | AH16: 0.006391731964 | AI16: 0.07993439054 | AJ16: -0.1598407415 | AK16: -0.01282228011 | AL16: 0.1603542126 | AN16: 0.04040822409 | AO16: 0.3108210306 | AQ16: 0.01903445714 | AR16: 4.586394606 | AS16: 305.4141127 | AT16: 5.813391837
A17: 0.01666666667 | B17: =B15+J16*dt -> 0.02341810912 | C17: =C15+K16*dt -> -0.4262130977 | D17: =D15+B16*dt -> -0.0798049267 | E17: =E15+C16*dt -> -0.007115382731 | F17: -0.007115382731 | H17: 0.08012150147 | I17: 1.413009464 | J17: 1.407426366 | K17: 0.1254861246 | L17: 0.09028307918 | N17: =N15+V16*dt -> -0.04697843347 | O17: =O15+W16*dt -> 0.8524198583 | P17: =P15+N16*dt -> 0.1596086687 | Q17: =Q15+O16*dt -> 0.01423073169 | R17: 0.01423073169 | T17: 0.16024182 | U17: 2.834599956 | V17: -2.823399856 | W17: -0.2517343106 | X17: 0.1800201673 | Z17: 0.2403633214 | AA17: 0.2394135954 | AB17: 0.02134611443 | AC17: 0.05786332142 | AE17: -0.0001616161616 | AF17: -1.438574414e-05 | AG17: 0.07964331054 | AH17: 0.007100996987 | AI17: 0.07995924632 | AJ17: -0.1597702849 | AK17: -0.01424511744 | AL17: 0.1604040751 | AN17: 0.04051278399 | AO17: 0.3108160304 | AQ17: 0.01904629659 | AR17: 5.095018827 | AS17: 305.2574176 | AT17: 5.814023313
A18: 0.01833333333 | B18: =B17+J17*dt/2 -> 0.02576381973 | C18: =C17+K17*dt/2 -> -0.4260039541 | D18: =D17+B18*dt/2 -> -0.079761987 | E18: =E17+C18*dt/2 -> -0.007825389322 | F18: -0.007825389322 | H18: 0.08014493926 | I18: 1.414720149 | J18: 1.407960214 | K18: 0.1381344923 | L18: 0.09025192753 | N18: =N17+V17*dt/2 -> -0.0516840999 | O18: =O17+W17*dt/2 -> 0.8520003011 | P18: =P17+N18*dt/2 -> 0.1595225286 | Q18: =Q17+O18*dt/2 -> 0.0156507322 | R18: 0.0156507322 | T18: 0.1602884355 | U18: 2.838031717 | V18: -2.824470793 | W18: -0.277107858 | X18: 0.1799582125 | Z18: 0.2404333747 | AA18: 0.2392845156 | AB18: 0.02347612152 | AC18: 0.05793337472 | AE18: -0.0001616161616 | AF18: -1.582431855e-05 | AG18: 0.07960037084 | AH18: 0.007809565003 | AI18: 0.07998255024 | AJ18: -0.1596841447 | AK18: -0.01566655651 | AL18: 0.1604508245 | AN18: 0.04061093846 | AO18: 0.3108210785 | AQ18: 0.0190574002 | AR18: 5.603336821 | AS18: 305.0826645 | AT18: 5.814082432
A19: 0.02 | B19: =B17+J18*dt -> 0.02811130983 | C19: =C17+K18*dt -> -0.4257526494 | D19: =D17+B18*dt -> -0.0797190473 | E19: =E17+C18*dt -> -0.008535395912 | F19: -0.008535395912 | H19: 0.08017468108 | I19: 1.416892673 | J19: 1.408840376 | K19: 0.1508431023 | L19: 0.09020853206 | N19: =N17+V18*dt -> -0.05639333611 | O19: =O17+W18*dt -> 0.8514961655 | P19: =P17+N18*dt -> 0.1594363884 | Q19: =Q17+O18*dt -> 0.0170707327 | R19: 0.0170707327 | T19: 0.1603476594 | U19: 2.842389957 | V19: -2.826236463 | W19: -0.3026022558 | X19: 0.1798718043 | Z19: 0.2405223404 | AA19: 0.2391554357 | AB19: 0.02560612861 | AC19: 0.05802234044 | AE19: -0.0001616161616 | AF19: -1.726289297e-05 | AG19: 0.07955743114 | AH19: 0.008518133019 | AI19: 0.08001214558 | AJ19: -0.1595980046 | AK19: -0.01708799559 | AL19: 0.1605101949 | AN19: 0.04073576309 | AO19: 0.3108160994 | AQ19: 0.01907150614 | AR19: 6.111318736 | AS19: 304.8899725 | AT19: 5.814710983
A20: 0.02166666667 | B20: =B19+J19*dt/2 -> 0.03045937712 | C20: =C19+K19*dt/2 -> -0.4255012442 | D20: =D19+B20*dt/2 -> -0.07966828167 | E20: =E19+C20*dt/2 -> -0.009244564652 | F20: -0.009244564652 | H20: 0.08020284958 | I20: 1.418948778 | J20: 1.409491097 | K20: 0.1635557464 | L20: 0.09017063537 | N20: =N19+V19*dt/2 -> -0.06110373022 | O20: =O19+W19*dt/2 -> 0.8509918284 | P20: =P19+N20*dt/2 -> 0.1593345489 | Q20: =Q19+O20*dt/2 -> 0.01848905241 | R20: 0.01848905241 | T20: 0.1604036892 | U20: 2.846514654 | V20: -2.827541857 | W20: -0.3281047464 | X20: 0.1797964272 | Z20: 0.2406065388 | AA20: 0.2390028305 | AB20: 0.02773361706 | AC20: 0.05810653881 | AE20: -0.0001616161616 | AF20: -1.870146738e-05 | AG20: 0.07950666551 | AH20: 0.009225863185 | AI20: 0.080040155 | AJ20: -0.159496165 | AK20: -0.01850775388 | AL20: 0.1605663838 | AN20: 0.04085407522 | AO20: 0.3108211378 | AQ20: 0.019084861 | AR20: 6.618935093 | AS20: 304.6794818 | AT20: 5.814765559
A21: 0.02333333333 | B21: =B19+J20*dt -> 0.03280961349 | C21: =C19+K20*dt -> -0.4252074636 | D21: =D19+B20*dt -> -0.07961751604 | E21: =E19+C20*dt -> -0.009953733393 | F21: -0.009953733393 | H21: 0.08023730846 | I21: 1.421465725 | J21: 1.410485482 | K21: 0.1763391923 | L21: 0.09012047854 | N21: =N19+V20*dt -> -0.06581847564 | O21: =O19+W20*dt -> 0.850402483 | P21: =P19+N20*dt -> 0.1592327093 | Q21: =Q19+O20*dt -> 0.01990737213 | R21: 0.01990737213 | T21: 0.1604723003 | U21: 2.851563833 | V21: -2.829536666 | W21: -0.3537492704 | X21: 0.1796965643 | Z21: 0.2407096088 | AA21: 0.2388502254 | AB21: 0.02986110552 | AC21: 0.05820960881 | AE21: -0.0001616161616 | AF21: -2.014004179e-05 | AG21: 0.07945589988 | AH21: 0.009933593351 | AI21: 0.08007444226 | AJ21: -0.1593943255 | AK21: -0.01992751217 | AL21: 0.1606351666 | AN21: 0.04099913855 | AO21: 0.3108161814 | AQ21: 0.01910121548 | AR21: 7.126156523 | AS21: 304.4513361 | AT21: 5.815390576
A22: 0.025 | B22: =B21+J21*dt/2 -> 0.03516042262 | C22: =C21+K21*dt/2 -> -0.4249135649 | D22: =D21+B22*dt/2 -> -0.07955891534 | E22: =E21+C22*dt/2 -> -0.01066192267 | F22: -0.01066192267 | H22: 0.08027015389 | I22: 1.423863312 | J22: 1.411246898 | K22: 0.1891267423 | L22: 0.09007585141 | N22: =N21+V21*dt/2 -> -0.07053437008 | O22: =O21+W21*dt/2 -> 0.8498129008 | P22: =P21+N22*dt/2 -> 0.159115152 | Q22: =Q21+O22*dt/2 -> 0.02132372696 | R22: 0.02132372696 | T22: 0.1605376371 | U22: 2.856373568 | V22: -2.831064122 | W22: -0.3794020275 | X22: 0.1796077948 | Z22: 0.240807791 | AA22: 0.2386740674 | AB22: 0.03198564963 | AC22: 0.05830779102 | AE22: -0.0001616161616 | AF22: -2.157861621e-05 | AG22: 0.07939729918 | AH22: 0.01064034405 | AI22: 0.08010710354 | AJ22: -0.1592767682 | AK22: -0.02134530558 | AL22: 0.1607006875 | AN22: 0.04113756177 | AO22: 0.3108212079 | AQ22: 0.01911680092 | AR22: 7.632954092 | AS22: 304.2056996 | AT22: 5.815439798
A23: 0.02666666667 | B23: =B21+J22*dt -> 0.03751376981 | C23: =C21+K22*dt -> -0.4245770411 | D23: =D21+B22*dt -> -0.07950031464 | E23: =E21+C22*dt -> -0.01137011194 | F23: -0.01137011194 | H23: 0.08030927389 | I23: 1.426720587 | J23: 1.412348918 | K23: 0.2019954613 | L23: 0.09001894511 | N23: =N21+V22*dt -> -0.07525535604 | O23: =O21+W22*dt -> 0.8491378095 | P23: =P21+N22*dt -> 0.1589975947 | Q23: =Q21+O22*dt -> 0.02274008179 | R23: 0.02274008179 | T23: 0.1606155237 | U23: 2.862105469 | V23: -2.833274854 | W23: -0.4052176157 | X23: 0.1794945019 | Z23: 0.2409247976 | AA23: 0.2384979094 | AB23: 0.03411019374 | AC23: 0.05842479759 | AE23: -0.0001616161616 | AF23: -2.301719062e-05 | AG23: 0.07933869847 | AH23: 0.01134709475 | AI23: 0.08014602694 | AJ23: -0.1591592109 | AK23: -0.02276309899 | AL23: 0.1607787706 | AN23: 0.04130282938 | AO23: 0.3108162764 | AQ23: 0.01913538283 | AR23: 8.139298989 | AS23: 303.9427398 | AT23: 5.816060685
A24: 0.02833333333 | B24: =B23+J23*dt/2 -> 0.03986768468 | C24: =C23+K23*dt/2 -> -0.424240382 | D24: =D23+B24*dt/2 -> -0.07943386849 | E24: =E23+C24*dt/2 -> -0.01207717925 | F24: -0.01207717925 | H24: 0.08034673436 | I24: 1.429455127 | J24: 1.41321395 | K24: 0.2148680838 | L24: 0.08996760499 | N24: =N23+V23*dt/2 -> -0.0799774808 | O24: =O23+W23*dt/2 -> 0.8484624468 | P24: =P23+N24*dt/2 -> 0.1588642989 | Q24: =Q23+O24*dt/2 -> 0.02415418587 | R24: 0.02415418587 | T24: 0.1606900438 | U24: 2.867591156 | V24: -2.835010171 | W24: -0.4310410345 | X24: 0.1793923755 | Z24: 0.2410367782 | AA24: 0.2382981674 | AB24: 0.03623136512 | AC24: 0.05853677815 | AE24: -0.0001616161616 | AF24: -2.445576503e-05 | AG24: 0.07927225233 | AH24: 0.01205272348 | AI24: 0.08018327839 | AJ24: -0.1590259151 | AK24: -0.02417864164 | AL24: 0.1608534998 | AN24: 0.0414613082 | AO24: 0.3108212887 | AQ24: 0.01915317501 | AR24: 8.645162905 | AS24: 303.6626438 | AT24: 5.816103762
A25: 0.03 | B25: =B23+J24*dt -> 0.04222448298 | C25: =C23+K24*dt -> -0.4238608141 | D25: =D23+B24*dt -> -0.07936742235 | E25: =E23+C24*dt -> -0.01278424655 | F25: -0.01278424655 | H25: 0.08039045149 | I25: 1.432648046 | J25: 1.414416131 | K25: 0.2278320245 | L25: 0.08990396433 | N25: =N23+V24*dt -> -0.08470538994 | O25: =O23+W24*dt -> 0.8477010061 | P25: =P23+N24*dt -> 0.1587310031 | Q25: =Q23+O24*dt -> 0.02556828995 | R25: 0.02556828995 | T25: 0.160777078 | U25: 2.873996384 | V25: -2.837421834 | W25: -0.4570476442 | X25: 0.1792656837 | Z25: 0.2411675295 | AA25: 0.2380984255 | AB25: 0.0383525365 | AC25: 0.05866752949 | AE25: -0.0001616161616 | AF25: -2.589433945e-05 | AG25: 0.07920580619 | AH25: 0.01275835221 | AI25: 0.08022677412 | AJ25: -0.1588926193 | AK25: -0.02559418429 | AL25: 0.1609407554 | AN25: 0.04164673609 | AO25: 0.3108163841 | AQ25: 0.01917396008 | AR25: 9.150517662 | AS25: 303.365602 | AT25: 5.816719941
A26: 0.03166666667 | B26: =B25+J25*dt/2 -> 0.0445818432 | C26: =C25+K25*dt/2 -> -0.4234810941 | D26: =D25+B26*dt/2 -> -0.07929311928 | E26: =E25+C26*dt/2 -> -0.01349004837 | F26: -0.01349004837 | H26: 0.08043245719 | I26: 1.435714428 | J26: 1.415376835 | K26: 0.2407993637 | L26: 0.0898459319 | N26: =N25+V25*dt/2 -> -0.08943442634 | O26: =O25+W25*dt/2 -> 0.84693926 | P26: =P25+N26*dt/2 -> 0.1585819458 | Q26: =Q25+O26*dt/2 -> 0.02697985538 | R26: 0.02697985538 | T26: 0.1608606419 | U26: 2.88014777 | V26: -2.839349077 | W26: -0.4830610718 | X26: 0.1791502428 | Z26: 0.2412930991 | AA26: 0.237875065 | AB26: 0.04046990376 | AC26: 0.05879309911 | AE26: -0.0001616161616 | AF26: -2.733291386e-05 | AG26: 0.07913150312 | AH26: 0.01346271546 | AI26: 0.0802685461 | AJ26: -0.1587435619 | AK26: -0.0270071883 | AL26: 0.161024553 | AN26: 0.04182520489 | AO26: 0.3108213796 | AQ26: 0.01919393203 | AR26: 9.65533565 | AS26: 303.0518234 | AT26: 5.816756102
A27: 0.03333333333 | B27: =B25+J26*dt -> 0.04694240576 | C27: =C25+K26*dt -> -0.4230581496 | D27: =D25+B26*dt -> -0.07921881621 | E27: =E25+C26*dt -> -0.0141958502 | F27: -0.0141958502 | H27: 0.08048069958 | I27: 1.43923773 | J27: 1.416670858 | K27: 0.2538679277 | L27: 0.08977557566 | N27: =N25+V26*dt -> -0.09416988687 | O27: =O25+W26*dt -> 0.8460908025 | P27: =P25+N26*dt -> 0.1584328884 | Q27: =Q25+O26*dt -> 0.02839142082 | R27: 0.02839142082 | T27: 0.1609566802 | U27: 2.88721577 | V27: -2.841944979 | W27: -0.5092775634 | X27: 0.1790101906 | Z27: 0.2414373798 | AA27: 0.2376517046 | AB27: 0.04258727101 | AC27: 0.05893737977 | AE27: -0.0001616161616 | AF27: -2.877148828e-05 | AG27: 0.07905720005 | AH27: 0.01416707871 | AI27: 0.0803165425 | AJ27: -0.1585945045 | AK27: -0.02842019231 | AL27: 0.1611208373 | AN27: 0.04203073828 | AO27: 0.3108165045 | AQ27: 0.01921689283 | AR27: 10.1595894 | AS27: 302.7215202 | AT27: 5.817367012
A28: 0.035 | B28: =B27+J27*dt/2 -> 0.04930352386 | C28: =C27+K27*dt/2 -> -0.4226350364 | D28: =D27+B28*dt/2 -> -0.07913664367 | E28: =E27+C28*dt/2 -> -0.01490024192 | F28: -0.01490024192 | H28: 0.08052717293 | I28: 1.442630275 | J28: 1.417718468 | K28: 0.2669390496 | L28: 0.08971087527 | N28: =N27+V27*dt/2 -> -0.09890646183 | O28: =O27+W27*dt/2 -> 0.8452420066 | P28: =P27+N28*dt/2 -> 0.1582680443 | Q28: =Q27+O28*dt/2 -> 0.0298001575 | R28: 0.0298001575 | T28: 0.161049133 | U28: 2.894021463 | V28: -2.844046562 | W28: -0.5354991866 | X28: 0.1788814849 | Z28: 0.2415763059 | AA28: 0.237404688 | AB28: 0.04470039942 | AC28: 0.0590763059 | AE28: -0.0001616161616 | AF28: -3.021006269e-05 | AG28: 0.07897502751 | AH28: 0.01487003186 | AI28: 0.08036275765 | AJ28: -0.1584296604 | AK28: -0.02983036756 | AL28: 0.1612135482 | AN28: 0.04222912001 | AO28: 0.3108214801 | AQ28: 0.01923901448 | AR28: 10.66325206 | AS28: 302.3749224 | AT28: 5.817395511
A29: 0.03666666667 | B29: =B27+J28*dt -> 0.05166813399 | C29: =C27+K28*dt -> -0.4221683528 | D29: =D27+B28*dt -> -0.07905447113 | E29: =E27+C28*dt -> -0.01560463365 | F29: -0.01560463365 | H29: 0.08057986099 | I29: 1.446478135 | J29: 1.419095204 | K29: 0.280121037 | L29: 0.08963382636 | N29: =N27+V28*dt -> -0.1036500421 | O29: =O27+W28*dt -> 0.8443058052 | P29: =P27+N28*dt -> 0.1581032002 | Q29: =Q27+O28*dt -> 0.03120889417 | R29: 0.03120889417 | T29: 0.1611540163 | U29: 2.901740549 | V29: -2.846808395 | W29: -0.5619432139 | X29: 0.1787281191 | Z29: 0.2417338773 | AA29: 0.2371576713 | AB29: 0.04681352782 | AC29: 0.05923387733 | AE29: -0.0001616161616 | AF29: -3.16486371e-05 | AG29: 0.07889285497 | AH29: 0.01557298501 | AI29: 0.08041517535 | AJ29: -0.1582648163 | AK29: -0.03124054281 | AL29: 0.161318702 | AN29: 0.0424546919 | AO29: 0.3108166374 | AQ29: 0.01926412049 | AR29: 11.16629694 | AS29: 302.0122625 | AT29: 5.818000613
A30: 0.03833333333 | B30: =B29+J29*dt/2 -> 0.05403329266 | C30: =C29+K29*dt/2 -> -0.4217014844 | D30: =D29+B30*dt/2 -> -0.07896441564 | E30: =E29+C30*dt/2 -> -0.01630746946 | F30: -0.01630746946 | H30: 0.08063071684 | I30: 1.450190609 | J30: 1.420220174 | K30: 0.2933043768 | L30: 0.08956248649 | N30: =N29+V29*dt/2 -> -0.1083947227 | O30: =O29+W29*dt/2 -> 0.8433692332 | P30: =P29+N30*dt/2 -> 0.1579225423 | Q30: =Q29+O30*dt/2 -> 0.03261450956 | R30: 0.03261450956 | T30: 0.1612551878 | U30: 2.909188043 | V30: -2.849065168 | W30: -0.5883899542 | X30: 0.1785862066 | Z30: 0.2418859047 | AA30: 0.236886958 | AB30: 0.04892197902 | AC30: 0.05938590467 | AE30: -0.0001616161616 | AF30: -3.308721152e-05 | AG30: 0.07880279948 | AH30: 0.01627438225 | AI30: 0.08046574876 | AJ30: -0.1580841585 | AK30: -0.03264759677 | AL30: 0.1614201559 | AN30: 0.04267289665 | AO30: 0.3108215898 | AQ30: 0.01928835866 | AR30: 11.66869803 | AS30: 301.6337902 | AT30: 5.81802073
A31: 0.04 | B31: =B29+J30*dt -> 0.05640220124 | C31: =C29+K30*dt -> -0.4211906715 | D31: =D29+B30*dt -> -0.07887436015 | E31: =E29+C30*dt -> -0.01701030526 | F31: -0.01701030526 | H31: 0.08068776348 | I31: 1.454356651 | J31: 1.421669737 | K31: 0.3066079357 | L31: 0.08947877248 | N31: =N29+V30*dt -> -0.113146926 | O31: =O29+W30*dt -> 0.8423445054 | P31: =P29+N30*dt -> 0.1577418844 | Q31: =Q29+O30*dt -> 0.03402012495 | R31: 0.03402012495 | T31: 0.1613687424 | U31: 2.917545427 | V31: -2.851973096 | W31: -0.615077863 | X31: 0.1784195837 | Z31: 0.2420565058 | AA31: 0.2366162446 | AB31: 0.05103043022 | AC31: 0.05955650583 | AE31: -0.0001616161616 | AF31: -3.452578593e-05 | AG31: 0.07871274399 | AH31: 0.01697577948 | AI31: 0.08052250093 | AJ31: -0.1579035006 | AK31: -0.03405465074 | AL31: 0.1615340049 | AN31: 0.04291842637 | AO31: 0.3108167825 | AQ31: 0.01931557626 | AR31: 12.17042946 | AS31: 301.2397573 | AT31: 5.818619505
A32: 0.04166666667 | B32: =B31+J31*dt/2 -> 0.0587716508 | C32: =C31+K31*dt/2 -> -0.4206796583 | D32: =D31+B32*dt/2 -> -0.0787764074 | E32: =E31+C32*dt/2 -> -0.01771143803 | F32: -0.01771143803 | H32: 0.08074290929 | I32: 1.45838228 | J32: 1.422861788 | K32: 0.3199112491 | L32: 0.08940082625 | N32: =N31+V31*dt/2 -> -0.1179002145 | O32: =O31+W31*dt/2 -> 0.8413193756 | P32: =P31+N32*dt/2 -> 0.1575453841 | Q32: =Q31+O32*dt/2 -> 0.03542232391 | R32: 0.03542232391 | T32: 0.1614784477 | U32: 2.925621132 | V32: -2.854364437 | W32: -0.6417652791 | X32: 0.1782645318 | Z32: 0.242221357 | AA32: 0.2363217915 | AB32: 0.05313376194 | AC32: 0.059721357 | AE32: -0.0001616161616 | AF32: -3.596436034e-05 | AG32: 0.07861479124 | AH32: 0.01767547367 | AI32: 0.08057734031 | AJ32: -0.1577070002 | AK32: -0.03545828827 | AL32: 0.1616440167 | AN32: 0.04315634983 | AO32: 0.3108217079 | AQ32: 0.01934189474 | AR32: 12.67146613 | AS32: 300.8304319 | AT32: 5.818630547
A33: 0.04333333333 | B33: =B31+J32*dt -> 0.06114507386 | C33: =C31+K32*dt -> -0.4201243007 | D33: =D31+B32*dt -> -0.07867845465 | E33: =E31+C32*dt -> -0.01841257079 | F33: -0.01841257079 | H33: 0.08080422012 | I33: 1.462859596 | J33: 1.424373578 | K33: 0.333343829 | L33: 0.08931047987 | N33: =N31+V32*dt -> -0.1226614741 | O33: =O31+W32*dt -> 0.8402052878 | P33: =P31+N32*dt -> 0.1573488837 | Q33: =Q31+O32*dt -> 0.03682452287 | R33: 0.03682452287 | T33: 0.1616004848 | U33: 2.934602954 | V33: -2.857397197 | W33: -0.6687120132 | X33: 0.1780847184 | Z33: 0.2424047049 | AA33: 0.2360273384 | AB33: 0.05523709366 | AC33: 0.05990470494 | AE33: -0.0001616161616 | AF33: -3.740293476e-05 | AG33: 0.07851683849 | AH33: 0.01837516786 | AI33: 0.08063833282 | AJ33: -0.1575104999 | AK33: -0.0368619258 | AL33: 0.1617663721 | AN33: 0.04342174145 | AO33: 0.3108169397 | AQ33: 0.01937118727 | AR33: 13.17178307 | AS33: 300.4060835 | AT33: 5.819222501
A34: 0.045 | B34: =B33+J33*dt/2 -> 0.06351902983 | C34: =C33+K33*dt/2 -> -0.4195687276 | D34: =D33+B34*dt/2 -> -0.0785725896 | E34: =E33+C34*dt/2 -> -0.01911185201 | F34: -0.01911185201 | H34: 0.08086355622 | I34: 1.467191083 | J34: 1.425621747 | K34: 0.3467741484 | L34: 0.08922596555 | N34: =N33+V33*dt/2 -> -0.1274238028 | O34: =O33+W33*dt/2 -> 0.8390907678 | P34: =P33+N34*dt/2 -> 0.1571365107 | Q34: =Q33+O34*dt/2 -> 0.03822300748 | R34: 0.03822300748 | T34: 0.1617185249 | U34: 2.943292234 | V34: -2.859901115 | W34: -0.6956542126 | X34: 0.1779166051 | Z34: 0.2425820811 | AA34: 0.2357091003 | AB34: 0.05733485949 | AC34: 0.06008208113 | AE34: -0.0001616161616 | AF34: -3.884150917e-05 | AG34: 0.07841097344 | AH34: 0.0190730105 | AI34: 0.08069733877 | AJ34: -0.1572981269 | AK34: -0.03826184899 | AL34: 0.1618847424 | AN34: 0.04367926332 | AO34: 0.310821834 | AQ34: 0.01939954683 | AR34: 13.67135612 | AS34: 299.9669972 | AT34: 5.819223808
A35: 0.04666666667 | B35: =B33+J34*dt -> 0.06589714635 | C35: =C33+K34*dt -> -0.4189683868 | D35: =D33+B34*dt -> -0.07846672455 | E35: =E33+C34*dt -> -0.01981113322 | F35: -0.01981113322 | H35: 0.08092902978 | I35: 1.471972245 | J35: 1.427184503 | K35: 0.3603424576 | L35: 0.08912902529 | N35: =N33+V34*dt -> -0.1321944778 | O35: =O33+W34*dt -> 0.8378864404 | P35: =P33+N34*dt -> 0.1569241377 | Q35: =Q33+O34*dt -> 0.03962149209 | R35: 0.03962149209 | T35: 0.1618488419 | U35: 2.952883594 | V35: -2.863036118 | W35: -0.7228732297 | X35: 0.1777236795 | Z35: 0.2427778717 | AA35: 0.2353908623 | AB35: 0.05943262531 | AC35: 0.06027787171 | AE35: -0.0001616161616 | AF35: -4.028008359e-05 | AG35: 0.07830510839 | AH35: 0.01977085313 | AI35: 0.08076247045 | AJ35: -0.1570857539 | AK35: -0.03966177218 | AL35: 0.1620154013 | AN35: 0.04396440399 | AO35: 0.3108171088 | AQ35: 0.01943087462 | AR35: 14.17016127 | AS35: 299.5134591 | AT35: 5.819808472
A36: 0.04833333333 | B36: =B35+J35*dt/2 -> 0.06827578719 | C36: =C35+K35*dt/2 -> -0.4183678161 | D36: =D35+B36*dt/2 -> -0.07835293157 | E36: =E35+C36*dt/2 -> -0.02050841291 | F36: -0.02050841291 | H36: 0.08099244956 | I36: 1.476601788 | J36: 1.428477198 | K36: 0.3739060521 | L36: 0.08903798687 | N36: =N35+V35*dt/2 -> -0.1369662047 | O36: =O35+W35*dt/2 -> 0.8366816517 | P36: =P35+N36*dt/2 -> 0.1566958607 | Q36: =Q35+O36*dt/2 -> 0.04101596151 | R36: 0.04101596151 | T36: 0.1619750038 | U36: 2.962170793 | V36: -2.865629358 | W36: -0.7500827886 | X36: 0.1775425941 | Z36: 0.2429674534 | AA36: 0.2350487923 | AB36: 0.06152437443 | AC36: 0.06046745338 | AE36: -0.0001616161616 | AF36: -4.1718658e-05 | AG36: 0.07819131541 | AH36: 0.02046669425 | AI36: 0.08082553668 | AJ36: -0.1568574769 | AK36: -0.04105768017 | AL36: 0.1621419167 | AN36: 0.04424138631 | AO36: 0.3108219673 | AQ36: 0.01946123304 | AR36: 14.66817535 | AS36: 299.0457697 | AT36: 5.819799414
A37: 0.05 | B37: =B35+J36*dt -> 0.07065873701 | C37: =C35+K36*dt -> -0.4177220333 | D37: =D35+B36*dt -> -0.07823913859 | E37: =E35+C36*dt -> -0.0212056926 | F37: -0.0212056926 | H37: 0.08106197757 | I37: 1.481678869 | J37: 1.430079051 | K37: 0.3876160201 | L37: 0.08893449753 | N37: =N35+V36*dt -> -0.1417465757 | O37: =O35+W36*dt -> 0.8353861644 | P37: =P35+N36*dt -> 0.1564675837 | Q37: =Q35+O36*dt -> 0.04241043093 | R37: 0.04241043093 | T37: 0.1621133844 | U37: 2.972355788 | V37: -2.868842793 | W37: -0.7775859836 | X37: 0.1773366475 | Z37: 0.243175362 | AA37: 0.2347067223 | AB37: 0.06361612354 | AC37: 0.06067536196 | AE37: -0.0001616161616 | AF37: -4.315723241e-05 | AG37: 0.07807752243 | AH37: 0.02116253537 | AI37: 0.08089469953 | AJ37: -0.1566291999 | AK37: -0.04245358817 | AL37: 0.1622806624 | AN37: 0.04454614454 | AO37: 0.3108172895 | AQ37: 0.01949455346 | AR37: 15.16537537 | AS37: 298.5642301 | AT37: 5.820376345
A38: 0.05166666667 | B38: =B37+J37*dt/2 -> 0.0730422021 | C38: =C37+K37*dt/2 -> -0.4170760066 | D38: =D37+B38*dt/2 -> -0.07811740159 | E38: =E37+C38*dt/2 -> -0.02190081928 | F38: -0.02190081928 | H38: 0.08112936778 | I38: 1.486598176 | J38: 1.431404104 | K38: 0.4013183603 | L38: 0.08883698529 | N38: =N37+V37*dt/2 -> -0.1465279803 | O38: =O37+W37*dt/2 -> 0.8340901878 | P38: =P37+N38*dt/2 -> 0.1562233704 | Q38: =Q37+O38*dt/2 -> 0.04380058125 | R38: 0.04380058125 | T38: 0.1622474418 | U38: 2.982224276 | V38: -2.871500946 | W38: -0.8050738767 | X38: 0.1771426919 | Z38: 0.2433768096 | AA38: 0.234340772 | AB38: 0.06570140053 | AC38: 0.06087680959 | AE38: -0.0001616161616 | AF38: -4.459580683e-05 | AG38: 0.07795578543 | AH38: 0.02185622348 | AI38: 0.08096171309 | AJ38: -0.1563849866 | AK38: -0.04384517705 | AL38: 0.1624150965 | AN38: 0.04484242995 | AO38: 0.3108221072 | AQ38: 0.0195268656 | AR38: 15.6617392 | AS38: 298.0691548 | AT38: 5.820356326
A39: 0.05333333333 | B39: =B37+J38*dt -> 0.07543008403 | C39: =C37+K38*dt -> -0.4163843055 | D39: =D37+B38*dt -> -0.07799566459 | E39: =E37+C38*dt -> -0.02259594596 | F39: -0.02259594596 | H39: 0.08120283535 | I39: 1.491962767 | J39: 1.433032634 | K39: 0.4151751046 | L39: 0.08872699857 | N39: =N37+V38*dt -> -0.1513182455 | O39: =O37+W38*dt -> 0.8327025849 | P39: =P37+N38*dt -> 0.1559791571 | Q39: =Q37+O38*dt -> 0.04519073156 | R39: 0.04519073156 | T39: 0.1623936565 | U39: 2.992986037 | V39: -2.874767896 | W39: -0.8328715155 | X39: 0.1769238291 | Z39: 0.2435964918 | AA39: 0.2339748217 | AB39: 0.06778667752 | AC39: 0.06109649183 | AE39: -0.0001616161616 | AF39: -4.603438124e-05 | AG39: 0.07783404843 | AH39: 0.02254991158 | AI39: 0.08103479257 | AJ39: -0.1561407733 | AK39: -0.04523676594 | AL39: 0.1625616993 | AN39: 0.0451666539 | AO39: 0.3108174816 | AQ39: 0.01956213307 | AR39: 16.1572449 | AS39: 297.5608585 | AT39: 5.820925109
A40: 0.055 | B40: =B39+J39*dt/2 -> 0.07781847175 | C40: =C39+K39*dt/2 -> -0.415692347 | D40: =D39+B40*dt/2 -> -0.07786596713 | E40: =E39+C40*dt/2 -> -0.02328876654 | F40: -0.02328876654 | H40: 0.08127407634 | I40: 1.497163078 | J40: 1.434377359 | K40: 0.4290208322 | L40: 0.08862306965 | N40: =N39+V39*dt/2 -> -0.1561095253 | O40: =O39+W39*dt/2 -> 0.8313144657 | P40: =P39+N40*dt/2 -> 0.1557189746 | Q40: =Q39+O40*dt/2 -> 0.04657625567 | R40: 0.04657625567 | T40: 0.1625353704 | U40: 3.00341824 | V40: -2.877465512 | W40: -0.860647054 | X40: 0.1767171194 | Z40: 0.2438094467 | AA40: 0.2335849417 | AB40: 0.06986502221 | AC40: 0.06130944672 | AE40: -0.0001616161616 | AF40: -4.747295565e-05 | AG40: 0.07770435097 | AH40: 0.02324129358 | AI40: 0.08110563413 | AJ40: -0.1558805907 | AK40: -0.04662372863 | AL40: 0.1627038126 | AN40: 0.04548206392 | AO40: 0.310822253 | AQ40: 0.01959635091 | AR40: 16.65187143 | AS40: 297.039668 | AT40: 5.820893568
A41: 0.05666666667 | B41: =B39+J40*dt -> 0.08021134189 | C41: =C39+K40*dt -> -0.414954236 | D41: =D39+B40*dt -> -0.07773626968 | E41: =E39+C40*dt -> -0.02398158712 | F41: -0.02398158712 | H41: 0.08135136228 | I41: 1.502806309 | J41: 1.43601965 | K41: 0.4430286293 | L41: 0.08850664474 | N41: =N39+V40*dt -> -0.1609097972 | O41: =O39+W40*dt -> 0.8298337613 | P41: =P39+N40*dt -> 0.155458792 | Q41: =Q39+O40*dt -> 0.04796177978 | R41: 0.04796177978 | T41: 0.1626891771 | U41: 3.014738971 | V41: -2.880760067 | W41: -0.8887477159 | X41: 0.1764854605 | Z41: 0.2440405393 | AA41: 0.2331950617 | AB41: 0.0719433669 | AC41: 0.06154053934 | AE41: -0.0001616161616 | AF41: -4.891153007e-05 | AG41: 0.07757465352 | AH41: 0.02393267559 | AI41: 0.08118250938 | AJ41: -0.1556204082 | AK41: -0.04801069131 | AL41: 0.16285803 | AN41: 0.04582557958 | AO41: 0.3108176848 | AQ41: 0.01963351696 | AR41: 17.14559793 | AS41: 296.5059101 | AT41: 5.821453816
A42: 0.05833333333 | B42: =B41+J41*dt/2 -> 0.08260470797 | C42: =C41+K41*dt/2 -> -0.414215855 | D42: =D41+B42*dt/2 -> -0.07759859517 | E42: =E41+C42*dt/2 -> -0.02467194688 | F42: -0.02467194688 | H42: 0.08142632826 | I42: 1.508278417 | J42: 1.437370899 | K42: 0.4570215309 | L42: 0.08839636374 | N42: =N41+V41*dt/2 -> -0.165711064 | O42: =O41+W41*dt/2 -> 0.8283525152 | P42: =P41+N42*dt/2 -> 0.1551826069 | Q42: =Q41+O42*dt/2 -> 0.0493423673 | R42: 0.0493423673 | T42: 0.1628382962 | U42: 3.025716419 | V42: -2.883470772 | W42: -0.9168184963 | X42: 0.1762661274 | Z42: 0.2442646244 | AA42: 0.2327812021 | AB42: 0.07401431418 | AC42: 0.06176462442 | AE42: -0.0001616161616 | AF42: -5.035010448e-05 | AG42: 0.07743697901 | AH42: 0.02462159677 | AI42: 0.08125705351 | AJ42: -0.1553442231 | AK42: -0.04939271741 | AL42: 0.1630075709 | AN42: 0.04615991284 | AO42: 0.310822404 | AQ42: 0.01966958964 | AR42: 17.63840451 | AS42: 295.9599225 | AT42: 5.821410227
A43: 0.06 | B43: =B41+J42*dt -> 0.08500257822 | C43: =C41+K42*dt -> -0.4134308309 | D43: =D41+B42*dt -> -0.07746092065 | E43: =E41+C42*dt -> -0.02536230663 | F43: -0.02536230663 | H43: 0.08150730536 | I43: 1.514190973 | J43: 1.439013598 | K43: 0.4711837932 | L43: 0.08827356793 | N43: =N41+V42*dt -> -0.1705213664 | O43: =O41+W42*dt -> 0.8267776997 | P43: =P41+N42*dt -> 0.1549064218 | Q43: =Q41+O42*dt -> 0.05072295483 | R43: 0.05072295483 | T43: 0.1629994407 | U43: 3.037577437 | V43: -2.886766144 | W43: -0.9452290264 | X43: 0.1760218086 | Z43: 0.244506746 | AA43: 0.2323673425 | AB43: 0.07608526146 | AC43: 0.06200674602 | AE43: -0.0001616161616 | AF43: -5.17886789e-05 | AG43: 0.07729930449 | AH43: 0.02531051795 | AI43: 0.08133759767 | AJ43: -0.155068038 | AK43: -0.05077474351 | AL43: 0.1631691484 | AN43: 0.04652252229 | AO43: 0.3108178988 | AQ43: 0.01970860301 | AR43: 18.13027141 | AS43: 295.4020424 | AT43: 5.821961584
A44: 0.06166666667 | B44: =B43+J43*dt/2 -> 0.08740093422 | C44: =C43+K43*dt/2 -> -0.4126455246 | D44: =D43+B44*dt/2 -> -0.07731525243 | E44: =E43+C44*dt/2 -> -0.02605004917 | F44: -0.02605004917 | H44: 0.08158586471 | I44: 1.519925242 | J44: 1.440357823 | K44: 0.4853267795 | L44: 0.08815700751 | N44: =N43+V43*dt/2 -> -0.1753326433 | O44: =O43+W43*dt/2 -> 0.825202318 | P44: =P43+N44*dt/2 -> 0.1546142007 | Q44: =Q43+O44*dt/2 -> 0.05209829203 | R44: 0.05209829203 | T44: 0.163155702 | U44: 3.049080798 | V44: -2.889462757 | W44: -0.9736008876 | X44: 0.1757899992 | Z44: 0.2447415667 | AA44: 0.2319294532 | AB44: 0.0781483412 | AC44: 0.06224156671 | AE44: -0.0001616161616 | AF44: -5.322725331e-05 | AG44: 0.07715363627 | AH44: 0.02599682192 | AI44: 0.0814157131 | AJ44: -0.1547758169 | AK44: -0.05215151928 | AL44: 0.1633258536 | AN44: 0.04687555278 | AO44: 0.3108225594 | AQ44: 0.0197464769 | AR44: 18.6211799 | AS44: 294.832617 | AT44: 5.821905459
A45: 0.06333333333 | B45: =B43+J44*dt -> 0.08980377096 | C45: =C43+K44*dt -> -0.411813075 | D45: =D43+B44*dt -> -0.07716958421 | E45: =E43+C44*dt -> -0.02673779172 | F45: -0.02673779172 | H45: 0.08167039998 | I45: 1.526097389 | J45: 1.441987198 | K45: 0.4996460354 | L45: 0.08802791674 | N45: =N43+V44*dt -> -0.180152909 | O45: =O43+W44*dt -> 0.8235323634 | P45: =P43+N44*dt -> 0.1543219797 | Q45: =Q43+O44*dt -> 0.05347362922 | R45: 0.05347362922 | T45: 0.1633239187 | U45: 3.061462575 | V45: -2.892731403 | W45: -1.002326359 | X45: 0.1755331742 | Z45: 0.2449943187 | AA45: 0.2314915639 | AB45: 0.08021142094 | AC45: 0.06249431869 | AE45: -0.0001616161616 | AF45: -5.466582772e-05 | AG45: 0.07700796805 | AH45: 0.02668312589 | AI45: 0.08149979356 | AJ45: -0.1544835958 | AK45: -0.05352829505 | AL45: 0.1634945251 | AN45: 0.0472570324 | AO45: 0.3108181233 | AQ45: 0.01978728352 | AR45: 19.11111138 | AS45: 294.2519922 | AT45: 5.822447595
A46: 0.065 | B46: =B45+J45*dt/2 -> 0.09220708296 | C46: =C45+K45*dt/2 -> -0.4109803316 | D46: =D45+B46*dt/2 -> -0.07701590574 | E46: =E45+C46*dt/2 -> -0.02742275893 | F46: -0.02742275893 | H46: 0.08175241552 | I46: 1.532083777 | J46: 1.443310507 | K46: 0.5139411247 | L46: 0.08790515815 | N46: =N45+V45*dt/2 -> -0.184974128 | O46: =O45+W45*dt/2 -> 0.8218618195 | P46: =P45+N46*dt/2 -> 0.1540136894 | Q46: =Q45+O46*dt/2 -> 0.05484339892 | R46: 0.05484339892 | T46: 0.1634870482 | U46: 3.073471706 | V46: -2.895386057 | W46: -1.031003349 | X46: 0.1752890527 | Z46: 0.2452394637 | AA46: 0.2310295952 | AB46: 0.08226615786 | AC46: 0.06273946374 | AE46: -0.0001616161616 | AF46: -5.610440214e-05 | AG46: 0.07685428957 | AH46: 0.02736665453 | AI46: 0.08158134349 | AJ46: -0.1541753056 | AK46: -0.05489950332 | AL46: 0.1636581202 | AN46: 0.04762850776 | AO46: 0.3108227187 | AQ46: 0.01982690225 | AR46: 19.60004831 | AS46: 293.6605231 | AT46: 5.822378484
A47: 0.06666666667 | B47: =B45+J46*dt -> 0.09461480599 | C47: =C45+K46*dt -> -0.4100999379 | D47: =D45+B46*dt -> -0.07686222726 | E47: =E45+C46*dt -> -0.02810772615 | F47: -0.02810772615 | H47: 0.08184037054 | I47: 1.538505381 | J47: 1.444912511 | K47: 0.528419005 | L47: 0.08776985765 | N47: =N45+V46*dt -> -0.1898041958 | O47: =O45+W46*dt -> 0.8200956856 | P47: =P45+N46*dt -> 0.1537053992 | Q47: =Q45+O46*dt -> 0.05621316862 | R47: 0.05621316862 | T47: 0.1636620606 | U47: 3.086353913 | V47: -2.898599794 | W47: -1.060047032 | X47: 0.1750198939 | Z47: 0.2455024311 | AA47: 0.2305676265 | AB47: 0.08432089478 | AC47: 0.06300243111 | AE47: -0.0001616161616 | AF47: -5.754297655e-05 | AG47: 0.0767006111 | AH47: 0.02805018318 | AI47: 0.0816688222 | AJ47: -0.1538670154 | AK47: -0.0562707116 | AL47: 0.1638336089 | AN47: 0.04802860655 | AO47: 0.3108183581 | AQ47: 0.01986944535 | AR47: 20.08797326 | AS47: 293.0585631 | AT47: 5.822911102
A48: 0.06833333333 | B48: =B47+J47*dt/2 -> 0.0970229935 | C48: =C47+K47*dt/2 -> -0.4092192396 | D48: =D47+B48*dt/2 -> -0.07670052228 | E48: =E47+C48*dt/2 -> -0.02878975822 | F48: -0.02878975822 | H48: 0.08192569985 | I48: 1.544733462 | J48: 1.446200729 | K48: 0.5428673113 | L48: 0.08764099134 | N48: =N47+V47*dt/2 -> -0.1946351955 | O48: =O47+W47*dt/2 -> 0.8183289405 | P48: =P47+N48*dt/2 -> 0.1533810072 | Q48: =Q47+O48*dt/2 -> 0.05757705019 | R48: 0.05757705019 | T48: 0.1638317737 | U48: 3.098847896 | V48: -2.901184054 | W48: -1.089031388 | X48: 0.1747636432 | Z48: 0.2457574736 | AA48: 0.2300815295 | AB48: 0.08636680841 | AC48: 0.06325747357 | AE48: -0.0001616161616 | AF48: -5.898155096e-05 | AG48: 0.07653890611 | AH48: 0.02873077667 | AI48: 0.08175366461 | AJ48: -0.1535426234 | AK48: -0.05763603174 | AL48: 0.164003809 | AN48: 0.04841824635 | AO48: 0.3108228809 | AQ48: 0.0199107499 | AR48: 20.57486988 | AS48: 292.4464734 | AT48: 5.822828591
A49: 0.07 | B49: =B47+J48*dt -> 0.09943547508 | C49: =C47+K48*dt -> -0.4082903802 | D49: =D47+B48*dt -> -0.07653881729 | E49: =E47+C48*dt -> -0.02947179029 | F49: -0.02947179029 | H49: 0.08201693102 | I49: 1.551394013 | J49: 1.447761055 | K49: 0.5575045389 | L49: 0.08749957612 | N49: =N47+V48*dt -> -0.1994748093 | O49: =O47+W48*dt -> 0.8164655809 | P49: =P47+N48*dt -> 0.1530566152 | Q49: =Q47+O48*dt -> 0.05894093176 | R49: 0.05894093176 | T49: 0.1640132949 | U49: 3.112209447 | V49: -2.904314181 | W49: -1.118394733 | X49: 0.1744823424 | Z49: 0.2460302259 | AA49: 0.2295954325 | AB49: 0.08841272204 | AC49: 0.0635302259 | AE49: -0.0001616161616 | AF49: -6.042012538e-05 | AG49: 0.07637720112 | AH49: 0.02941137016 | AI49: 0.08184439838 | AJ49: -0.1532182314 | AK49: -0.05900135188 | AL49: 0.1641858275 | AN49: 0.0488366842 | AO49: 0.3108186027 | AQ49: 0.01995497006 | AR49: 21.06072197 | AS49: 291.8246134 | AT49: 5.823351424
A50: 0.07166666667 | B50: =B49+J49*dt/2 -> 0.1018484102 | C50: =C49+K49*dt/2 -> -0.407361206 | D50: =D49+B50*dt/2 -> -0.07636906994 | E50: =E49+C50*dt/2 -> -0.03015072563 | F50: -0.03015072563 | H50: 0.08210542673 | I50: 1.557852997 | J50: 1.448999787 | K50: 0.5721062653 | L50: 0.08736470227 | N50: =N49+V49*dt/2 -> -0.204315333 | O50: =O49+W49*dt/2 -> 0.8146015897 | P50: =P49+N50*dt/2 -> 0.1527160897 | Q50: =Q49+O50*dt/2 -> 0.06029860107 | R50: 0.06029860107 | T50: 0.1641892973 | U50: 3.12516664 | V50: -2.906799168 | W50: -1.14768686 | X50: 0.1742141648 | Z50: 0.246294724 | AA50: 0.2290851596 | AB50: 0.0904493267 | AC50: 0.06379472398 | AE50: -0.0001616161616 | AF50: -6.185869979e-05 | AG50: 0.07620745377 | AH50: 0.03008886693 | AI50: 0.08193238629 | AJ50: -0.1528777059 | AK50: -0.06036045977 | AL50: 0.1643623377 | AN50: 0.04924417837 | AO50: 0.3108230454 | AQ50: 0.01999789884 | AR50: 21.54551438 | AS50: 291.1933492 | AT50: 5.823255139
A51: 0.07333333333 | B51: =B49+J50*dt -> 0.1042654744 | C51: =C49+K50*dt -> -0.4063833593 | D51: =D49+B50*dt -> -0.07619932259 | E51: =E49+C50*dt -> -0.03082966097 | F51: -0.03082966097 | H51: 0.08219978563 | I51: 1.564741629 | J51: 1.450503928 | K51: 0.58690265 | L51: 0.08721727768 | N51: =N49+V50*dt -> -0.2091641399 | O51: =O49+W50*dt -> 0.8126399581 | P51: =P49+N50*dt -> 0.1523755641 | Q51: =Q49+O50*dt -> 0.06165627039 | R51: 0.06165627039 | T51: 0.1643770307 | U51: 3.138985738 | V51: -2.909816585 | W51: -1.177369486 | X51: 0.1739209347 | Z51: 0.2465768163 | AA51: 0.2285748867 | AB51: 0.09248593136 | AC51: 0.0640768163 | AE51: -0.0001616161616 | AF51: -6.329727421e-05 | AG51: 0.07603770642 | AH51: 0.0307663637 | AI51: 0.08202622711 | AJ51: -0.1525371803 | AK51: -0.06171956766 | AL51: 0.1645505892 | AN51: 0.04968064449 | AO51: 0.3108188569 | AQ51: 0.02004373404 | AR51: 22.02923212 | AS51: 290.5530444 | AT51: 5.823767947
A52: 0.075 | B52: =B51+J51*dt/2 -> 0.1066829809 | C52: =C51+K51*dt/2 -> -0.4054051882 | D52: =D51+B52*dt/2 -> -0.07602151762 | E52: =E51+C52*dt/2 -> -0.03150533629 | F52: -0.03150533629 | H52: 0.08229129574 | I52: 1.57142039 | J52: 1.451678613 | K52: 0.6016570857 | L52: 0.08707650672 | N52: =N51+V51*dt/2 -> -0.2140138342 | O52: =O51+W51*dt/2 -> 0.8106776756 | P52: =P51+N52*dt/2 -> 0.1520188744 | Q52: =Q51+O52*dt/2 -> 0.06300739985 | R52: 0.06300739985 | T52: 0.1645590186 | U52: 3.15238382 | V52: -2.912173088 | W52: -1.206967959 | X52: 0.1736410531 | Z52: 0.2468503143 | AA52: 0.228040392 | AB52: 0.09451273613 | AC52: 0.06435031434 | AE52: -0.0001616161616 | AF52: -6.473584862e-05 | AG52: 0.07585990146 | AH52: 0.03144060044 | AI52: 0.08211720894 | AJ52: -0.1521804906 | AK52: -0.0630721357 | AL52: 0.1647331054 | AN52: 0.05010565176 | AO52: 0.3108232116 | AQ52: 0.02008822291 | AR52: 22.51186128 | AS52: 289.9040685 | AT52: 5.823657552
A53: 0.07666666667 | B53: =B51+J52*dt -> 0.1091044031 | C53: =C51+K52*dt -> -0.4043778357 | D53: =D51+B52*dt -> -0.07584371265 | E53: =E51+C52*dt -> -0.0321810116 | F53: -0.0321810116 | H53: 0.08238862941 | I53: 1.578525905 | J53: 1.453111923 | K53: 0.6166115235 | L53: 0.08692318897 | N53: =N51+V52*dt -> -0.2188713835 | O53: =O51+W52*dt -> 0.8086167315 | P53: =P51+N52*dt -> 0.1516621847 | Q53: =Q51+O52*dt -> 0.06435852931 | R53: 0.06435852931 | T53: 0.1647526587 | U53: 3.166638 | V53: -2.915048413 | W53: -1.236967651 | X53: 0.1733361282 | Z53: 0.2471412881 | AA53: 0.2275058973 | AB53: 0.09653954091 | AC53: 0.06464128809 | AE53: -0.0001616161616 | AF53: -6.617442303e-05 | AG53: 0.07568209649 | AH53: 0.03211483718 | AI53: 0.08221400426 | AJ53: -0.1518238008 | AK53: -0.06442470373 | AL53: 0.1649272838 | AN53: 0.05055980313 | AO53: 0.3108191203 | AQ53: 0.02013560864 | AR53: 22.99338808 | AS53: 289.2467883 | AT53: 5.824160129
A54: 0.07833333333 | B54: =B53+J53*dt/2 -> 0.1115262563 | C54: =C53+K53*dt/2 -> -0.4033501498 | D54: =D53+B54*dt/2 -> -0.07565783556 | E54: =E53+C54*dt/2 -> -0.03285326185 | F54: -0.03285326185 | H54: 0.08248299761 | I54: 1.585413 | J54: 1.454207895 | K54: 0.6315170454 | L54: 0.08677664209 | N54: =N53+V53*dt/2 -> -0.2237297975 | O54: =O53+W53*dt/2 -> 0.8065551188 | P54: =P53+N54*dt/2 -> 0.1512893017 | Q54: =Q53+O54*dt/2 -> 0.06570278784 | R54: 0.06570278784 | T54: 0.1649403199 | U54: 3.180454014 | V54: -2.917247012 | W54: -1.266869215 | X54: 0.1730447869 | Z54: 0.2474233175 | AA54: 0.2269471372 | AB54: 0.09855604969 | AC54: 0.06492331748 | AE54: -0.0001616161616 | AF54: -6.761299745e-05 | AG54: 0.07549621939 | AH54: 0.03278564885 | AI54: 0.08230782413 | AJ54: -0.1514509179 | AK54: -0.06577040084 | AL54: 0.1651154934 | AN54: 0.05100194955 | AO54: 0.3108233786 | AQ54: 0.02018159103 | AR54: 23.47379986 | AS54: 288.581575 | AT54: 5.824035324
A55: 0.08 | B55: =B53+J54*dt -> 0.1139517627 | C55: =C53+K54*dt -> -0.4022727789 | D55: =D53+B54*dt -> -0.07547195846 | E55: =E53+C54*dt -> -0.0335255121 | F55: -0.0335255121 | H55: 0.08258314886 | I55: 1.592723891 | J55: 1.455555646 | K55: 0.6466275221 | L55: 0.08661755866 | N55: =N53+V54*dt -> -0.2285955402 | O55: =O53+W54*dt -> 0.8043938342 | P55: =P53+N54*dt -> 0.1509164187 | Q55: =Q53+O54*dt -> 0.06704704637 | R55: 0.06704704637 | T55: 0.1651395527 | U55: 3.195120194 | V55: -2.9199507 | W55: -1.297181932 | X55: 0.1727284243 | Z55: 0.2477227015 | AA55: 0.2263883772 | AB55: 0.1005725585 | AC55: 0.06522270148 | AE55: -0.0001616161616 | AF55: -6.905157186e-05 | AG55: 0.0753103423 | AH55: 0.03345646053 | AI55: 0.08240741719 | AJ55: -0.1510780349 | AK55: -0.06711609794 | AL55: 0.1653152843 | AN55: 0.05147340954 | AO55: 0.3108193925 | AQ55: 0.02023046032 | AR55: 23.95308407 | AS55: 287.908797 | AT55: 5.824527492
A56: 0.08166666667 | B56: =B55+J55*dt/2 -> 0.1163776888 | C56: =C55+K55*dt/2 -> -0.4011950664 | D56: =D55+B56*dt/2 -> -0.07527799565 | E56: =E55+C56*dt/2 -> -0.03419417054 | F56: -0.03419417054 | H56: 0.08268021485 | I56: 1.599807584 | J56: 1.456558192 | K56: 0.6616816007 | L56: 0.08646536824 | N56: =N55+V55*dt/2 -> -0.2334621247 | O56: =O55+W55*dt/2 -> 0.8022318643 | P56: =P55+N56*dt/2 -> 0.1505273152 | Q56: =Q55+O56*dt/2 -> 0.06838409948 | R56: 0.06838409948 | T56: 0.1653325669 | U56: 3.209330599 | V56: -2.921961879 | W56: -1.327381511 | X56: 0.1724258904 | Z56: 0.2480127817 | AA56: 0.2258053108 | AB56: 0.10257827 | AC56: 0.06551278166 | AE56: -0.0001616161616 | AF56: -7.049014627e-05 | AG56: 0.07511637949 | AH56: 0.0341236804 | AI56: 0.08250391525 | AJ56: -0.1506889313 | AK56: -0.06845458962 | AL56: 0.1655088664 | AN56: 0.05193228718 | AO56: 0.3108235458 | AQ56: 0.02027786729 | AR56: 24.43122928 | AS56: 287.2288262 | AT56: 5.824388018
A57: 0.08333333333 | B57: =B55+J56*dt -> 0.1188069567 | C57: =C55+K56*dt -> -0.4000671736 | D57: =D55+B56*dt -> -0.07508403283 | E57: =E55+C56*dt -> -0.03486282899 | F57: -0.03486282899 | H57: 0.0827830226 | I57: 1.607312059 | J57: 1.45780563 | K57: 0.6769451991 | L57: 0.0863006584 | N57: =N55+V56*dt -> -0.2383354132 | O57: =O55+W56*dt -> 0.7999692291 | P57: =P55+N56*dt -> 0.1501382116 | Q57: =Q55+O56*dt -> 0.06972115258 | R57: 0.06972115258 | T57: 0.1655370705 | U57: 3.224385123 | V57: -2.92446433 | W57: -1.358001401 | X57: 0.1720983706 | Z57: 0.248320093 | AA57: 0.2252222444 | AB57: 0.1045839816 | AC57: 0.06582009301 | AE57: -0.0001616161616 | AF57: -7.192872069e-05 | AG57: 0.07492241667 | AH57: 0.03479090027 | AI57: 0.08260614542 | AJ57: -0.1502998278 | AK57: -0.0697930813 | AL57: 0.1657139476 | AN57: 0.0524206442 | AO57: 0.3108196732 | AQ57: 0.02032815082 | AR57: 24.90822417 | AS57: 286.5420312 | AT57: 5.824869628
A58: 0.085 | B58: =B57+J57*dt/2 -> 0.1212366328 | C58: =C57+K57*dt/2 -> -0.3989389316 | D58: =D57+B58*dt/2 -> -0.07488197178 | E58: =E57+C58*dt/2 -> -0.03552772721 | F58: -0.03552772721 | H58: 0.08288262241 | I58: 1.614580348 | J58: 1.458700043 | K58: 0.6921444085 | L58: 0.08614296845 | N58: =N57+V57*dt/2 -> -0.2432095204 | O58: =O57+W57*dt/2 -> 0.7977058935 | P58: =P57+N58*dt/2 -> 0.1497328624 | Q58: =Q57+O58*dt/2 -> 0.07105066241 | R58: 0.07105066241 | T58: 0.1657351101 | U58: 3.238965839 | V58: -2.926258589 | W58: -1.388492123 | X58: 0.1717849341 | Z58: 0.2486177324 | AA58: 0.2246148342 | AB58: 0.1065783896 | AC58: 0.06611773241 | AE58: -0.0001616161616 | AF58: -7.33672951e-05 | AG58: 0.07472035562 | AH58: 0.03545435991 | AI58: 0.08270515812 | AJ58: -0.1498944786 | AK58: -0.0711240297 | AL58: 0.1659125743 | AN58: 0.05289580993 | AO58: 0.3108237125 | AQ58: 0.02037691115 | AR58: 25.38405856 | AS58: 285.8487834 | AT58: 5.824715262
A59: 0.08666666667 | B59: =B57+J58*dt -> 0.1236692902 | C59: =C57+K58*dt -> -0.3977600255 | D59: =D57+B58*dt -> -0.07467991072 | E59: =E57+C58*dt -> -0.03619262543 | F59: -0.03619262543 | H59: 0.08298792202 | I59: 1.622266353 | J59: 1.459832443 | K59: 0.7075573195 | L59: 0.08597278353 | N59: =N57+V58*dt -> -0.2480896084 | O59: =O57+W58*dt -> 0.7953409221 | P59: =P57+N58*dt -> 0.1493275132 | Q59: =Q57+O58*dt -> 0.07238017223 | R59: 0.07238017223 | T59: 0.1659445556 | U59: 3.254384527 | V59: -2.928530265 | W59: -1.419411546 | X59: 0.1714465621 | Z59: 0.2489324775 | AA59: 0.2240074239 | AB59: 0.1085727977 | AC59: 0.06643247753 | AE59: -0.0001616161616 | AF59: -7.480586952e-05 | AG59: 0.07451829456 | AH59: 0.03611781956 | AI59: 0.08280986121 | AJ59: -0.1494891294 | AK59: -0.0724549781 | AL59: 0.1661226163 | AN59: 0.05340061625 | AO59: 0.3108199619 | AQ59: 0.02042853734 | AR59: 25.85872234 | AS59: 285.1494503 | AT59: 5.825186193
A60: 0.08833333333 | B60: =B59+J59*dt/2 -> 0.1261023443 | C60: =C59+K59*dt/2 -> -0.3965807633 | D60: =D59+B60*dt/2 -> -0.07446974015 | E60: =E59+C60*dt/2 -> -0.03685359336 | F60: -0.03685359336 | H60: 0.08308988832 | I60: 1.629706987 | J60: 1.460604082 | K60: 0.7228973506 | L60: 0.08580975007 | N60: =N59+V59*dt/2 -> -0.2529704922 | O60: =O59+W59*dt/2 -> 0.7929752361 | P60: =P59+N60*dt/2 -> 0.1489058957 | Q60: =Q59+O60*dt/2 -> 0.07370179762 | R60: 0.07370179762 | T60: 0.1661472863 | U60: 3.26931098 | V60: -2.930078229 | W60: -1.450184766 | X60: 0.1711225374 | Z60: 0.2492371746 | AA60: 0.2233756359 | AB60: 0.110555391 | AC60: 0.06673717455 | AE60: -0.0001616161616 | AF60: -7.624444393e-05 | AG60: 0.07430812399 | AH60: 0.03677734892 | AI60: 0.0829112217 | AJ60: -0.1490675119 | AK60: -0.07377804207 | AL60: 0.1663259528 | AN60: 0.05389159065 | AO60: 0.3108238781 | AQ60: 0.02047857761 | AR60: 26.33220656 | AS60: 284.4444013 | AT60: 5.825016748
A61: 0.09 | B61: =B59+J60*dt -> 0.1285379705 | C61: =C59+K60*dt -> -0.3953503677 | D61: =D59+B60*dt -> -0.07425956958 | E61: =E59+C60*dt -> -0.0375145613 | F61: -0.0375145613 | H61: 0.08319751188 | I61: 1.637562232 | J61: 1.461606801 | K61: 0.7384548884 | L61: 0.08563425389 | N61: =N59+V60*dt -> -0.2578565359 | O61: =O59+W60*dt -> 0.7905069728 | P61: =P59+N60*dt -> 0.1484842782 | Q61: =Q59+O60*dt -> 0.07502342302 | R61: 0.07502342302 | T61: 0.1663613383 | U61: 3.285069174 | V61: -2.932089757 | W61: -1.481394321 | X61: 0.170773643 | Z61: 0.2495588501 | AA61: 0.2227438478 | AB61: 0.1125379843 | AC61: 0.06705885008 | AE61: -0.0001616161616 | AF61: -7.768301834e-05 | AG61: 0.07409795341 | AH61: 0.03743687829 | AI61: 0.08301823026 | AJ61: -0.1486458944 | AK61: -0.07510110603 | AL61: 0.1665406198 | AN61: 0.05441236143 | AO61: 0.3108202583 | AQ61: 0.02053147267 | AR61: 26.80450235 | AS61: 283.734002 | AT61: 5.825476909
A62: 0.09166666667 | B62: =B61+J61*dt/2 -> 0.1309739818 | C62: =C61+K61*dt/2 -> -0.3941196095 | D62: =D61+B62*dt/2 -> -0.07404127961 | E62: =E61+C62*dt/2 -> -0.03817142732 | F62: -0.03817142732 | H62: 0.08330167435 | I62: 1.645162741 | J62: 1.462241138 | K62: 0.7539305661 | L62: 0.08546604524 | N62: =N61+V61*dt/2 -> -0.2627433521 | O62: =O61+W61*dt/2 -> 0.7880379823 | P62: =P61+N62*dt/2 -> 0.1480463727 | Q62: =Q61+O62*dt/2 -> 0.07633681965 | R62: 0.07633681965 | T62: 0.1665684198 | U62: 3.300316349 | V62: -2.933362283 | W62: -1.512439658 | X62: 0.1704393689 | Z62: 0.2498700941 | AA62: 0.2220876523 | AB62: 0.114508247 | AC62: 0.06737009407 | AE62: -0.0001616161616 | AF62: -7.912159276e-05 | AG62: 0.07387966344 | AH62: 0.03809230573 | AI62: 0.08312176867 | AJ62: -0.1482079888 | AK62: -0.07641594125 | AL62: 0.1667483254 | AN62: 0.05491862785 | AO62: 0.310824042 | AQ62: 0.02058271736 | AR62: 27.27560196 | AS62: 283.0186186 | AT62: 5.825292233
A63: 0.09333333333 | B63: =B61+J62*dt -> 0.1334121076 | C63: =C61+K62*dt -> -0.3928372658 | D63: =D61+B62*dt -> -0.07382298964 | E63: =E61+C62*dt -> -0.03882829334 | F63: -0.03882829334 | H63: 0.08341145103 | I63: 1.653174719 | J63: 1.463099671 | K63: 0.7696271867 | L63: 0.08528541434 | N63: =N61+V62*dt -> -0.2676344102 | O63: =O61+W62*dt -> 0.7854655073 | P63: =P61+N62*dt -> 0.1476084671 | Q63: =Q61+O62*dt -> 0.07765021629 | R63: 0.07765021629 | T63: 0.166786737 | U63: 3.316388961 | V63: -2.935084562 | W63: -1.543928223 | X63: 0.1700803074 | Z63: 0.2501981879 | AA63: 0.2214314567 | AB63: 0.1164785096 | AC63: 0.06769818788 | AE63: -0.0001616161616 | AF63: -8.056016717e-05 | AG63: 0.07366137347 | AH63: 0.03874773317 | AI63: 0.08323091233 | AJ63: -0.1477700832 | AK63: -0.07773077646 | AL63: 0.1669672756 | AN63: 0.05545484018 | AO63: 0.310820562 | AQ63: 0.02063680543 | AR63: 27.74549773 | AS63: 282.2986134 | AT63: 5.825741559
A64: 0.095 | B64: =B63+J63*dt/2 -> 0.135850607 | C64: =C63+K63*dt/2 -> -0.3915545538 | D64: =D63+B64*dt/2 -> -0.07359657196 | E64: =E63+C64*dt/2 -> -0.03948088426 | F64: -0.03948088426 | H64: 0.08351763662 | I64: 1.660922436 | J64: 1.463582343 | K64: 0.78523249 | L64: 0.08511221142 | N64: =N63+V63*dt/2 -> -0.2725262178 | O64: =O63+W63*dt/2 -> 0.7828922936 | P64: =P63+N64*dt/2 -> 0.1471542567 | Q64: =Q63+O64*dt/2 -> 0.07895503678 | R64: 0.07895503678 | T64: 0.1669978236 | U64: 3.331931446 | V64: -2.936052839 | W64: -1.575233598 | X64: 0.169736148 | Z64: 0.2505154601 | AA64: 0.2207508287 | AB64: 0.118435921 | AC64: 0.06801546009 | AE64: -0.0001616161616 | AF64: -8.199874158e-05 | AG64: 0.0734349558 | AH64: 0.03939888552 | AI64: 0.08333645608 | AJ64: -0.1473158729 | AK64: -0.07903703552 | AL64: 0.167179004 | AN64: 0.05597584402 | AO64: 0.3108242035 | AQ64: 0.020689177 | AR64: 28.21418312 | AS64: 281.5743487 | AT64: 5.825541539
A65: 0.09666666667 | B65: =B63+J64*dt -> 0.1382907154 | C65: =C63+K64*dt -> -0.3902198242 | D65: =D63+B64*dt -> -0.07337015428 | E65: =E63+C64*dt -> -0.04013347518 | F65: -0.04013347518 | H65: 0.08362939297 | I65: 1.669078451 | J65: 1.464282366 | K65: 0.8010618121 | L65: 0.08492663532 | N65: =N63+V64*dt -> -0.277421253 | O65: =O63+W64*dt -> 0.7802147286 | P65: =P63+N64*dt -> 0.1467000463 | Q65: =Q63+O64*dt -> 0.08025985727 | R65: 0.08025985727 | T65: 0.1672200595 | U65: 3.348293005 | V65: -2.937457135 | W65: -1.606988372 | X65: 0.1693673009 | Z65: 0.2508494523 | AA65: 0.2200702006 | AB65: 0.1203933325 | AC65: 0.06834945226 | AE65: -0.0001616161616 | AF65: -8.3437316e-05 | AG65: 0.07320853812 | AH65: 0.04005003787 | AI65: 0.0834475619 | AJ65: -0.1468616625 | AK65: -0.08034329458 | AL65: 0.1674018904 | AN65: 0.05652693625 | AO65: 0.3108208724 | AQ65: 0.02074438022 | AR65: 28.68165167 | AS65: 280.8461824 | AT65: 5.825979989
A66: 0.09833333333 | B66: =B65+J65*dt/2 -> 0.140731186 | C66: =C65+K65*dt/2 -> -0.3888847211 | D66: =D65+B66*dt/2 -> -0.0731356023 | E66: =E65+C66*dt/2 -> -0.04078161638 | F66: -0.04078161638 | H66: 0.08373742627 | I66: 1.676960534 | J66: 1.464599227 | K66: 0.8167898976 | L66: 0.08474863186 | N66: =N65+V65*dt/2 -> -0.2823170148 | O66: =O65+W65*dt/2 -> 0.7775364147 | P66: =P65+N66*dt/2 -> 0.146229518 | Q66: =Q65+O66*dt/2 -> 0.08155575129 | R66: 0.08155575129 | T66: 0.1674348007 | U66: 3.364105039 | V66: -2.938092781 | W66: -1.638540058 | X66: 0.1690136459 | Z66: 0.2511722268 | AA66: 0.2193651203 | AB66: 0.1223373677 | AC66: 0.06867222682 | AE66: -0.0001616161616 | AF66: -8.487589041e-05 | AG66: 0.07297398614 | AH66: 0.04069674049 | AI66: 0.08355493606 | AJ66: -0.1463911341 | AK66: -0.08164062718 | AL66: 0.1676172908 | AN66: 0.05706208431 | AO66: 0.3108243621 | AQ66: 0.02079779924 | AR66: 29.14789802 | AS66: 280.1144716 | AT66: 5.825764543
A67: 0.1 | B67: =B65+J66*dt -> 0.1431727128 | C67: =C65+K66*dt -> -0.3874971912 | D67: =D65+B66*dt -> -0.07290105033 | E67: =E65+C66*dt -> -0.04142975759 | F67: -0.04142975759 | H67: 0.08385098659 | I67: 1.685247721 | J67: 1.465126649 | K67: 0.8327447276 | L67: 0.08455831319 | N67: =N65+V66*dt -> -0.2872148956 | O67: =O65+W66*dt -> 0.7747529285 | P67: =P65+N66*dt -> 0.1457589896 | Q67: =Q65+O66*dt -> 0.08285164532 | R67: 0.08285164532 | T67: 0.1676606042 | U67: 3.380729739 | V67: -2.939150829 | W67: -1.670546609 | X67: 0.1686354206 | Z67: 0.2515115905 | AA67: 0.2186600399 | AB67: 0.1242814029 | AC67: 0.06901159054 | AE67: -0.0001616161616 | AF67: -8.631446483e-05 | AG67: 0.07273943416 | AH67: 0.04134344312 | AI67: 0.08366782877 | AJ67: -0.1459206058 | AK67: -0.08293795978 | AL67: 0.1678437618 | AN67: 0.05762745551 | AO67: 0.3108211893 | AQ67: 0.02085403783 | AR67: 29.6129169 | AS67: 279.3795692 | AT67: 5.826192105
A68: 0.1016666667 | B68: =B67+J67*dt/2 -> 0.1456145906 | C68: =C67+K67*dt/2 -> -0.3861092833 | D68: =D67+B68*dt/2 -> -0.07265835934 | E68: =E67+C68*dt/2 -> -0.04207327306 | F68: -0.04207327306 | H68: 0.08396069014 | I68: 1.693251178 | J68: 1.465263811 | K68: 0.8485879552 | L68: 0.08437571587 | N68: =N67+V67*dt/2 -> -0.2921134803 | O68: =O67+W67*dt/2 -> 0.7719686841 | P68: =P67+N68*dt/2 -> 0.1452721338 | Q68: =Q67+O68*dt/2 -> 0.08413825979 | R68: 0.08413825979 | T68: 0.1678786455 | U68: 3.396785258 | V68: -2.939425985 | W68: -1.702329279 | X68: 0.1682726858 | Z68: 0.2518393354 | AA68: 0.2179304932 | AB68: 0.1262115328 | AC68: 0.06933933544 | AE68: -0.0001616161616 | AF68: -8.775303924e-05 | AG68: 0.07249674318 | AH68: 0.04198552002 | AI68: 0.08377685637 | AJ68: -0.14543375 | AK68: -0.08422601283 | AL68: 0.1680624791 | AN68: 0.05817611561 | AO68: 0.3108245173 | AQ68: 0.02090842306 | AR68: 30.07670411 | AS68: 278.6418262 | AT68: 5.825961185
A69: 0.1033333333 | B69: =B67+J68*dt -> 0.1480569255 | C69: =C67+K68*dt -> -0.3846685647 | D69: =D67+B68*dt -> -0.07241566836 | E69: =E67+C68*dt -> -0.04271678853 | F69: -0.04271678853 | H69: 0.08407587672 | I69: 1.701656529 | J69: 1.465604819 | K69: 0.8646603138 | L69: 0.08418087051 | N69: =N67+V68*dt -> -0.2970129822 | O69: =O67+W68*dt -> 0.7690784975 | P69: =P67+N68*dt -> 0.144785278 | Q69: =Q67+O68*dt -> 0.08542487426 | R69: 0.08542487426 | T69: 0.1681076616 | U69: 3.413647005 | V69: -2.940110071 | W69: -1.734571601 | X69: 0.1678855164 | Z69: 0.252183538 | AA69: 0.2172009464 | AB69: 0.1281416628 | AC69: 0.06968353803 | AE69: -0.0001616161616 | AF69: -8.919161365e-05 | AG69: 0.0722540522 | AH69: 0.04262759692 | AI69: 0.08389135878 | AJ69: -0.1449468942 | AK69: -0.08551406588 | AL69: 0.1682921792 | AN69: 0.05875512521 | AO69: 0.3108215121 | AQ69: 0.02096561549 | AR69: 30.53925553 | AS69: 277.9015895 | AT69: 5.826377868
A70: 0.105 | B70: =B69+J69*dt/2 -> 0.1504996002 | C70: =C69+K69*dt/2 -> -0.3832274641 | D70: =D69+B70*dt/2 -> -0.07216483569 | E70: =E69+C70*dt/2 -> -0.04335550097 | F70: -0.04335550097 | H70: 0.0841870713 | I70: 1.709768242 | J70: 1.465548697 | K70: 0.8806102757 | L70: 0.08399389908 | N70: =N69+V69*dt/2 -> -0.3019131656 | O70: =O69+W69*dt/2 -> 0.7661875449 | P70: =P69+N70*dt/2 -> 0.1442820894 | Q70: =Q69+O70*dt/2 -> 0.08670185351 | R70: 0.08670185351 | T70: 0.168328645 | U70: 3.429919692 | V70: -2.939997487 | W70: -1.766568387 | X70: 0.1675141436 | Z70: 0.252515716 | AA70: 0.2164469251 | AB70: 0.1300573545 | AC70: 0.07001571602 | AE70: -0.0001616161616 | AF70: -9.063018807e-05 | AG70: 0.07200321953 | AH70: 0.04326487078 | AI70: 0.08400186109 | AJ70: -0.1444437056 | AK70: -0.08679248369 | AL70: 0.1685138549 | AN70: 0.05931662593 | AO70: 0.3108246686 | AQ70: 0.02102088399 | AR70: 31.00056812 | AS70: 277.1592032 | AT70: 5.826131457
A71: 0.1066666667 | B71: =B69+J70*dt -> 0.1529420878 | C71: =C69+K70*dt -> -0.3817331971 | D71: =D69+B70*dt -> -0.07191400302 | E71: =E69+C70*dt -> -0.04399421341 | F71: -0.04399421341 | H71: 0.08430370481 | I71: 1.718278628 | J71: =k*$AC71*$AA71/$Z71/MA -> 1.465689796 | K71: =k*$AC71*$AB71/$Z71/MA -> 0.8967914274 | L71: 0.08379475617 | N71: =N69+V70*dt -> -0.3068129738 | O71: =O69+W70*dt -> 0.7631899362 | P71: =P69+N70*dt -> 0.1437789008 | Q71: =Q69+O70*dt -> 0.08797883275 | R71: 0.08797883275 | T71: 0.1685605153 | U71: 3.446992146 | V71: =-k*$AC71*$AA71/$Z71/MB -> -2.940280542 | W71: =-k*$AC71*$AB71/$Z71/MB -> -1.799028957 | X71: 0.1671184907 | Z71: 0.2528642198 | AA71: 0.2156929038 | AB71: 0.1319730462 | AC71: =Z71-L-CA-CB -> 0.07036421983 | AE71: -0.0001616161616 | AF71: -9.206876248e-05 | AG71: 0.07175238686 | AH71: 0.04390214465 | AI71: 0.08411779434 | AJ71: -0.143940517 | AK71: -0.08807090151 | AL71: 0.1687464255 | AN71: =0.5*k*(Z71-L-CA-CB)^2 -> 0.05990859354 | AO71: 0.3108218404 | AQ71: =MA*(AG71*AG71+AH71*AH71)+MB*(AJ71*AJ71+AK71*AK71) -> 0.02107894702 | AR71: 31.46063889 | AS71: 276.4150074 | AT71: 5.826537296
A72: =A71+dt/2 -> 0.1083333333 | B72: =B71+J71*dt/2 -> 0.1553849042 | C72: =C71+K71*dt/2 -> -0.3802385447 | D72: =D71+B72*dt/2 -> -0.07165502818 | E72: =E71+C72*dt/2 -> -0.04462794432 | F72: =IF($AC72<0,NA(),$E72) -> -0.04462794432 | G72: =IF($AC72>=0,NA(),$E72) ->  | H72: 0.08441620981 | I72: 1.726485373 | J72: 1.465427153 | K72: 0.9128389787 | L72: 0.08360364347 | N72: =N71+V71*dt/2 -> -0.3117134414 | O72: =O71+W71*dt/2 -> 0.7601915546 | P72: =P71+N72*dt/2 -> 0.1432593784 | Q72: =Q71+O72*dt/2 -> 0.08924581867 | R72: =IF($AC72<0,NA(),$Q72) -> 0.08924581867 | S72: =IF($AC72>=0,NA(),$Q72) ->  | T72: 0.16878408 | U72: 3.463455475 | V72: -2.939753662 | W72: -1.831221514 | X72: 0.1667389479 | Z72: 0.2532002894 | AA72: 0.2149144066 | AB72: 0.133873763 | AC72: 0.07070028944 | AE72: -0.0001616161616 | AF72: -9.350733689e-05 | AG72: =AE72-D72 -> 0.07149341202 | AH72: =AF72-E72 -> 0.04453443698 | AI72: =SQRT(AG72*AG72+AH72*AH72) -> 0.08422959124 | AJ72: =AE72-P72 -> -0.1434209946 | AK72: =AF72-Q72 -> -0.08933932601 | AL72: =SQRT(AJ72*AJ72+AK72*AK72) -> 0.1689706982 | AN72: 0.06048222422 | AO72: 0.3108248156 | AQ72: 0.02113501427 | AR72: 31.91946592 | AS72: 275.6693388 | AT72: 5.826275409
A73: 0.11 | B73: =B71+J72*dt -> 0.157826845 | C73: =C71+K72*dt -> -0.3786904005 | D73: =D71+B72*dt -> -0.07139605334 | E73: =E71+C72*dt -> -0.04526167523 | F73: -0.04526167523 | H73: 0.08453410955 | I73: 1.735087566 | J73: 1.465355208 | K73: 0.9291194632 | L73: 0.08340044542 | N73: =N71+V72*dt -> -0.3166121527 | O73: =O71+W72*dt -> 0.7570858645 | P73: =P71+N72*dt -> 0.142739856 | Q73: =Q71+O72*dt -> 0.0905128046 | R73: 0.0905128046 | T73: 0.1690184436 | U73: 3.480712102 | V73: -2.939609334 | W73: -1.863881352 | X73: 0.1663352986 | Z73: 0.2535525528 | AA73: 0.2141359093 | AB73: 0.1357744798 | AC73: 0.07105255282 | AE73: -0.0001616161616 | AF73: -9.494591131e-05 | AG73: 0.07123443718 | AH73: 0.04516672931 | AI73: 0.08434677515 | AJ73: -0.1429014722 | AK73: -0.09060775051 | AL73: 0.1692057777 | AN73: 0.06108642967 | AO73: 0.3108221737 | AQ73: 0.0211938631 | AR73: 32.37704732 | AS73: =IF(ABS((AR73-AR71)/dt)<1000,(AR73-AR71)/dt,AS72) -> 274.9225297 | AT73: 5.826670458
A74: 0.1116666667 | B74: =B73+J73*dt/2 -> 0.1602691037 | C74: =C73+K73*dt/2 -> -0.377141868 | D74: =D73+B74*dt/2 -> -0.07112893817 | E74: =E73+C74*dt/2 -> -0.04589024501 | F74: -0.04589024501 | H74: 0.08464774322 | I74: 1.743376039 | J74: 1.46487319 | K74: 0.9452547545 | L74: =0.5*MA*(B74*B74+C74*C74) -> 0.08320543733 | N74: =N73+V73*dt/2 -> -0.3215115016 | O74: =O73+W73*dt/2 -> 0.7539793956 | P74: =P73+N74*dt/2 -> 0.1422040035 | Q74: =Q73+O74*dt/2 -> 0.09176943692 | R74: 0.09176943692 | T74: 0.1692442264 | U74: 3.497339382 | V74: -2.938642371 | W74: -1.896249923 | X74: =0.5*MB*(N74*N74+O74*O74) -> 0.1659480799 | Z74: 0.2538919692 | AA74: =P74-D74 -> 0.2133329417 | AB74: =Q74-E74 -> 0.1376596819 | AC74: 0.07139196921 | AE74: =(MA*D74+MB*P74)/(MA+MB) -> -0.0001616161616 | AF74: =(MA*E74+MB*Q74)/(MA+MB) -> -9.638448572e-05 | AG74: 0.07096732201 | AH74: 0.04579386052 | AI74: 0.08445968538 | AJ74: -0.1423656197 | AK74: -0.09186582141 | AL74: 0.1694322838 | AN74: 0.06167144053 | AO74: =AN74+L74+X74 -> 0.3108249578 | AQ74: 0.02125064312 | AR74: 32.83338228 | AS74: 274.1749088 | AT74: =AQ74*AS74 -> 5.826393138
A75: 0.1133333333 | B75: =B73+J74*dt -> 0.1627097557 | C75: =C73+K74*dt -> -0.3755395513 | D75: =D73+B74*dt -> -0.070861823 | E75: =E73+C74*dt -> -0.04651881479 | F75: -0.04651881479 | H75: =SQRT(D75*D75+E75*E75) -> 0.08476672748 | I75: =SQRT(J75*J75+K75*K75) -> 1.752056737 | J75: 1.464575462 | K75: 0.9616244205 | L75: 0.0829984397 | N75: =N73+V74*dt -> -0.3264076272 | O75: =O73+W74*dt -> 0.7507650314 | P75: =P73+N74*dt -> 0.141668151 | Q75: =Q73+O74*dt -> 0.09302606925 | R75: 0.09302606925 | T75: =SQRT(P75*P75+Q75*Q75) -> 0.1694807203 | U75: =SQRT(V75*V75+W75*W75) -> 3.514753496 | V75: -2.938045108 | W75: -1.929088665 | X75: 0.1655369477 | Z75: =SQRT(AA75*AA75+AB75*AB75) -> 0.2542474474 | AA75: 0.212529974 | AB75: 0.139544884 | AC75: 0.07174744739 | AE75: -0.0001616161616 | AF75: -9.782306014e-05 | AG75: 0.07070020684 | AH75: 0.04642099173 | AI75: 0.08457793873 | AJ75: -0.1418297672 | AK75: -0.09312389231 | AL75: 0.1696695087 | AN75: 0.0622871241 | AO75: 0.3108225115 | AQ75: 0.0213101915 | AR75: =ATAN2(AA75,AB75)*180/PI() -> 33.28846999 | AS75: 273.4268002 | AT75: 5.826777474
A76: 0.115 | B76: =B75+J75*dt/2 -> 0.1651507148 | C76: =C75+K75*dt/2 -> -0.3739368439 | D76: =D75+B76*dt/2 -> -0.07058657181 | E76: =E75+C76*dt/2 -> -0.04714204286 | F76: -0.04714204286 | H76: 0.08488130727 | I76: 1.760413574 | J76: 1.463861635 | K76: 0.9778369329 | L76: 0.08279979507 | N76: =N75+V75*dt/2 -> -0.3313043691 | O76: =O75+W75*dt/2 -> 0.7475498837 | P76: =P75+N76*dt/2 -> 0.141115977 | Q76: =Q75+O76*dt/2 -> 0.09427198572 | R76: 0.09427198572 | T76: 0.1697083565 | U76: 3.53151792 | V76: -2.936613118 | W76: -1.961612147 | X76: 0.1651425731 | Z76: 0.2545896633 | AA76: 0.2117025488 | AB76: 0.1414140286 | AC76: 0.07208966332 | AE76: -0.0001616161616 | AF76: -9.926163455e-05 | AG76: 0.07042495564 | AH76: 0.04704278122 | AI76: 0.08469178026 | AJ76: -0.1412775932 | AK76: -0.09437124736 | AL76: 0.1698978831 | AN76: 0.06288272664 | AO76: 0.3108250949 | AQ76: 0.02136759695 | AR76: 33.74231069 | AS76: 272.6785237 | AT76: 5.826484793
A77: 0.1166666667 | B77: =B75+J76*dt -> 0.1675892944 | C77: =C75+K76*dt -> -0.3722800949 | D77: =D75+B76*dt -> -0.07031132061 | E77: =E75+C76*dt -> -0.04776527093 | F77: -0.04776527093 | H77: 0.0850011936 | I77: 1.769159421 | J77: 1.463325819 | K77: 0.9942849727 | L77: 0.08258926643 | N77: =N75+V76*dt -> -0.3361963376 | O77: =O75+W76*dt -> 0.7442263243 | P77: =P75+N76*dt -> 0.1405638031 | Q77: =Q75+O76*dt -> 0.09551790219 | R77: 0.09551790219 | T77: 0.1699466163 | U77: 3.549062726 | V77: -2.935538231 | W77: -1.994608113 | X77: 0.1647244974 | Z77: 0.2549478094 | AA77: 0.2108751237 | AB77: 0.1432831731 | AC77: 0.07244780937 | AE77: -0.0001616161616 | AF77: -0.000100700209 | AG77: 0.07014970445 | AH77: 0.04766457072 | AI77: 0.0848109211 | AJ77: -0.1407254193 | AK77: -0.0956186024 | AL77: 0.1701368883 | AN77: 0.06350908949 | AO77: 0.3108228533 | AQ77: 0.02142775732 | AR77: 34.19490464 | AS77: 271.9303949 | AT77: 5.826858509
A78: 0.1183333333 | B78: =B77+J77*dt/2 -> 0.1700281708 | C78: =C77+K77*dt/2 -> -0.3706229532 | D78: =D77+B78*dt/2 -> -0.07002794033 | E78: =E77+C78*dt/2 -> -0.04838297585 | F78: -0.04838297585 | H78: 0.08511653646 | I78: 1.777571222 | J78: 1.4623682 | K78: 1.010563554 | L78: 0.08238725688 | N78: =N77+V77*dt/2 -> -0.3410889013 | O78: =O77+W77*dt/2 -> 0.7409019774 | P78: =P77+N78*dt/2 -> 0.1399953216 | Q78: =Q77+O78*dt/2 -> 0.09675273882 | R78: 0.09675273882 | T78: 0.1701757402 | U78: 3.565937411 | V78: -2.933617179 | W78: -2.027264133 | X78: 0.1643235126 | Z78: 0.2552922761 | AA78: 0.2100232619 | AB78: 0.1451357147 | AC78: 0.07279227608 | AE78: -0.0001616161616 | AF78: -0.0001021387834 | AG78: 0.06986632417 | AH78: 0.04828083707 | AI78: 0.08492551137 | AJ78: -0.1401569378 | AK78: -0.09685487761 | AL78: 0.1703667647 | AN78: 0.06411445702 | AO78: 0.3108252265 | AQ78: 0.02148569965 | AR78: 34.64625311 | AS78: 271.1827244 | AT78: 5.826550566
A79: 0.12 | B79: =B77+J78*dt -> 0.1724638551 | C79: =C77+K78*dt -> -0.3689115497 | D79: =D77+B78*dt -> -0.06974456005 | E79: =E77+C78*dt -> -0.04900068078 | F79: -0.04900068078 | H79: 0.08523714198 | I79: 1.78636883 | J79: 1.461582454 | K79: 1.02707854 | L79: 0.08217347859 | N79: =N77+V78*dt -> -0.3459750616 | O79: =O77+W78*dt -> 0.7374687772 | P79: =P77+N78*dt -> 0.1394268401 | Q79: =Q77+O78*dt -> 0.09798757545 | R79: 0.09798757545 | T79: 0.1704154004 | U79: 3.583586053 | V79: -2.932040914 | W79: -2.060394399 | X79: 0.1638990583 | Z79: 0.2556525418 | AA79: 0.2091714001 | AB79: 0.1469882562 | AC79: 0.07315254175 | AE79: -0.0001616161616 | AF79: -0.0001035773578 | AG79: 0.06958294388 | AH79: 0.04889710342 | AI79: 0.08504535732 | AJ79: -0.1395884563 | AK79: -0.09809115281 | AL79: 0.1706071844 | AN79: 0.06475066181 | AO79: 0.3108231987 | AQ79: 0.02154638321 | AR79: 35.09635737 | AS79: 270.4358184 | AT79: 5.826913777
A80: 0.1216666667 | B80: =B79+J79*dt/2 -> 0.1748998259 | C80: =C79+K79*dt/2 -> -0.3671997521 | D80: =D79+B80*dt/2 -> -0.06945306034 | E80: =E79+C80*dt/2 -> -0.04961268036 | F80: -0.04961268036 | H80: 0.08535306464 | I80: 1.794822178 | J80: 1.460369548 | K80: 1.04341144 | L80: 0.08196838829 | N80: =N79+V79*dt/2 -> -0.3508617964 | O80: =O79+W79*dt/2 -> 0.7340347865 | P80: =P79+N80*dt/2 -> 0.1388420704 | Q80: =Q79+O80*dt/2 -> 0.09921096676 | R80: 0.09921096676 | T80: 0.1706456458 | U80: 3.600544086 | V80: -2.929607737 | W80: -2.093159387 | X80: 0.1634920338 | Z80: 0.2559987098 | AA80: 0.2082951308 | AB80: 0.1488236471 | AC80: 0.07349870985 | AE80: -0.0001616161616 | AF80: -0.0001050159322 | AG80: 0.06929144417 | AH80: 0.04950766443 | AI80: 0.08516051358 | AJ80: -0.1390036866 | AK80: -0.0993159827 | AL80: 0.1708381963 | AN80: 0.06536493023 | AO80: 0.3108253523 | AQ80: 0.02160477277 | AR80: 35.5452197 | AS80: 269.6899781 | AT80: 5.826590695
A81: 0.1233333333 | B81: =B79+J80*dt -> 0.1773317536 | C81: =C79+K80*dt -> -0.3654335115 | D81: =D79+B80*dt -> -0.06916156063 | E81: =E79+C80*dt -> -0.05022467995 | F81: -0.05022467995 | H81: 0.08547420631 | I81: 1.803658149 | J81: 1.459322523 | K81: 1.059981363 | L81: 0.08175165419 | N81: =N79+V80*dt -> -0.3557404207 | O81: =O79+W80*dt -> 0.7304915792 | P81: =P79+N80*dt -> 0.1382573008 | Q81: =Q79+O80*dt -> 0.1004343581 | R81: 0.1004343581 | T81: 0.1708863409 | U81: 3.618269687 | V81: -2.927507329 | W81: -2.126399861 | X81: 0.163061791 | Z81: 0.2563605465 | AA81: 0.2074188614 | AB81: 0.150659038 | AC81: 0.0738605465 | AE81: -0.0001616161616 | AF81: -0.0001064545066 | AG81: 0.06899994446 | AH81: 0.05011822544 | AI81: 0.08528088213 | AJ81: -0.1384189169 | AK81: -0.1005408126 | AL81: 0.1710796644 | AN81: 0.06601010198 | AO81: 0.3108235471 | AQ81: 0.02166588967 | AR81: 35.99284237 | AS81: 268.9455001 | AT81: 5.826943531
A82: 0.125 | B82: =B81+J81*dt/2 -> 0.1797639578 | C82: =C81+K81*dt/2 -> -0.3636668759 | D82: =D81+B82*dt/2 -> -0.06886195403 | E82: =E81+C82*dt/2 -> -0.05083079141 | F82: -0.05083079141 | H82: 0.08559052557 | I82: 1.812139634 | J82: 1.457843346 | K82: 1.076356276 | L82: 0.08154377954 | N82: =N81+V81*dt/2 -> -0.3606195996 | O82: =O81+W81*dt/2 -> 0.7269475795 | P82: =P81+N82*dt/2 -> 0.1376562681 | Q82: =Q81+O82*dt/2 -> 0.1016459374 | R82: 0.1016459374 | T82: 0.171117342 | U82: 3.635284165 | V82: -2.924539991 | W82: -2.159249128 | X82: 0.1626493219 | Z82: 0.2567078668 | AA82: 0.2065182221 | AB82: 0.1524767288 | AC82: 0.07420786683 | AE82: -0.0001616161616 | AF82: -0.000107893081 | AG82: 0.06870033787 | AH82: 0.05072289833 | AI82: 0.08539642169 | AJ82: -0.1378178843 | AK82: -0.1017538305 | AL82: 0.1713114451 | AN82: 0.06663237075 | AO82: 0.3108254722 | AQ82: 0.02172463585 | AR82: 36.43922862 | AS82: 268.2026754 | AT82: 5.826605458
A83: 0.1266666667 | B83: =B81+J82*dt -> 0.1821912314 | C83: =C81+K82*dt -> -0.3618456573 | D83: =D81+B82*dt -> -0.06856234743 | E83: =E81+C82*dt -> -0.05143690287 | F83: -0.05143690287 | H83: 0.08571202052 | I83: 1.82100058 | J83: 1.456524215 | K83: 1.092968583 | L83: 0.08132439559 | N83: =N81+V82*dt -> -0.3654888873 | O83: =O81+W82*dt -> 0.7232940821 | P83: =P81+N82*dt -> 0.1370552354 | Q83: =Q81+O82*dt -> 0.1028575167 | R83: 0.1028575167 | T83: 0.1713587065 | U83: 3.653059868 | V83: -2.921893718 | W83: -2.192574628 | X83: 0.1622139046 | Z83: 0.2570707262 | AA83: 0.2056175829 | AB83: 0.1542944195 | AC83: 0.07457072624 | AE83: -0.0001616161616 | AF83: -0.0001093316554 | AG83: 0.06840073127 | AH83: 0.05132757121 | AI83: 0.08551713048 | AJ83: -0.1372168516 | AK83: -0.1029668483 | AL83: 0.1715535958 | AN83: 0.06728559786 | AO83: 0.3108238981 | AQ83: 0.02178609528 | AR83: 36.88438167 | AS83: 267.4617911 | AT83: 5.826948065
A84: 0.1283333333 | B84: =B83+J83*dt/2 -> 0.1846187718 | C84: =C83+K83*dt/2 -> -0.360024043 | D84: =D83+B84*dt/2 -> -0.06825464948 | E84: =E83+C84*dt/2 -> -0.05203694294 | F84: -0.05203694294 | H84: 0.08582855356 | I84: 1.829496819 | J84: 1.454768319 | K84: 1.109372682 | L84: 0.0811140449 | N84: =N83+V83*dt/2 -> -0.3703587102 | O84: =O83+W83*dt/2 -> 0.7196397911 | P84: =P83+N84*dt/2 -> 0.1364379709 | Q84: =Q83+O84*dt/2 -> 0.1040569163 | R84: 0.1040569163 | T84: 0.171590098 | U84: 3.670103943 | V84: -2.918371264 | W84: -2.225482446 | X84: 0.1617966098 | Z84: 0.2574186507 | AA84: 0.2046926204 | AB84: 0.1560938593 | AC84: 0.07491865074 | AE84: -0.0001616161616 | AF84: -0.0001107702299 | AG84: 0.06809303332 | AH84: 0.05192617271 | AI84: 0.08563287102 | AJ84: -0.1365995871 | AK84: -0.1041676866 | AL84: 0.1717857797 | AN84: 0.06791493116 | AO84: 0.3108255858 | AQ84: 0.02184510663 | AR84: 37.32830571 | AS84: 266.7231279 | AT84: 5.82659517
A85: 0.13 | B85: =B83+J84*dt -> 0.1870404592 | C85: =C83+K84*dt -> -0.3581477483 | D85: =D83+B84*dt -> -0.06794695153 | E85: =E83+C84*dt -> -0.05263698301 | F85: -0.05263698301 | H85: 0.08595021933 | I85: 1.838369385 | J85: 1.453166801 | K85: 1.126014317 | L85: 0.08089232876 | N85: =N83+V84*dt -> -0.3752167915 | O85: =O83+W84*dt -> 0.7158758073 | P85: =P83+N84*dt -> 0.1358207064 | Q85: =Q83+O84*dt -> 0.105256316 | R85: 0.105256316 | T85: 0.1718317676 | U85: 3.687902956 | V85: -2.915158502 | W85: -2.258866778 | X85: 0.1613566556 | Z85: 0.257781986 | AA85: 0.2037676579 | AB85: 0.157893299 | AC85: 0.07528198596 | AE85: -0.0001616161616 | AF85: -0.0001122088043 | AG85: 0.06778533537 | AH85: 0.05252477421 | AI85: 0.08575373809 | AJ85: -0.1359823226 | AK85: -0.1053685248 | AL85: 0.1720282479 | AN85: 0.06857526666 | AO85: 0.310824251 | AQ85: 0.02190681699 | AR85: 37.77100488 | AS85: 265.9869625 | AT85: 5.82692771
A86: 0.1316666667 | B86: =B85+J85*dt/2 -> 0.1894624038 | C86: =C85+K85*dt/2 -> -0.3562710578 | D86: =D85+B86*dt/2 -> -0.06763118085 | E86: =E85+C86*dt/2 -> -0.05323076811 | F86: -0.05323076811 | H86: 0.08606678394 | I86: 1.84686704 | J86: 1.451124302 | K86: 1.142434298 | L86: 0.08067982174 | N86: =N85+V85*dt/2 -> -0.380075389 | O86: =O85+W85*dt/2 -> 0.7121110293 | P86: =P85+N86*dt/2 -> 0.1351872474 | Q86: =Q85+O86*dt/2 -> 0.1064431677 | R86: 0.1064431677 | T86: 0.1720631855 | U86: 3.704949872 | V86: -2.9110611 | W86: -2.291806455 | X86: 0.1609351766 | Z86: 0.2581299685 | AA86: 0.2028184283 | AB86: 0.1596739358 | AC86: 0.07562996847 | AE86: -0.0001616161616 | AF86: -0.0001136473787 | AG86: 0.06746956469 | AH86: 0.05311712073 | AI86: 0.08586949793 | AJ86: -0.1353488636 | AK86: -0.1065568151 | AL86: 0.1722604705 | AN86: 0.06921069478 | AO86: 0.3108256931 | AQ86: 0.02196600138 | AR86: 38.21248426 | AS86: 265.2535654 | AT86: 5.826560184
A87: 0.1333333333 | B87: =B85+J86*dt -> 0.1918775402 | C87: =C85+K86*dt -> -0.354339634 | D87: =D85+B86*dt -> -0.06731541018 | E87: =E85+C86*dt -> -0.05382455321 | F87: -0.05382455321 | H87: 0.08618843876 | I87: 1.85573792 | J87: 1.449230682 | K87: 1.159091739 | L87: 0.08045610228 | N87: =N85+V86*dt -> -0.3849203285 | O87: =O85+W86*dt -> 0.7082364525 | P87: =P85+N86*dt -> 0.1345537884 | Q87: =Q85+O86*dt -> 0.1076300194 | R87: 0.1076300194 | T87: 0.172304797 | U87: 3.722745504 | V87: -2.90726236 | W87: -2.325222496 | X87: 0.1604913454 | Z87: 0.2584932347 | AA87: 0.2018691986 | AB87: 0.1614545726 | AC87: 0.07599323467 | AE87: -0.0001616161616 | AF87: -0.0001150859531 | AG87: 0.06715379402 | AH87: 0.05370946725 | AI87: 0.08599034204 | AJ87: -0.1347154046 | AK87: -0.1077451054 | AL87: 0.1725028926 | AN87: 0.06987715776 | AO87: 0.3108246054 | AQ87: 0.02202787037 | AR87: 38.65274889 | AS87: 264.5232032 | AT87: 5.826882829
A88: 0.135 | B88: =B87+J87*dt/2 -> 0.1942929246 | C88: =C87+K87*dt/2 -> -0.3524078145 | D88: =D87+B88*dt/2 -> -0.06699158864 | E88: =E87+C88*dt/2 -> -0.05441189956 | F88: -0.05441189956 | H88: 0.08630485364 | I88: 1.864223722 | J88: 1.446892276 | K88: 1.175513857 | L88: 0.08024176959 | N88: =N87+V87*dt/2 -> -0.3897657658 | O88: =O87+W87*dt/2 -> 0.7043610816 | P88: =P87+N88*dt/2 -> 0.1339041788 | Q88: =Q87+O88*dt/2 -> 0.1088039545 | R88: 0.1088039545 | T88: 0.1725358793 | U88: 3.739768641 | V88: -2.902571346 | W88: -2.358166463 | X88: 0.1600663457 | Z88: 0.2588407318 | AA88: 0.2008957675 | AB88: 0.1632158541 | AC88: 0.07634073176 | AE88: -0.0001616161616 | AF88: -0.0001165245275 | AG88: 0.06682997248 | AH88: 0.05429537504 | AI88: 0.0861059404 | AJ88: -0.134065795 | AK88: -0.1089204791 | AL88: 0.1727347914 | AN88: 0.07051767864 | AO88: 0.310825794 | AQ88: 0.0220871351 | AR88: 39.09180472 | AS88: 263.7961355 | AT88: 5.826500883
A89: 0.1366666667 | B89: =B87+J88*dt -> 0.1967005144 | C89: =C87+K88*dt -> -0.3504212545 | D89: =D87+B88*dt -> -0.0666677671 | E89: =E87+C88*dt -> -0.05499924592 | F89: -0.05499924592 | H89: 0.08642631672 | I89: 1.873079682 | J89: 1.444697427 | K89: 1.192173159 | L89: 0.08001638632 | N89: =N87+V88*dt -> -0.3945955664 | O89: =O87+W88*dt -> 0.7003758976 | P89: =P87+N88*dt -> 0.1332545692 | Q89: =Q87+O88*dt -> 0.1099778897 | R89: 0.1099778897 | T89: 0.1727770715 | U89: 3.757534343 | V89: -2.89816832 | W89: -2.391586236 | X89: 0.1596193185 | Z89: 0.259203387 | AA89: 0.1999223363 | AB89: 0.1649771356 | AC89: 0.076703387 | AE89: -0.0001616161616 | AF89: -0.0001179631019 | AG89: 0.06650615094 | AH89: 0.05488128282 | AI89: 0.08622658126 | AJ89: -0.1334161854 | AK89: -0.1100958528 | AL89: 0.1729768057 | AN89: 0.07118925588 | AO89: 0.3108249607 | AQ89: 0.02214906992 | AR89: 39.52965762 | AS89: 263.0726185 | AT89: 5.826813821
A90: 0.1383333333 | B90: =B89+J89*dt/2 -> 0.1991083435 | C90: =C89+K89*dt/2 -> -0.3484342992 | D90: =D89+B90*dt/2 -> -0.06633591986 | E90: =E89+C90*dt/2 -> -0.05557996975 | F90: -0.05557996975 | H90: 0.08654240175 | I90: 1.881540446 | J90: 1.442054408 | K90: 1.208583275 | L90: 0.07980056899 | N90: =N89+V89*dt/2 -> -0.3994258469 | O90: =O89+W89*dt/2 -> 0.6963899205 | P90: =P89+N90*dt/2 -> 0.1325888595 | Q90: =Q89+O90*dt/2 -> 0.1111385395 | R90: 0.1111385395 | T90: 0.1730074583 | U90: 3.77450725 | V90: -2.892866232 | W90: -2.424506124 | X90: 0.1591914824 | Z90: 0.2595498587 | AA90: 0.1989247793 | AB90: 0.1667185093 | AC90: 0.07704985875 | AE90: -0.0001616161616 | AF90: -0.0001194016763 | AG90: 0.0661743037 | AH90: 0.05546056808 | AI90: 0.08634183853 | AJ90: -0.1327504756 | AK90: -0.1112579412 | AL90: 0.1732080202 | AN90: 0.07183383687 | AO90: 0.3108258882 | AQ90: 0.02220832189 | AR90: 39.96631439 | AS90: 262.3529014 | AT90: 5.826417683
A91: 0.14 | B91: =B89+J90*dt -> 0.2015073624 | C91: =C89+K90*dt -> -0.3463926436 | D91: =D89+B90*dt -> -0.06600407262 | E91: =E89+C90*dt -> -0.05616069359 | F91: -0.05616069359 | H91: 0.0866634935 | I91: 1.890368342 | J91: 1.439549808 | K91: 1.225230109 | L91: 0.07957387146 | N91: =N89+V90*dt -> -0.4042384538 | O91: =O89+W90*dt -> 0.6922942105 | P91: =P89+N90*dt -> 0.1319231497 | Q91: =Q89+O90*dt -> 0.1122991894 | R91: 0.1122991894 | T91: 0.1732478727 | U91: 3.792216654 | V91: -2.887841821 | W91: -2.457900886 | X91: 0.1587419604 | Z91: 0.2599113648 | AA91: 0.1979272224 | AB91: 0.168459883 | AC91: 0.07741136475 | AE91: -0.0001616161616 | AF91: -0.0001208402508 | AG91: 0.06584245646 | AH91: 0.05603985333 | AI91: 0.0864620971 | AJ91: -0.1320847659 | AK91: -0.1124200297 | AL91: 0.1734492677 | AN91: 0.07250948465 | AO91: 0.3108253165 | AQ91: 0.02227022932 | AR91: 40.40178172 | AS91: 261.63723 | AT91: 5.82672111
A92: 0.1416666667 | B92: =B91+J91*dt/2 -> 0.2039066121 | C92: =C91+K91*dt/2 -> -0.3443505934 | D92: =D91+B92*dt/2 -> -0.06566422827 | E92: =E91+C92*dt/2 -> -0.05673461124 | F92: -0.05673461124 | H92: 0.08677906998 | I92: 1.898790987 | J92: 1.436594088 | K92: 1.241613723 | L92: 0.07935692025 | N92: =N91+V91*dt/2 -> -0.4090515235 | O92: =O91+W91*dt/2 -> 0.688197709 | P92: =P91+N92*dt/2 -> 0.1312413972 | Q92: =Q91+O92*dt/2 -> 0.1134461856 | R92: 0.1134461856 | T92: 0.173477207 | U92: 3.809113092 | V92: -2.881912432 | W92: -2.49076761 | X92: 0.1583119912 | Z92: 0.2602562755 | AA92: 0.1969056255 | AB92: 0.1701807968 | AC92: 0.07775627552 | AE92: -0.0001616161616 | AF92: -0.0001222788252 | AG92: 0.06550261211 | AH92: 0.05661233242 | AI92: 0.08657683509 | AJ92: -0.1314030134 | AK92: -0.1135684644 | AL92: 0.1736794404 | AN92: 0.07315706444 | AO92: 0.3108259759 | AQ92: 0.02232937517 | AR92: 40.8360672 | AS92: 260.9258425 | AT92: 5.826311028
A93: 0.1433333333 | B93: =B91+J92*dt -> 0.2062960094 | C93: =C91+K92*dt -> -0.3422539312 | D93: =D91+B92*dt -> -0.06532438391 | E93: =E91+C92*dt -> -0.0573085289 | F93: -0.0573085289 | H93: 0.0868996123 | I93: 1.907577783 | J93: 1.433771832 | K93: 1.258233417 | L93: 0.07912926736 | N93: =N91+V92*dt -> -0.4138448286 | O93: =O91+W92*dt -> 0.6839916518 | P93: =P91+N92*dt -> 0.1305596447 | Q93: =Q91+O92*dt -> 0.1145931818 | R93: 0.1145931818 | T93: 0.1737164878 | U93: 3.826740046 | V93: -2.87625078 | W93: -2.524107928 | X93: 0.1578606941 | Z93: 0.2606160985 | AA93: 0.1958840286 | AB93: 0.1719017107 | AC93: 0.07811609847 | AE93: -0.0001616161616 | AF93: -0.0001237173996 | AG93: 0.06516276775 | AH93: 0.0571848115 | AI93: 0.08669653377 | AJ93: -0.1307212608 | AK93: -0.1147168992 | AL93: 0.1739195647 | AN93: 0.07383571056 | AO93: 0.310825672 | AQ93: 0.02239116177 | AR93: 41.2691783 | AS93: 260.2189744 | AT93: 5.826605151
A94: 0.145 | B94: =B93+J93*dt/2 -> 0.2086856291 | C94: =C93+K93*dt/2 -> -0.3401568755 | D94: =D93+B94*dt/2 -> -0.06497657453 | E94: =E93+C94*dt/2 -> -0.05787545702 | F94: -0.05787545702 | H94: 0.08701450318 | I94: 1.915949351 | J94: 1.430495951 | K94: 1.274575714 | L94: 0.07891154211 | N94: =N93+V93*dt/2 -> -0.4186385799 | O94: =O93+W93*dt/2 -> 0.6797848053 | P94: =P93+N94*dt/2 -> 0.1298619137 | Q94: =Q93+O94*dt/2 -> 0.1157261565 | R94: 0.1157261565 | T94: 0.1739444162 | U94: 3.843534022 | V94: -2.869679124 | W94: -2.556891765 | X94: 0.1574293136 | Z94: 0.2609589176 | AA94: 0.1948384882 | AB94: 0.1736016135 | AC94: 0.07845891763 | AE94: -0.0001616161616 | AF94: -0.000125155974 | AG94: 0.06481495837 | AH94: 0.05775030105 | AI94: 0.08681057597 | AJ94: -0.1300235298 | AK94: -0.1158513124 | AL94: 0.1741483417 | AN94: 0.07448520125 | AO94: 0.3108260569 | AQ94: 0.022450108 | AR94: 41.70112337 | AS94: 259.5168533 | AT94: 5.826181385
A95: 0.1466666667 | B95: =B93+J94*dt -> 0.2110643292 | C95: =C93+K94*dt -> -0.3380053455 | D95: =D93+B94*dt -> -0.06462876515 | E95: =E93+C94*dt -> -0.05844238515 | F95: -0.05844238515 | H95: 0.08713431968 | I95: 1.924682138 | J95: 1.427348767 | K95: 1.291153294 | L95: 0.07868330138 | N95: =N93+V94*dt -> -0.4234104257 | O95: =O93+W94*dt -> 0.6754686793 | P95: =P93+N94*dt -> 0.1291641827 | Q95: =Q93+O94*dt -> 0.1168591311 | R95: 0.1168591311 | T95: 0.174182211 | U95: 3.861052628 | V95: -2.863365643 | W95: -2.5901476 | X95: 0.1569769783 | Z95: 0.2613165289 | AA95: 0.1937929479 | AB95: 0.1753015163 | AC95: 0.07881652885 | AE95: -0.0001616161616 | AF95: -0.0001265945484 | AG95: 0.06446714899 | AH95: 0.0583157906 | AI95: 0.08692953889 | AJ95: -0.1293257989 | AK95: -0.1169857257 | AL95: 0.17438699 | AN95: 0.07516574717 | AO95: 0.3108260269 | AQ95: 0.02251168023 | AR95: 42.13191065 | AS95: 258.8197043 | AT95: 5.82646642
A96: 0.1483333333 | B96: =B95+J95*dt/2 -> 0.2134432438 | C96: =C95+K95*dt/2 -> -0.3358534233 | D96: =D95+B96*dt/2 -> -0.06427302641 | E96: =E95+C96*dt/2 -> -0.05900214085 | F96: -0.05900214085 | H96: 0.08724834984 | I96: 1.932989812 | J96: 1.423745904 | K96: 1.307439181 | L96: 0.07846517021 | N96: =N95+V95*dt/2 -> -0.4281827017 | O96: =O95+W95*dt/2 -> 0.6711517666 | P96: =P95+N96*dt/2 -> 0.1284505449 | Q96: =Q95+O96*dt/2 -> 0.1179777174 | R96: 0.1179777174 | T96: 0.1744083836 | U96: 3.877718428 | V96: -2.856138038 | W96: -2.622818277 | X96: 0.1565449246 | Z96: 0.2616567315 | AA96: 0.1927235713 | AB96: 0.1769798583 | AC96: 0.07915673154 | AE96: -0.0001616161616 | AF96: -0.0001280331228 | AG96: 0.06411141025 | AH96: 0.05887410773 | AI96: 0.0870427107 | AJ96: -0.128612161 | AK96: -0.1181057505 | AL96: 0.1746140208 | AN96: 0.0758160366 | AO96: 0.3108261314 | AQ96: 0.02257033338 | AR96: 42.56154919 | AS96: 258.1277444 | AT96: 5.826029247
A97: 0.15 | B97: =B95+J96*dt -> 0.2158101489 | C97: =C95+K96*dt -> -0.3336472149 | D97: =D95+B96*dt -> -0.06391728767 | E97: =E95+C96*dt -> -0.05956189656 | F97: -0.05956189656 | H97: 0.08736726609 | I97: 1.941655822 | J97: 1.420267161 | K97: 1.323959412 | L97: 0.078236717 | N97: =N95+V96*dt -> -0.4329308858 | O97: =O95+W96*dt -> 0.6667259517 | P97: =P95+N96*dt -> 0.127736907 | Q97: =Q95+O96*dt -> 0.1190963037 | R97: 0.1190963037 | T97: 0.1746443442 | U97: 3.895103077 | V97: -2.849159427 | W97: -2.655959063 | X97: 0.1560923037 | Z97: 0.2620116083 | AA97: 0.1916541947 | AB97: 0.1786582002 | AC97: 0.07951160827 | AE97: -0.0001616161616 | AF97: -0.0001294716972 | AG97: 0.06375567151 | AH97: 0.05943242486 | AI97: 0.08716076396 | AJ97: -0.1278985232 | AK97: -0.1192257754 | AL97: 0.1748508443 | AN97: 0.07649735978 | AO97: 0.3108263805 | AQ97: 0.02263159776 | AR97: 42.99004794 | AS97: 257.4411882 | AT97: 5.826305418
A98: 0.1516666667 | B98: =B97+J97*dt/2 -> 0.2181772609 | C98: =C97+K97*dt/2 -> -0.3314406158 | D98: =D97+B98*dt/2 -> -0.0635536589 | E98: =E97+C98*dt/2 -> -0.06011429759 | F98: -0.06011429759 | H98: 0.08748026254 | I98: 1.949886943 | J98: 1.416331146 | K98: 1.340173562 | L98: 0.07801855559 | N98: =N97+V97*dt/2 -> -0.4376794848 | O98: =O97+W97*dt/2 -> 0.6622993532 | P98: =P97+N98*dt/2 -> 0.1270074412 | Q98: =Q97+O98*dt/2 -> 0.1202001359 | R98: 0.1202001359 | T98: 0.1748684157 | U98: 3.911615304 | V98: -2.841263493 | W98: -2.688485829 | X98: 0.1556603299 | Z98: 0.262348676 | AA98: 0.1905611001 | AB98: 0.1803144335 | AC98: 0.07984867605 | AE98: -0.0001616161616 | AF98: -0.0001309102717 | AG98: 0.06339204274 | AH98: 0.05998338731 | AI98: 0.08727289291 | AJ98: -0.1271690574 | AK98: -0.1203310462 | AL98: 0.1750757831 | AN98: 0.07714731391 | AO98: 0.3108261994 | AQ98: 0.02268986456 | AR98: 43.41741666 | AS98: 256.7602425 | AT98: 5.825855127
A99: 0.1533333333 | B99: =B97+J98*dt -> 0.2205312527 | C99: =C97+K98*dt -> -0.3291799697 | D99: =D97+B98*dt -> -0.06319003013 | E99: =E97+C98*dt -> -0.06066669861 | F99: -0.06066669861 | H99: 0.08759810631 | I99: 1.958473572 | J99: 1.412514865 | K99: 1.356620982 | L99: 0.07779027224 | N99: =N97+V98*dt -> -0.4424017641 | O99: =O97+W98*dt -> 0.6577643322 | P99: =P97+N98*dt -> 0.1262779754 | Q99: =Q97+O98*dt -> 0.1213039682 | R99: 0.1213039682 | T99: 0.1751021981 | U99: 3.928840709 | V99: -2.833607755 | W99: -2.721480554 | X99: 0.1552081897 | Z99: 0.2627003021 | AA99: 0.1894680056 | AB99: 0.1819706668 | AC99: 0.08020030208 | AE99: -0.0001616161616 | AF99: -0.0001323488461 | AG99: 0.06302841397 | AH99: 0.06053434977 | AI99: 0.0873898648 | AJ99: -0.1264395916 | AK99: -0.121436317 | AL99: 0.1753104373 | AN99: 0.07782827028 | AO99: 0.3108267322 | AQ99: 0.02275072779 | AR99: 43.84366498 | AS99: 256.0851116 | AT99: 5.826122664
A100: 0.155 | B100: =B99+J99*dt/2 -> 0.2228854442 | C100: =C99+K99*dt/2 -> -0.3269189347 | D100: =D99+B100*dt/2 -> -0.06281855439 | E100: =E99+C100*dt/2 -> -0.0612115635 | F100: -0.0612115635 | H100: 0.08770989843 | I100: 1.966615653 | J100: 1.408240182 | K100: 1.37274787 | L100: 0.07757246294 | N100: =N99+V99*dt/2 -> -0.4471244437 | O100: =O99+W99*dt/2 -> 0.6532285313 | P100: =P99+N100*dt/2 -> 0.125532768 | Q100: =Q99+O100*dt/2 -> 0.1223926824 | R100: 0.1223926824 | T100: 0.1753238277 | U100: 3.945174316 | V100: -2.825032431 | W100: -2.753832266 | X100: 0.1547770622 | Z100: 0.2630337236 | AA100: 0.1883513224 | AB100: 0.1836042459 | AC100: 0.08053372365 | AE100: -0.0001616161616 | AF100: -0.0001337874205 | AG100: 0.06265693823 | AH100: 0.06107777608 | AI100: 0.0875007808 | AJ100: -0.1256943842 | AK100: -0.1225264698 | AL100: 0.1755329429 | AN100: 0.0784767358 | AO100: 0.310826261 | AQ100: 0.02280851529 | AR100: 44.2688033 | AS100: 255.4159919 | AT100: 5.825659557
A101: 0.1566666667 | B101: =B99+J100*dt -> 0.2252253867 | C101: =C99+K100*dt -> -0.3246041434 | D101: =D99+B100*dt -> -0.06244707865 | E101: =E99+C100*dt -> -0.06175642839 | F101: -0.06175642839 | H101: 0.08782649988 | I101: 1.975110473 | J101: 1.40408104 | K101: 1.38910684 | L101: 0.0773447379 | N101: =N99+V100*dt -> -0.4518185389 | O101: =O99+W100*dt -> 0.6485848913 | P101: =P99+N100*dt -> 0.1247875606 | Q101: =Q99+O100*dt -> 0.1234813966 | R101: 0.1234813966 | T101: 0.1755550928 | U101: 3.962215544 | V101: -2.816688888 | W101: -2.786649551 | X101: 0.1543261813 | Z101: 0.26338159 | AA101: 0.1872346393 | AB101: 0.185237825 | AC101: 0.08088159002 | AE101: -0.0001616161616 | AF101: -0.0001352259949 | AG101: 0.06228546249 | AH101: 0.0616212024 | AI101: 0.087616502 | AJ101: -0.1249491768 | AK101: -0.1236166226 | AL101: 0.175765088 | AN101: 0.07915616242 | AO101: 0.3108270816 | AQ101: 0.02286888445 | AR101: 44.6928419 | AS101: 254.7530777 | AT101: 5.825918697
A102: 0.1583333333 | B102: =B101+J101*dt/2 -> 0.2275655217 | C102: =C101+K101*dt/2 -> -0.3222889654 | D102: =D101+B102*dt/2 -> -0.06206780278 | E102: =E101+C102*dt/2 -> -0.06229357667 | F102: -0.06229357667 | H102: 0.08793691965 | I102: 1.983151218 | J102: 1.399462837 | K102: 1.405130784 | L102: 0.07712766884 | N102: =N101+V101*dt/2 -> -0.4565130203 | O102: =O101+W101*dt/2 -> 0.6439404754 | P102: =P101+N102*dt/2 -> 0.1240267056 | Q102: =Q101+O102*dt/2 -> 0.1245546308 | R102: 0.1245546308 | T102: 0.175773945 | U102: 3.978345864 | V102: -2.807424437 | W102: -2.818794751 | X102: 0.153896678 | Z102: 0.2637108619 | AA102: 0.1860945084 | AB102: 0.1868482074 | AC102: 0.08121086186 | AE102: -0.0001616161616 | AF102: -0.0001366645693 | AG102: 0.06190618662 | AH102: 0.0621569121 | AI102: 0.08772603755 | AJ102: -0.1241883217 | AK102: -0.1246912953 | AL102: 0.1759848243 | AN102: 0.07980196942 | AO102: 0.3108263162 | AQ102: 0.02292610019 | AR102: 45.11579182 | AS102: 254.0965554 | AT102: 5.825443086
A103: 0.16 | B103: =B101+J102*dt -> 0.2298902628 | C103: =C101+K102*dt -> -0.3199203741 | D103: =D101+B102*dt -> -0.06168852691 | E103: =E101+C102*dt -> -0.06283072495 | F103: -0.06283072495 | H103: 0.08805211156 | I103: 1.991541992 | J103: 1.394956173 | K103: 1.421385515 | L103: 0.07690089575 | N103: =N101+V102*dt -> -0.4611766203 | O103: =O101+W102*dt -> 0.6391889088 | P103: =P101+N102*dt -> 0.1232658506 | Q103: =Q101+O102*dt -> 0.1256278649 | R103: 0.1256278649 | T103: 0.1760023589 | U103: 3.995178369 | V103: -2.798383739 | W103: -2.851402927 | X103: 0.1534478451 | Z103: 0.2640544675 | AA103: 0.1849543775 | AB103: 0.1884585898 | AC103: 0.08155446753 | AE103: -0.0001616161616 | AF103: -0.0001381031437 | AG103: 0.06152691075 | AH103: 0.0626926218 | AI103: 0.08784034139 | AJ103: -0.1234274667 | AK103: -0.125765968 | AL103: 0.1762141261 | AN103: 0.08047868721 | AO103: 0.310827428 | AQ103: 0.02298588286 | AR103: 45.53766394 | AS103: 253.4466092 | AT103: 5.825694071
A104: 0.1616666667 | B104: =B103+J103*dt/2 -> 0.2322151898 | C104: =C103+K103*dt/2 -> -0.3175513983 | D104: =D103+B104*dt/2 -> -0.0613015016 | E104: =E103+C104*dt/2 -> -0.06335997728 | F104: -0.06335997728 | H104: 0.08816099375 | I104: 1.999469311 | J104: 1.389990261 | K104: 1.437290716 | L104: 0.07668495992 | N104: =N103+V103*dt/2 -> -0.4658405932 | O104: =O103+W103*dt/2 -> 0.6344365706 | P104: =P103+N104*dt/2 -> 0.1224894496 | Q104: =Q103+O104*dt/2 -> 0.1266852592 | R104: 0.1266852592 | T104: 0.1762181039 | U104: 4.011081149 | V104: -2.788421758 | W104: -2.883309918 | X104: 0.1530207534 | Z104: 0.2643790945 | AA104: 0.1837909512 | AB104: 0.1900452364 | AC104: 0.08187909453 | AE104: -0.0001616161616 | AF104: -0.0001395417181 | AG104: 0.06113988544 | AH104: 0.06322043556 | AI104: 0.08794833178 | AJ104: -0.1226510657 | AK104: -0.1268248009 | AL104: 0.1764307627 | AN104: 0.08112065206 | AO104: 0.3108263654 | AQ104: 0.02304243502 | AR104: 45.95846987 | AS104: 252.8034157 | AT104: 5.825206279
A105: 0.1633333333 | B105: =B103+J104*dt -> 0.2345235637 | C105: =C103+K104*dt -> -0.3151294051 | D105: =D103+B104*dt -> -0.06091447628 | E105: =E103+C104*dt -> -0.06388922961 | F105: -0.06388922961 | H105: 0.08827461175 | I105: 2.007744012 | J105: 1.385132076 | K105: 1.453425316 | L105: 0.07645953664 | N105: =N103+V104*dt -> -0.4704713595 | O105: =O103+W104*dt -> 0.6295778758 | P105: =P103+N104*dt -> 0.1217130486 | Q105: =Q103+O104*dt -> 0.1277426535 | R105: 0.1277426535 | T105: 0.1764433385 | U105: 4.027680802 | V105: -2.778675886 | W105: -2.915677102 | X105: 0.1525747656 | Z105: 0.264717947 | AA105: 0.1826275249 | AB105: 0.1916318831 | AC105: 0.08221794695 | AE105: -0.0001616161616 | AF105: -0.0001409802925 | AG105: 0.06075286012 | AH105: 0.06374824931 | AI105: 0.08806105441 | AJ105: -0.1218746647 | AK105: -0.1278836337 | AL105: 0.1766568925 | AN105: 0.0817934687 | AO105: 0.310827771 | AQ105: 0.02310153946 | AR105: 46.3782211 | AS105: 252.1671495 | AT105: 5.825449355
A106: 0.165 | B106: =B105+J105*dt/2 -> 0.2368321171 | C106: =C105+K105*dt/2 -> -0.3127070296 | D106: =D105+B106*dt/2 -> -0.06051975609 | E106: =E105+C106*dt/2 -> -0.06441040799 | F106: -0.06441040799 | H106: 0.08838179413 | I106: 2.015546036 | J106: 1.379814934 | K106: 1.469195892 | L106: 0.0762451309 | N106: =N105+V105*dt/2 -> -0.475102486 | O106: =O105+W105*dt/2 -> 0.6247184139 | P106: =P105+N106*dt/2 -> 0.1209212111 | Q106: =Q105+O106*dt/2 -> 0.1287838508 | R106: 0.1287838508 | T106: 0.1766556524 | U106: 4.043332229 | V106: -2.768009312 | W106: -2.947314025 | X106: 0.1521508808 | Z106: 0.265037443 | AA106: 0.1814409672 | AB106: 0.1931942588 | AC106: 0.08253744302 | AE106: -0.0001616161616 | AF106: -0.000142418867 | AG106: 0.06035813993 | AH106: 0.06426798912 | AI106: 0.08816733795 | AJ106: -0.1210828273 | AK106: -0.1289262697 | AL106: 0.1768701051 | AN106: 0.08243039696 | AO106: 0.3108264087 | AQ106: 0.023157337 | AR106: 46.7969298 | AS106: 251.5379775 | AT106: 5.824949712
A107: 0.1666666667 | B107: =B105+J106*dt -> 0.2391229468 | C107: =C105+K106*dt -> -0.3102320854 | D107: =D105+B106*dt -> -0.06012503589 | E107: =E105+C106*dt -> -0.06493158637 | F107: -0.06493158637 | H107: 0.08849367689 | I107: 2.023692859 | J107: 1.374601899 | K107: 1.4851944 | L107: 0.07602145847 | N107: =N105+V106*dt -> -0.4796980572 | O107: =O105+W106*dt -> 0.6197534957 | P107: =P105+N106*dt -> 0.1201293736 | Q107: =Q105+O106*dt -> 0.1298250482 | R107: 0.1298250482 | T107: 0.1768773856 | U107: 4.05967535 | V107: -2.757551582 | W107: -2.979408199 | X107: 0.1517085415 | Z107: 0.2653710588 | AA107: 0.1802544095 | AB107: 0.1947566345 | AC107: 0.08287105879 | AE107: -0.0001616161616 | AF107: -0.0001438574414 | AG107: 0.05996341973 | AH107: 0.06478772893 | AI107: 0.08827831855 | AJ107: -0.1202909898 | AK107: -0.1299689056 | AL107: 0.1770927402 | AN107: 0.08309810986 | AO107: 0.3108281099 | AQ107: 0.02321567226 | AR107: 47.21460798 | AS107: 250.9160649 | AT107: 5.825185128
A108: 0.1683333333 | B108: =B107+J107*dt/2 -> 0.2414139499 | C108: =C107+K107*dt/2 -> -0.3077567614 | D108: =D107+B108*dt/2 -> -0.05972267931 | E108: =E107+C108*dt/2 -> -0.06544451431 | F108: -0.06544451431 | H108: 0.08859900043 | I108: 2.03135795 | J108: 1.368930672 | K108: 1.500814425 | L108: 0.07580898259 | N108: =N107+V107*dt/2 -> -0.4842939765 | O108: =O107+W107*dt/2 -> 0.6147878154 | P108: =P107+N108*dt/2 -> 0.119322217 | Q108: =Q107+O108*dt/2 -> 0.1308496945 | R108: 0.1308496945 | T108: 0.177085951 | U108: 4.075052083 | V108: -2.746174687 | W108: -3.010743108 | X108: 0.1512886643 | Z108: 0.2656849475 | AA108: 0.1790448963 | AB108: 0.1962942088 | AC108: 0.08318494747 | AE108: -0.0001616161616 | AF108: -0.0001452960158 | AG108: 0.05956106315 | AH108: 0.06529921829 | AI108: 0.08838273673 | AJ108: -0.1194838332 | AK108: -0.1309949905 | AL108: 0.1773022107 | AN108: 0.08372879938 | AO108: 0.3108264462 | AQ108: 0.0232706251 | AR108: 47.63126836 | AS108: 250.301569 | AT108: 5.824673975
A109: 0.17 | B109: =B107+J108*dt -> 0.243686049 | C109: =C107+K108*dt -> -0.3052293707 | D109: =D107+B108*dt -> -0.05932032272 | E109: =E107+C108*dt -> -0.06595744224 | F109: -0.06595744224 | H109: 0.08870898982 | I109: 2.039365327 | J109: 1.363360117 | K109: 1.516660849 | L109: 0.07558746425 | N109: =N107+V108*dt -> -0.4888519728 | O109: =O107+W108*dt -> 0.6097176853 | P109: =P107+N108*dt -> 0.1185150604 | Q109: =Q107+O108*dt -> 0.1318743409 | R109: 0.1318743409 | T109: 0.1773038672 | U109: 4.091115465 | V109: -2.734999749 | W109: -3.042532188 | X109: 0.1508507811 | Z109: 0.2660128529 | AA109: 0.1778353831 | AB109: 0.1978317831 | AC109: 0.08351285287 | AE109: -0.0001616161616 | AF109: -0.0001467345902 | AG109: 0.05915870656 | AH109: 0.06581070765 | AI109: 0.08849181772 | AJ109: -0.1186766765 | AK109: -0.1320210755 | AL109: 0.1775210351 | AN109: 0.0843901988 | AO109: 0.3108284441 | AQ109: 0.02332810124 | AR109: 48.04692347 | AS109: 249.6946461 | AT109: 5.824901983
A110: 0.1716666667 | B110: =B109+J109*dt/2 -> 0.2459583159 | C110: =C109+K109*dt/2 -> -0.3027016026 | D110: =D109+B110*dt/2 -> -0.0589103922 | E110: =E109+C110*dt/2 -> -0.06646194491 | F110: -0.06646194491 | H110: 0.08881229887 | I110: 2.046882101 | J110: 1.357332615 | K110: 1.532114391 | L110: 0.0753773198 | N110: =N109+V109*dt/2 -> -0.4934103058 | O110: =O109+W109*dt/2 -> 0.6046467984 | P110: =P109+N110*dt/2 -> 0.1176927099 | Q110: =Q109+O110*dt/2 -> 0.1328820855 | R110: 0.1328820855 | T110: 0.1775083734 | U110: 4.106194661 | V110: -2.722908141 | W110: -3.073533121 | X110: 0.1504357157 | Z110: 0.2663206679 | AA110: 0.1766031021 | AB110: 0.1993440305 | AC110: 0.08382066787 | AE110: -0.0001616161616 | AF110: -0.0001481731646 | AG110: 0.05874877604 | AH110: 0.06631377175 | AI110: 0.08859421544 | AJ110: -0.117854326 | AK110: -0.1330302587 | AL110: 0.1777264524 | AN110: 0.08501344279 | AO110: 0.3108264783 | AQ110: 0.02338212039 | AR110: 48.46158651 | AS110: 249.0954443 | AT110: 5.824379667
A111: 0.1733333333 | B111: =B109+J110*dt -> 0.2482104911 | C111: =C109+K110*dt -> -0.3001223227 | D111: =D109+B110*dt -> -0.05850046167 | E111: =E109+C110*dt -> -0.06696644759 | F111: -0.06696644759 | H111: 0.0889202402 | I111: 2.054738716 | J111: 1.351402539 | K111: 1.547792741 | L111: 0.07515835988 | N111: =N109+V110*dt -> -0.4979283333 | O111: =O109+W110*dt -> 0.5994725749 | P111: =P109+N110*dt -> 0.1168703593 | Q111: =Q109+O110*dt -> 0.1338898302 | R111: 0.1338898302 | T111: 0.1777221639 | U111: 4.121955602 | V111: -2.711011975 | W111: -3.104985032 | X111: 0.1500030983 | Z111: 0.2666423995 | AA111: 0.175370821 | AB111: 0.2008562778 | AC111: 0.08414239947 | AE111: -0.0001616161616 | AF111: -0.000149611739 | AG111: 0.05833884551 | AH111: 0.06681683585 | AI111: 0.08870124265 | AJ111: -0.1170319755 | AK111: -0.134039442 | AL111: 0.1779411568 | AN111: 0.085667315 | AO111: 0.3108287732 | AQ111: 0.02343864857 | AR111: 48.87527051 | AS111: 248.5041108 | AT111: 5.824600522
A112: 0.175 | B112: =B111+J111*dt/2 -> 0.2504628286 | C112: =C111+K111*dt/2 -> -0.2975426682 | D112: =D111+B112*dt/2 -> -0.05808302362 | E112: =E111+C112*dt/2 -> -0.06746235203 | F112: -0.06746235203 | H112: 0.08902138268 | I112: 2.062096047 | J112: 1.345017234 | K112: 1.563063897 | L112: 0.07495094925 | N112: =N111+V111*dt/2 -> -0.5024466866 | O112: =O111+W111*dt/2 -> 0.5942975999 | P112: =P111+N112*dt/2 -> 0.1160329482 | Q112: =Q111+O112*dt/2 -> 0.1348803262 | R112: 0.1348803262 | T112: 0.1779223074 | U112: 4.136714944 | V112: -2.698202589 | W112: -3.135620085 | X112: 0.1495936506 | Z112: 0.2669436852 | AA112: 0.1741159718 | AB112: 0.2023426782 | AC112: 0.08444368523 | AE112: -0.0001616161616 | AF112: -0.0001510503134 | AG112: 0.05792140746 | AH112: 0.06731130172 | AI112: 0.08880146835 | AJ112: -0.1161945644 | AK112: -0.1350313765 | AL112: 0.1781422169 | AN112: 0.0862819053 | AO112: 0.3108265051 | AQ112: 0.02349164629 | AR112: 49.28798913 | AS112: 247.9207852 | AT112: 5.824067394
A113: 0.1766666667 | B113: =B111+J112*dt -> 0.2526938819 | C113: =C111+K112*dt -> -0.2949121097 | D113: =D111+B112*dt -> -0.05766558558 | E113: =E111+C112*dt -> -0.06795825648 | F113: -0.06795825648 | H113: 0.08912712485 | I113: 2.069790845 | J113: 1.338726291 | K113: 1.578558222 | L113: 0.07473495212 | N113: =N111+V112*dt -> -0.5069223419 | O113: =O111+W112*dt -> 0.589020508 | P113: =P111+N112*dt -> 0.1151955371 | Q113: =Q111+O112*dt -> 0.1358708222 | R113: 0.1358708222 | T113: 0.1781316706 | U113: 4.15215127 | V113: -2.685582498 | W113: -3.16670283 | X113: 0.1491671086 | Z113: 0.2672587904 | AA113: 0.1728611226 | AB113: 0.2038290787 | AC113: 0.08475879038 | AE113: -0.0001616161616 | AF113: -0.0001524888879 | AG113: 0.05750396941 | AH113: 0.06780576759 | AI113: 0.08890629121 | AJ113: -0.1153571532 | AK113: -0.1360233111 | AL113: 0.1783524992 | AN113: 0.08692703582 | AO113: 0.3108290966 | AQ113: 0.02354713896 | AR113: 49.69975586 | AS113: 247.3456059 | AT113: 5.824281352
A114: 0.1783333333 | B114: =B113+J113*dt/2 -> 0.2549250923 | C114: =C113+K113*dt/2 -> -0.2922811794 | D114: =D113+B114*dt/2 -> -0.05724071042 | E114: =E113+C114*dt/2 -> -0.06844539178 | F114: -0.06844539178 | H114: 0.08922595242 | I114: 2.076977884 | J114: 1.331982314 | K114: 1.593631151 | L114: 0.07453067735 | N114: =N113+V113*dt/2 -> -0.5113983128 | O114: =O113+W113*dt/2 -> 0.5837426699 | P114: =P113+N114*dt/2 -> 0.1143432065 | Q114: =Q113+O114*dt/2 -> 0.1368437267 | R114: 0.1368437267 | T114: 0.1783271556 | U114: 4.166568994 | V114: -2.67205359 | W114: -3.196940223 | X114: 0.1487640835 | Z114: 0.2675531026 | AA114: 0.171583917 | AB114: 0.2052891184 | AC114: 0.08505310259 | AE114: -0.0001616161616 | AF114: -0.0001539274623 | AG114: 0.05707909426 | AH114: 0.06829146432 | AI114: 0.08900419709 | AJ114: -0.1145048227 | AK114: -0.1369976541 | AL114: 0.1785489055 | AN114: 0.08753176616 | AO114: 0.310826527 | AQ114: 0.02359902893 | AR114: 50.11058481 | AS114: 246.7787038 | AT114: 5.823737772
A115: 0.18 | B115: =B113+J114*dt -> 0.2571338229 | C115: =C113+K114*dt -> -0.2896000059 | D115: =D113+B114*dt -> -0.05681583527 | E115: =E113+C114*dt -> -0.06893252708 | F115: -0.06893252708 | H115: 0.08932934807 | I115: 2.084500089 | J115: 1.325329814 | K115: 1.608925575 | L115: 0.0743180463 | N115: =N113+V114*dt -> -0.5158291872 | O115: =O113+W114*dt -> 0.5783640406 | P115: =P113+N114*dt -> 0.113490876 | Q115: =Q113+O114*dt -> 0.1378166311 | R115: 0.1378166311 | T115: 0.1785317976 | U115: 4.181659085 | V115: -2.658708189 | W115: -3.227621952 | X115: 0.1483444243 | Z115: 0.26786114 | AA115: 0.1703067113 | AB115: 0.2067491582 | AC115: 0.08536113999 | AE115: -0.0001616161616 | AF115: -0.0001553660367 | AG115: 0.05665421911 | AH115: 0.06877716104 | AI115: 0.08910666879 | AJ115: -0.1136524922 | AK115: -0.1379719971 | AL115: 0.1787544712 | AN115: 0.08816694308 | AO115: 0.3108294137 | AQ115: 0.02365339996 | AR115: 50.52048989 | AS115: 246.2202093 | AT115: 5.823945089
A116: 0.1816666667 | B116: =B115+J115*dt/2 -> 0.2593427059 | C116: =C115+K115*dt/2 -> -0.2869184633 | D116: =D115+B116*dt/2 -> -0.05638359743 | E116: =E115+C116*dt/2 -> -0.06941072452 | F116: -0.06941072452 | H116: 0.0894257163 | I116: 2.091506272 | J116: 1.318226948 | K116: 1.62378453 | L116: 0.07411730805 | N116: =N115+V115*dt/2 -> -0.5202603676 | O116: =O115+W115*dt/2 -> 0.5729846706 | P116: =P115+N116*dt/2 -> 0.1126237754 | Q116: =Q115+O116*dt/2 -> 0.1387716056 | R116: 0.1387716056 | T116: 0.1787223358 | U116: 4.195713999 | V116: -2.644459322 | W116: -3.2574301 | X116: 0.1479486239 | Z116: 0.2681480461 | AA116: 0.1690073728 | AB116: 0.2081823301 | AC116: 0.0856480461 | AE116: -0.0001616161616 | AF116: -0.0001568046111 | AG116: 0.05622198126 | AH116: 0.0692539199 | AI116: 0.08920211096 | AJ116: -0.1127853916 | AK116: -0.1389284102 | AL116: 0.1789459351 | AN116: 0.08876061239 | AO116: 0.3108265443 | AQ116: 0.02370409742 | AR116: 50.92948562 | AS116: 245.670245 | AT116: 5.82339142
A117: 0.1833333333 | B117: =B115+J116*dt -> 0.2615279127 | C117: =C115+K116*dt -> -0.2841873908 | D117: =D115+B116*dt -> -0.05595135958 | E117: =E115+C116*dt -> -0.06988892195 | F117: -0.06988892195 | H117: 0.08952662202 | I117: 2.098845396 | J117: 1.31121285 | K117: 1.638863282 | L117: 0.07390844416 | N117: =N115+V116*dt -> -0.5246440516 | O117: =O115+W116*dt -> 0.5675059402 | P117: =P115+N116*dt -> 0.1117566748 | Q117: =Q115+O116*dt -> 0.13972658 | R117: 0.13972658 | T117: 0.1789219705 | U117: 4.210436816 | V117: -2.63038853 | W117: -3.287679176 | X117: 0.1475366502 | Z117: 0.2684485862 | AA117: 0.1677080344 | AB117: 0.209615502 | AC117: 0.08594858625 | AE117: -0.0001616161616 | AF117: -0.0001582431855 | AG117: 0.05578974342 | AH117: 0.06973067877 | AI117: 0.08930208862 | AJ117: -0.111918291 | AK117: -0.1398848232 | AL117: 0.1791464976 | AN117: 0.08938462968 | AO117: 0.310829724 | AQ117: 0.02375726226 | AR117: 51.33758633 | AS117: 245.1289332 | AT117: 5.823592355
A118: 0.185 | B118: =B117+J117*dt/2 -> 0.2637132675 | C118: =C117+K117*dt/2 -> -0.281455952 | D118: =D117+B118*dt/2 -> -0.05551183747 | E118: =E117+C118*dt/2 -> -0.07035801521 | F118: -0.07035801521 | H118: 0.08962039056 | I118: 2.105660459 | J118: 1.303751522 | K118: 1.653492649 | L118: 0.07371164055 | N118: =N117+V117*dt/2 -> -0.5290280325 | O118: =O117+W117*dt/2 -> 0.5620264749 | P118: =P117+N118*dt/2 -> 0.1108749614 | Q118: =Q117+O118*dt/2 -> 0.1406632908 | R118: 0.1406632908 | T118: 0.1791072819 | U118: 4.22410833 | V118: -2.615420563 | W118: -3.317026751 | X118: 0.1471488712 | Z118: 0.2687276659 | AA118: 0.1663867989 | AB118: 0.211021306 | AC118: 0.08622766592 | AE118: -0.0001616161616 | AF118: -0.0001596817599 | AG118: 0.05535022131 | AH118: 0.07019833345 | AI118: 0.08939492725 | AJ118: -0.1110365776 | AK118: -0.1408229726 | AL118: 0.1793327387 | AN118: 0.08996604547 | AO118: 0.3108265572 | AQ118: 0.02380668413 | AR118: 51.74480692 | AS118: 244.5963886 | AT118: 5.823028963
A119: 0.1866666667 | B119: =B117+J118*dt -> 0.2658737511 | C119: =C117+K118*dt -> -0.2786757486 | D119: =D117+B118*dt -> -0.05507231536 | E119: =E117+C118*dt -> -0.07082710846 | F119: -0.07082710846 | H119: 0.08971866702 | I119: 2.112806314 | J119: 1.296376427 | K119: 1.668340097 | L119: 0.0735069416 | N119: =N117+V118*dt -> -0.5333621202 | O119: =O117+W118*dt -> 0.5564491844 | P119: =P117+N118*dt -> 0.109993248 | Q119: =Q117+O118*dt -> 0.1416000016 | R119: 0.1416000016 | T119: 0.1793016315 | U119: 4.238443435 | V119: -2.600625586 | W119: -3.346811814 | X119: 0.146745379 | Z119: 0.2690202916 | AA119: 0.1650655634 | AB119: 0.2124271101 | AC119: 0.08652029161 | AE119: -0.0001616161616 | AF119: -0.0001611203343 | AG119: 0.0549106992 | AH119: 0.07066598813 | AI119: 0.08949227209 | AJ119: -0.1101548642 | AK119: -0.1417611219 | AL119: 0.1795280195 | AN119: 0.09057770641 | AO119: 0.310830027 | AQ119: 0.02385856 | AR119: 52.15116209 | AS119: 244.0727258 | AT119: 5.823223774
A120: 0.1883333333 | B120: =B119+J119*dt/2 -> 0.2680343785 | C120: =C119+K119*dt/2 -> -0.2758951818 | D120: =D119+B120*dt/2 -> -0.05462559139 | E120: =E119+C120*dt/2 -> -0.07128693376 | F120: -0.07128693376 | H120: 0.0898096997 | I120: 2.119420303 | J120: 1.288557703 | K120: 1.682724419 | L120: 0.0733144671 | N120: =N119+V119*dt/2 -> -0.5376964962 | O120: =O119+W119*dt/2 -> 0.5508711647 | P120: =P119+N120*dt/2 -> 0.1090970872 | Q120: =Q119+O120*dt/2 -> 0.1425181202 | R120: 0.1425181202 | T120: 0.1794814448 | U120: 4.25171158 | V120: -2.584940654 | W120: -3.375667812 | X120: 0.1463664108 | Z120: 0.2692911372 | AA120: 0.1637226786 | AB120: 0.213805054 | AC120: 0.08679113722 | AE120: -0.0001616161616 | AF120: -0.0001625589088 | AG120: 0.05446397523 | AH120: 0.07112437486 | AI120: 0.08958237157 | AJ120: -0.1092587033 | AK120: -0.1426806791 | AL120: 0.1797087656 | AN120: 0.09114568814 | AO120: 0.3108265661 | AQ120: 0.02390662507 | AR120: 52.55666709 | AS120: 243.558052 | AT120: 5.822651031
A121: 0.19 | B121: =B119+J120*dt -> 0.2701689435 | C121: =C119+K120*dt -> -0.2730666672 | D121: =D119+B120*dt -> -0.05417886743 | E121: =E119+C120*dt -> -0.07174675907 | F121: -0.07174675907 | H121: 0.08990521182 | I121: 2.126363012 | J121: 1.280822846 | K121: 1.6973251 | L121: 0.0731143264 | N121: =N119+V120*dt -> -0.541978589 | O121: =O119+W120*dt -> 0.5451969584 | P121: =P119+N120*dt -> 0.1082009264 | Q121: =Q119+O120*dt -> 0.1434362388 | R121: 0.1434362388 | T121: 0.1796702398 | U121: 4.265639159 | V121: -2.569423968 | W121: -3.404957843 | X121: 0.1459721871 | Z121: 0.269575444 | AA121: 0.1623797938 | AB121: 0.2151829979 | AC121: 0.087075444 | AE121: -0.0001616161616 | AF121: -0.0001639974832 | AG121: 0.05401725127 | AH121: 0.07158276158 | AI121: 0.08967694905 | AJ121: -0.1083625425 | AK121: -0.1436002363 | AL121: 0.179898495 | AN121: 0.09174380867 | AO121: 0.3108303221 | AQ121: 0.02395713103 | AR121: 52.961337 | AS121: 243.0524743 | AT121: 5.822839974
A122: 0.1916666667 | B122: =B121+J121*dt/2 -> 0.2723036482 | C122: =C121+K121*dt/2 -> -0.2702377921 | D122: =D121+B122*dt/2 -> -0.05372502802 | E122: =E121+C122*dt/2 -> -0.07219715539 | F122: -0.07219715539 | H122: 0.08999337687 | I122: 2.132766294 | J122: 1.272648419 | K122: 1.711449113 | L122: 0.07292657071 | N122: =N121+V121*dt/2 -> -0.5462609623 | O122: =O121+W121*dt/2 -> 0.5395220286 | P122: =P121+N122*dt/2 -> 0.1072904914 | Q122: =Q121+O122*dt/2 -> 0.1443354422 | R122: 0.1443354422 | T122: 0.1798442922 | U122: 4.27848461 | V122: -2.553025472 | W122: -3.433291642 | X122: 0.1456028094 | Z122: 0.269837661 | AA122: 0.1610155194 | AB122: 0.2165325976 | AC122: 0.08733766104 | AE122: -0.0001616161616 | AF122: -0.0001654360576 | AG122: 0.05356341185 | AH122: 0.07203171933 | AI122: 0.08976417815 | AJ122: -0.1074521076 | AK122: -0.1445008783 | AL122: 0.1800734829 | AN122: 0.09229719113 | AO122: 0.3108265712 | AQ122: 0.02400376007 | AR122: 53.3651874 | AS122: 242.5560927 | AT122: 5.822258253
A123: 0.1933333333 | B123: =B121+J122*dt -> 0.2744111049 | C123: =C121+K122*dt -> -0.2673618369 | D123: =D121+B122*dt -> -0.0532711886 | E123: =E121+C122*dt -> -0.07264755171 | F123: -0.07264755171 | H123: 0.09008599394 | I123: 2.139496301 | J123: 1.264555659 | K123: 1.725787765 | L123: 0.07273137601 | N123: =N121+V122*dt -> -0.5504886739 | O123: =O121+W122*dt -> 0.5337526529 | P123: =P121+N122*dt -> 0.1063800565 | Q123: =Q121+O122*dt -> 0.1452346456 | R123: 0.1452346456 | T123: 0.1800272721 | U123: 4.291985495 | V123: -2.536790805 | W123: -3.462056023 | X123: 0.1452186296 | Z123: 0.2701132576 | AA123: 0.1596512451 | AB123: 0.2178821973 | AC123: 0.08761325763 | AE123: -0.0001616161616 | AF123: -0.000166874632 | AG123: 0.05310957244 | AH123: 0.07248067708 | AI123: 0.0898558581 | AJ123: -0.1065416726 | AK123: -0.1454015202 | AL123: 0.1802573995 | AN123: 0.09288060325 | AO123: 0.3108306089 | AQ123: 0.02405281722 | AR123: 53.76823369 | AS123: 242.0690072 | AT123: 5.822441586
A124: 0.195 | B124: =B123+J123*dt/2 -> 0.2765186976 | C124: =C123+K123*dt/2 -> -0.2644855239 | D124: =D123+B124*dt/2 -> -0.05281032411 | E124: =E123+C124*dt/2 -> -0.07308836091 | F124: -0.07308836091 | H124: 0.09017116409 | I124: 2.145679573 | J124: 1.256027841 | K124: 1.739636425 | L124: 0.07254872293 | N124: =N123+V123*dt/2 -> -0.5547166586 | O124: =O123+W123*dt/2 -> 0.5279825595 | P124: =P123+N124*dt/2 -> 0.1054555287 | Q124: =Q123+O124*dt/2 -> 0.1461146165 | R124: 0.1461146165 | T124: 0.1801953099 | U124: 4.304389589 | V124: -2.519683381 | W124: -3.489837444 | X124: 0.1448596102 | Z124: 0.2703664652 | AA124: 0.1582658528 | AB124: 0.2192029774 | AC124: 0.08786646516 | AE124: -0.0001616161616 | AF124: -0.0001683132064 | AG124: 0.05264870794 | AH124: 0.07292004771 | AI124: 0.08994009009 | AJ124: -0.1056171449 | AK124: -0.1462829297 | AL124: 0.1804263751 | AN124: 0.09341823996 | AO124: 0.3108265731 | AQ124: 0.02409793318 | AR124: 54.17049177 | AS124: 241.5913108 | AT124: 5.821851264
A125: 0.1966666667 | B125: =B123+J124*dt -> 0.2785978643 | C125: =C123+K124*dt -> -0.2615630488 | D125: =D123+B124*dt -> -0.05234945961 | E125: =E123+C124*dt -> -0.07352917012 | F125: -0.07352917012 | H125: 0.09026075991 | I125: 2.152187657 | J125: 1.24757965 | K125: 1.753698015 | L125: 0.07235885526 | N125: =N123+V124*dt -> -0.5588876185 | O125: =O123+W124*dt -> 0.5221198614 | P125: =P123+N124*dt -> 0.104531001 | Q125: =Q123+O124*dt -> 0.1469945874 | R125: 0.1469945874 | T125: 0.1803722232 | U125: 4.31744528 | V125: -2.502735695 | W125: -3.518046018 | X125: 0.1444862364 | Z125: 0.2706329739 | AA125: 0.1568804606 | AB125: 0.2205237576 | AC125: 0.08813297389 | AE125: -0.0001616161616 | AF125: -0.0001697517808 | AG125: 0.05218784345 | AH125: 0.07335941834 | AI125: 0.09002874687 | AJ125: -0.1046926171 | AK125: -0.1471643392 | AL125: 0.180604227 | AN125: 0.09398579515 | AO125: 0.3108308868 | AQ125: 0.02414546477 | AR125: 54.57197735 | AS125: 241.1230969 | AT125: 5.822029242
A126: 0.1983333333 | B126: =B125+J125*dt/2 -> 0.2806771638 | C126: =C125+K125*dt/2 -> -0.2586402188 | D126: =D125+B126*dt/2 -> -0.05188166434 | E126: =E125+C126*dt/2 -> -0.07396023715 | F126: -0.07396023715 | H126: 0.09034281252 | I126: 2.158141956 | J126: 1.238701362 | K126: 1.767256528 | L126: 0.07218168156 | N126: =N125+V125*dt/2 -> -0.5630588447 | O126: =O125+W125*dt/2 -> 0.5162564514 | P126: =P125+N126*dt/2 -> 0.1035925695 | Q126: =Q125+O126*dt/2 -> 0.1478550149 | R126: 0.1478550149 | T126: 0.180534002 | U126: 4.329390037 | V126: -2.484925202 | W126: -3.545245384 | X126: 0.1441383286 | Z126: 0.2708768049 | AA126: 0.1554742339 | AB126: 0.221815252 | AC126: 0.08837680489 | AE126: -0.0001616161616 | AF126: -0.0001711903552 | AG126: 0.05172004817 | AH126: 0.0737890468 | AI126: 0.09010985967 | AJ126: -0.1037541857 | AK126: -0.1480262052 | AL126: 0.1807669452 | AN126: 0.09450656167 | AO126: 0.3108265718 | AQ126: 0.02418899284 | AR126: 54.97270661 | AS126: 240.6644516 | AT126: 5.821430697
A127: 0.2 | B127: =B125+J126*dt -> 0.2827268689 | C127: =C125+K126*dt -> -0.2556721937 | D127: =D125+B126*dt -> -0.05141386906 | E127: =E125+C126*dt -> -0.07439130418 | F127: -0.07439130418 | H127: 0.09042926556 | I127: 2.164419235 | J127: 1.229900816 | K127: 1.781026279 | L127: 0.07199751412 | N127: =N125+V126*dt -> -0.5671707026 | O127: =O125+W126*dt -> 0.5103023768 | P127: =P125+N126*dt -> 0.1026541381 | Q127: =Q125+O126*dt -> 0.1487154423 | R127: 0.1487154423 | T127: 0.1807046066 | U127: 4.341982717 | V127: -2.467270666 | W127: -3.572868508 | X127: 0.143776507 | Z127: 0.2711338621 | AA127: 0.1540680072 | AB127: 0.2231067465 | AC127: 0.08863386207 | AE127: -0.0001616161616 | AF127: -0.0001726289297 | AG127: 0.0512522529 | AH127: 0.07421867525 | AI127: 0.0901953723 | AJ127: -0.1028157543 | AK127: -0.1488880712 | AL127: 0.1809384898 | AN127: 0.09505713421 | AO127: 0.3108311554 | AQ127: 0.02423492445 | AR127: 55.37269556 | AS127: 240.215462 | AT127: 5.821603576
A128: 0.2016666667 | B128: =B127+J127*dt/2 -> 0.2847767036 | C128: =C127+K127*dt/2 -> -0.2527038166 | D128: =D127+B128*dt/2 -> -0.05093924122 | E128: =E127+C128*dt/2 -> -0.07481247721 | F128: -0.07481247721 | H128: 0.09050808275 | I128: 2.170135949 | J128: 1.220675574 | K128: 1.794280129 | L128: 0.07182618845 | N128: =N127+V127*dt/2 -> -0.5712828203 | O128: =O127+W127*dt/2 -> 0.5043475959 | P128: =P127+N128*dt/2 -> 0.1017020001 | Q128: =Q127+O128*dt/2 -> 0.1495560216 | R128: 0.1495560216 | T128: 0.1808598917 | U128: 4.353450862 | V128: -2.448764158 | W128: -3.599456695 | X128: 0.1434404479 | Z128: 0.2713679639 | AA128: 0.1526412413 | AB128: 0.2243684988 | AC128: 0.08886796387 | AE128: -0.0001616161616 | AF128: -0.0001740675041 | AG128: 0.05077762506 | AH128: 0.07463840971 | AI128: 0.09027324859 | AJ128: -0.1018636163 | AK128: -0.1497300891 | AL128: 0.1810947153 | AN128: 0.09555993153 | AO128: 0.3108265679 | AQ128: 0.02427679225 | AR128: 55.77196063 | AS128: 239.7762079 | AT128: 5.820997187
A129: 0.2033333333 | B129: =B127+J128*dt -> 0.2867957875 | C129: =C127+K128*dt -> -0.2496912599 | D129: =D127+B128*dt -> -0.05046461339 | E129: =E127+C128*dt -> -0.07523365024 | F129: -0.07523365024 | H129: 0.09059127625 | I129: 2.176173893 | J129: 1.211526341 | K129: 1.807743549 | L129: 0.07164808552 | N129: =N127+V128*dt -> -0.5753332497 | O129: =O127+W128*dt -> 0.4983041878 | P129: =P127+N128*dt -> 0.1007498621 | Q129: =Q127+O128*dt -> 0.1503966009 | R129: 0.1503966009 | T129: 0.181023955 | U129: 4.365563417 | V129: -2.430410129 | W129: -3.626465298 | X129: 0.1430909067 | Z129: 0.2716152202 | AA129: 0.1512144755 | AB129: 0.2256302512 | AC129: 0.08911522017 | AE129: -0.0001616161616 | AF129: -0.0001755060785 | AG129: 0.05030299722 | AH129: 0.07505814416 | AI129: 0.09035550085 | AJ129: -0.1009114782 | AK129: -0.150572107 | AL129: 0.1812597193 | AN129: 0.09609242185 | AO129: 0.3108314141 | AQ129: 0.02432105189 | AR129: 56.17051812 | AS129: 239.3467702 | AT129: 5.821165219
A130: 0.205 | B130: =B129+J129*dt/2 -> 0.288814998 | C130: =C129+K129*dt/2 -> -0.246678354 | D130: =D129+B130*dt/2 -> -0.04998325506 | E130: =E129+C130*dt/2 -> -0.07564478083 | F130: -0.07564478083 | H130: 0.09066674502 | I130: 2.181644769 | J130: 1.201958244 | K130: 1.820678521 | L130: 0.0714829673 | N130: =N129+V129*dt/2 -> -0.5793839333 | O130: =O129+W129*dt/2 -> 0.492260079 | P130: =P129+N130*dt/2 -> 0.09978422219 | Q130: =Q129+O130*dt/2 -> 0.1512170344 | R130: 0.1512170344 | T130: 0.1811725213 | U130: 4.376538393 | V130: -2.411215829 | W130: -3.652413795 | X130: 0.1427674147 | Z130: 0.2718392548 | AA130: 0.1497674772 | AB130: 0.2268618152 | AC130: 0.08933925479 | AE130: -0.0001616161616 | AF130: -0.0001769446529 | AG130: 0.04982163889 | AH130: 0.07546783618 | AI130: 0.09043002819 | AJ130: -0.09994583835 | AK130: -0.151393979 | AL130: 0.1814092266 | AN130: 0.0965761796 | AO130: 0.3108265616 | AQ130: 0.02436118959 | AR130: 56.56838471 | AS130: 238.9272226 | AT130: 5.820551367
A131: 0.2066666667 | B131: =B129+J130*dt -> 0.2908023149 | C131: =C129+K130*dt -> -0.2436223315 | D131: =D129+B130*dt -> -0.04950189672 | E131: =E129+C130*dt -> -0.07605591142 | F131: -0.07605591142 | H131: 0.0907465671 | I131: 2.187435207 | J131: 1.192464568 | K131: 1.83382143 | L131: 0.07131128317 | N131: =N129+V130*dt -> -0.5833706358 | O131: =O129+W130*dt -> 0.4861294752 | P131: =P129+N130*dt -> 0.0988185823 | Q131: =Q129+O130*dt -> 0.1520374679 | R131: 0.1520374679 | T131: 0.1813298206 | U131: 4.388154433 | V131: -2.392170824 | W131: -3.678779428 | X131: 0.1424308619 | Z131: 0.2720763756 | AA131: 0.148320479 | AB131: 0.2280933793 | AC131: 0.08957637561 | AE131: -0.0001616161616 | AF131: -0.0001783832273 | AG131: 0.04934028056 | AH131: 0.07587752819 | AI131: 0.09050890879 | AJ131: -0.09898019846 | AK131: -0.1522158511 | AL131: 0.1815674668 | AN131: 0.09708951753 | AO131: 0.3108316625 | AQ131: 0.02440370784 | AR131: 56.96557692 | AS131: 238.5176401 | AT131: 5.820714804
A132: 0.2083333333 | B132: =B131+J131*dt/2 -> 0.2927897559 | C132: =C131+K131*dt/2 -> -0.2405659625 | D132: =D131+B132*dt/2 -> -0.0490139138 | E132: =E131+C132*dt/2 -> -0.07645685469 | F132: -0.07645685469 | H132: 0.09081857946 | I132: 2.192652357 | J132: 1.182558286 | K132: 1.846423641 | L132: 0.07115272152 | N132: =N131+V131*dt/2 -> -0.5873575872 | O132: =O131+W131*dt/2 -> 0.4799981761 | P132: =P131+N132*dt/2 -> 0.09783965298 | Q132: =Q131+O132*dt/2 -> 0.1528374648 | R132: 0.1528374648 | T132: 0.1814714533 | U132: 4.398620417 | V132: -2.372298099 | W132: -3.70406038 | X132: 0.1421206345 | Z132: 0.2722900201 | AA132: 0.1468535668 | AB132: 0.2292943195 | AC132: 0.08979002008 | AE132: -0.0001616161616 | AF132: -0.0001798218017 | AG132: 0.04885229764 | AH132: 0.07627703289 | AI132: 0.09057997974 | AJ132: -0.09800126915 | AK132: -0.1530172866 | AL132: 0.1817100403 | AN132: 0.09755319724 | AO132: 0.3108265533 | AQ132: 0.02444204828 | AR132: 57.36211168 | AS132: 238.1180908 | AT132: 5.820093872
A133: 0.21 | B133: =B131+J132*dt -> 0.2947441759 | C133: =C131+K132*dt -> -0.237467586 | D133: =D131+B132*dt -> -0.04852593087 | E133: =E131+C132*dt -> -0.07685779796 | F133: -0.07685779796 | H133: 0.09089492326 | I133: 2.198187486 | J133: 1.172724979 | K133: 1.859232193 | L133: 0.0709877994 | N133: =N131+V132*dt -> -0.5912782962 | O133: =O131+W132*dt -> 0.4737826072 | P133: =P131+N132*dt -> 0.09686072367 | Q133: =Q131+O132*dt -> 0.1536374618 | R133: 0.1536374618 | T133: 0.1816217758 | U133: 4.409724288 | V133: -2.352571769 | W133: -3.729755269 | X133: 0.1417977557 | Z133: 0.2725166859 | AA133: 0.1453866545 | AB133: 0.2304952597 | AC133: 0.09001668588 | AE133: -0.0001616161616 | AF133: -0.0001812603761 | AG133: 0.04836431471 | AH133: 0.07667653758 | AI133: 0.09065538237 | AJ133: -0.09702233983 | AK133: -0.1538187222 | AL133: 0.1818613035 | AN133: 0.09804634521 | AO133: 0.3108319003 | AQ133: 0.02448275842 | AR133: 57.75800574 | AS133: 237.7286441 | AT133: 5.820252963
A134: 0.2116666667 | B134: =B133+J133*dt/2 -> 0.2966987175 | C134: =C133+K133*dt/2 -> -0.2343688657 | D134: =D133+B134*dt/2 -> -0.04803143301 | E134: =E133+C134*dt/2 -> -0.07724841274 | F134: -0.07724841274 | H134: 0.0909633763 | I134: 2.203143399 | J134: 1.162485737 | K134: 1.871488111 | L134: 0.07083613208 | N134: =N133+V133*dt/2 -> -0.5951992491 | O134: =O133+W133*dt/2 -> 0.4675663484 | P134: =P133+N134*dt/2 -> 0.09586872492 | Q134: =Q133+O134*dt/2 -> 0.154416739 | R134: 0.154416739 | T134: 0.1817562701 | U134: 4.419666211 | V134: -2.332031104 | W134: -3.754341534 | X134: 0.1415014678 | Z134: 0.2727196326 | AA134: 0.1439001579 | AB134: 0.2316651518 | AC134: 0.09021963258 | AE134: -0.0001616161616 | AF134: -0.0001826989505 | AG134: 0.04786981685 | AH134: 0.07706571379 | AI134: 0.09072289461 | AJ134: -0.09603034109 | AK134: -0.154599438 | AL134: 0.181996738 | AN134: 0.09848894345 | AO134: 0.3108265433 | AQ134: 0.02451923725 | AR134: 58.15327622 | AS134: 237.3493626 | AT134: 5.819625333
A135: 0.2133333333 | B135: =B133+J134*dt -> 0.2986191284 | C135: =C133+K134*dt -> -0.2312292923 | D135: =D133+B134*dt -> -0.04753693515 | E135: =E133+C134*dt -> -0.07763902751 | F135: -0.07763902751 | H135: 0.09103614006 | I135: 2.20841579 | J135: =k*$AC135*$AA135/$Z135/MA -> 1.15231816 | K135: =k*$AC135*$AB135/$Z135/MA -> 1.883948821 | L135: 0.07067830307 | N135: =N133+V134*dt -> -0.5990517332 | O135: =O133+W134*dt -> 0.4612681354 | P135: =P133+N134*dt -> 0.09487672618 | Q135: =Q133+O134*dt -> 0.1551960163 | R135: 0.1551960163 | T135: 0.1818994135 | U135: 4.430243012 | V135: =-k*$AC135*$AA135/$Z135/MB -> -2.311634204 | W135: =-k*$AC135*$AB135/$Z135/MB -> -3.779338627 | X135: 0.1411929241 | Z135: 0.2729355392 | AA135: 0.1424136613 | AB135: 0.2328350438 | AC135: =Z135-L-CA-CB -> 0.09043553918 | AE135: -0.0001616161616 | AF135: -0.000184137525 | AG135: 0.04737531899 | AH135: 0.07745488999 | AI135: 0.09079471808 | AJ135: -0.09503834234 | AK135: -0.1553801538 | AL135: 0.1821408211 | AN135: =0.5*k*(Z135-L-CA-CB)^2 -> 0.09896089963 | AO135: 0.3108321268 | AQ135: =MA*(AG135*AG135+AH135*AH135)+MB*(AJ135*AJ135+AK135*AK135) -> 0.02455807539 | AR135: 58.5479401 | AS135: 236.9803104 | AT135: 5.819780327
A136: =A135+dt/2 -> 0.215 | B136: =B135+J135*dt/2 -> 0.3005396586 | C136: =C135+K135*dt/2 -> -0.2280893776 | D136: =D135+B136*dt/2 -> -0.04703603572 | E136: =E135+C136*dt/2 -> -0.07801917647 | F136: =IF($AC136<0,NA(),$E136) -> -0.07801917647 | G136: =IF($AC136>=0,NA(),$E136) ->  | H136: 0.09110093607 | I136: 2.213103337 | J136: 1.141751727 | K136: 1.895845293 | L136: 0.07053385547 | N136: =N135+V135*dt/2 -> -0.6029044569 | O136: =O135+W135*dt/2 -> 0.4549692377 | P136: =P135+N136*dt/2 -> 0.09387188541 | Q136: =Q135+O136*dt/2 -> 0.1559542983 | R136: =IF($AC136<0,NA(),$Q136) -> 0.1559542983 | S136: =IF($AC136>=0,NA(),$Q136) ->  | T136: 0.1820265751 | U136: 4.439646573 | V136: -2.290437169 | W136: -3.803203816 | X136: 0.1409112255 | Z136: 0.2731274961 | AA136: 0.1409079211 | AB136: 0.2339734748 | AC136: 0.09062749615 | AE136: -0.0001616161616 | AF136: -0.0001855760994 | AG136: =AE136-D136 -> 0.04687441955 | AH136: =AF136-E136 -> 0.07783360038 | AI136: =SQRT(AG136*AG136+AH136*AH136) -> 0.09085857448 | AJ136: =AE136-P136 -> -0.09403350158 | AK136: =AF136-Q136 -> -0.1561398744 | AL136: =SQRT(AJ136*AJ136+AK136*AK136) -> 0.1822689217 | AN136: 0.09938145101 | AO136: 0.310826532 | AQ136: 0.02459263118 | AR136: 58.9420147 | AS136: 236.6215449 | AT136: 5.819146381
A137: 0.2166666667 | B137: =B135+J136*dt -> 0.3024249674 | C137: =C135+K136*dt -> -0.224909808 | D137: =D135+B136*dt -> -0.04653513628 | E137: =E135+C136*dt -> -0.07839932544 | F137: -0.07839932544 | H137: 0.09117002324 | I137: 2.218105946 | J137: 1.13125578 | K137: 1.907945059 | L137: 0.07038343757 | N137: =N135+V136*dt -> -0.6066865238 | O137: =O135+W136*dt -> 0.4485907894 | P137: =P135+N136*dt -> 0.09286704465 | Q137: =Q135+O136*dt -> 0.1567125804 | R137: 0.1567125804 | T137: 0.1821623475 | U137: 4.44968217 | V137: -2.269381533 | W137: -3.827476829 | X137: 0.1406176519 | Z137: 0.273332355 | AA137: 0.1394021809 | AB137: 0.2351119058 | AC137: 0.09083235505 | AE137: -0.0001616161616 | AF137: -0.0001870146738 | AG137: 0.04637352012 | AH137: 0.07821231076 | AI137: 0.09092672282 | AJ137: -0.09302866081 | AK137: -0.1568995951 | AL137: 0.1824056322 | AN137: 0.09983125236 | AO137: 0.3108323418 | AQ137: 0.02462953635 | AR137: 59.33551719 | AS137: =IF(ABS((AR137-AR135)/dt)<1000,(AR137-AR135)/dt,AS136) -> 236.2731252 | AT137: 5.819297524
A138: 0.2183333333 | B138: =B137+J137*dt/2 -> 0.3043103937 | C138: =C137+K137*dt/2 -> -0.2217298996 | D138: =D137+B138*dt/2 -> -0.0460279523 | E138: =E137+C138*dt/2 -> -0.07876887527 | F138: -0.07876887527 | H138: 0.09123106984 | I138: 2.222518385 | J138: 1.120368449 | K138: 1.91946933 | L138: =0.5*MA*(B138*B138+C138*C138) -> 0.07024652172 | N138: =N137+V137*dt/2 -> -0.6104688263 | O138: =O137+W137*dt/2 -> 0.4422116613 | P138: =P137+N138*dt/2 -> 0.09184959661 | Q138: =Q137+O138*dt/2 -> 0.1574495998 | R138: 0.1574495998 | T138: 0.1822819928 | U138: 4.458533845 | V138: -2.247540754 | W138: -3.850595357 | X138: =0.5*MB*(N138*N138+O138*O138) -> 0.1403511653 | Z138: 0.2735130463 | AA138: =P138-D138 -> 0.1378775489 | AB138: =Q138-E138 -> 0.2362184751 | AC138: 0.09101304626 | AE138: =(MA*D138+MB*P138)/(MA+MB) -> -0.0001616161616 | AF138: =(MA*E138+MB*Q138)/(MA+MB) -> -0.0001884532482 | AG138: 0.04586633613 | AH138: 0.07858042202 | AI138: 0.09098683155 | AJ138: -0.09201121277 | AK138: -0.1576380531 | AL138: 0.1825262147 | AN138: 0.1002288325 | AO138: =AN138+L138+X138 -> 0.3108265196 | AQ138: 0.0246621107 | AR138: 59.72846505 | AS138: 235.9351037 | AT138: =AQ138*AS138 -> 5.818657645
A139: 0.22 | B139: =B137+J138*dt -> 0.3061595289 | C139: =C137+K138*dt -> -0.2185115769 | D139: =D137+B138*dt -> -0.04552076831 | E139: =E137+C138*dt -> -0.0791384251 | F139: -0.0791384251 | H139: =SQRT(D139*D139+E139*E139) -> 0.09129638917 | I139: =SQRT(J139*J139+K139*K139) -> 2.227244556 | J139: 1.10955055 | K139: 1.931195456 | L139: 0.07010381886 | N139: =N137+V138*dt -> -0.6141783263 | O139: =O137+W138*dt -> 0.4357554715 | P139: =P137+N138*dt -> 0.09083214856 | Q139: =Q137+O138*dt -> 0.1581866193 | R139: 0.1581866193 | T139: =SQRT(P139*P139+Q139*Q139) -> 0.1824102128 | U139: =SQRT(V139*V139+W139*W139) -> 4.468014889 | V139: -2.225839261 | W139: -3.87411882 | X139: 0.1400731683 | Z139: =SQRT(AA139*AA139+AB139*AB139) -> 0.2737065849 | AA139: 0.1363529169 | AB139: 0.2373250444 | AC139: 0.09120658492 | AE139: -0.0001616161616 | AF139: -0.0001898918226 | AG139: 0.04535915214 | AH139: 0.07894853328 | AI139: 0.09105121411 | AJ139: -0.09099376473 | AK139: -0.1583765111 | AL139: 0.1826553708 | AN139: 0.1006555577 | AO139: 0.3108325449 | AQ139: 0.02469702501 | AR139: =ATAN2(AA139,AB139)*180/PI() -> 60.12087564 | AS139: 235.6075348 | AT139: 5.818805181
A140: 0.2216666667 | B140: =B139+J139*dt/2 -> 0.3080087799 | C140: =C139+K139*dt/2 -> -0.2152929178 | D140: =D139+B140*dt/2 -> -0.04500742034 | E140: =E139+C140*dt/2 -> -0.07949724663 | F140: -0.07949724663 | H140: 0.09135359931 | I140: 2.231375543 | J140: 1.098349126 | K140: 1.942335195 | L140: 0.06997473245 | N140: =N139+V139*dt/2 -> -0.6178880584 | O140: =O139+W139*dt/2 -> 0.4292986068 | P140: =P139+N140*dt/2 -> 0.08980233513 | Q140: =Q139+O140*dt/2 -> 0.1589021169 | R140: 0.1589021169 | T140: 0.182522169 | U140: 4.476301949 | V140: -2.203368389 | W140: -3.896465948 | X140: 0.1398224878 | Z140: 0.2738757505 | AA140: 0.1348097555 | AB140: 0.2383993636 | AC140: 0.09137575053 | AE140: -0.0001616161616 | AF140: -0.000191330397 | AG140: 0.04484580418 | AH140: 0.07930591624 | AI140: 0.09110748873 | AJ140: -0.0899639513 | AK140: -0.1590934473 | AL140: 0.1827682618 | AN140: 0.1010292862 | AO140: 0.3108265064 | AQ140: 0.02472756267 | AR140: 60.5127666 | AS140: 235.2904663 | AT140: 5.818159751
A141: 0.2233333333 | B141: =B139+J140*dt -> 0.3098206927 | C141: =C139+K140*dt -> -0.2120371263 | D141: =D139+B140*dt -> -0.04449407237 | E141: =E139+C140*dt -> -0.07985606816 | F141: -0.07985606816 | H141: 0.09141506494 | I141: 2.235819017 | J141: 1.087216201 | K141: 1.95367541 | L141: 0.06984003355 | N141: =N139+V140*dt -> -0.6215228876 | O141: =O139+W140*dt -> 0.4227672517 | P141: =P139+N140*dt -> 0.0887725217 | Q141: =Q139+O140*dt -> 0.1596176146 | R141: 0.1596176146 | T141: 0.1826426662 | U141: 4.485215881 | V141: -2.181034931 | W141: -3.919215245 | X141: 0.1395606437 | Z141: 0.2740577126 | AA141: 0.1332665941 | AB141: 0.2394736828 | AC141: 0.09155771262 | AE141: -0.0001616161616 | AF141: -0.0001927689714 | AG141: 0.04433245621 | AH141: 0.07966329919 | AI141: 0.09116802022 | AJ141: -0.08893413787 | AK141: -0.1598103836 | AL141: 0.1828896924 | AN141: 0.1014320584 | AO141: 0.3108327356 | AQ141: 0.02476043139 | AR141: 60.90415546 | AS141: 234.983948 | AT141: 5.818303923
A142: 0.225 | B142: =B141+J141*dt/2 -> 0.3116327197 | C142: =C141+K141*dt/2 -> -0.2087810006 | D142: =D141+B142*dt/2 -> -0.04397468451 | E142: =E141+C142*dt/2 -> -0.0802040365 | F142: -0.0802040365 | H142: 0.09146835708 | I142: 2.239662607 | J142: 1.075707985 | K142: 1.964418725 | L142: 0.06971905904 | N142: =N141+V141*dt/2 -> -0.6251579458 | O142: =O141+W141*dt/2 -> 0.4162352263 | P142: =P141+N142*dt/2 -> 0.08773059179 | Q142: =Q141+O142*dt/2 -> 0.16031134 | R142: 0.16031134 | T142: 0.1827467714 | U142: 4.492926404 | V142: -2.157948609 | W142: -3.940767118 | X142: 0.1393263325 | Z142: 0.2742151092 | AA142: 0.1317052763 | AB142: 0.2405153765 | AC142: 0.09171510925 | AE142: -0.0001616161616 | AF142: -0.0001942075459 | AG142: 0.04381306835 | AH142: 0.08000982895 | AI142: 0.09122037978 | AJ142: -0.08789220796 | AK142: -0.1605055476 | AL142: 0.1829947295 | AN142: 0.1017811013 | AO142: 0.3108264929 | AQ142: 0.02478888035 | AR142: 61.29506001 | AS142: 234.6880231 | AT142: 5.817653325
A143: 0.2266666667 | B143: =B141+J142*dt -> 0.313406386 | C143: =C141+K142*dt -> -0.2054890639 | D143: =D141+B142*dt -> -0.04345529664 | E143: =E141+C142*dt -> -0.08055200483 | F143: -0.08055200483 | H143: 0.09152588862 | I143: 2.243817526 | J143: 1.064267448 | K143: 1.975361205 | L143: 0.06959263714 | N143: =N141+V142*dt -> -0.6287160496 | O143: =O141+W142*dt -> 0.4096313613 | P143: =P141+N142*dt -> 0.08668866188 | Q143: =Q141+O142*dt -> 0.1610050654 | R143: 0.1610050654 | T143: 0.1828593864 | U143: 4.501261475 | V143: -2.134998059 | W143: -3.962718531 | X143: 0.1390811856 | Z143: 0.2743852549 | AA143: 0.1301439585 | AB143: 0.2415570702 | AC143: 0.09188525491 | AE143: -0.0001616161616 | AF143: -0.0001956461203 | AG143: 0.04329368048 | AH143: 0.08035635871 | AI143: 0.09127698042 | AJ143: -0.08685027805 | AK143: -0.1612007115 | AL143: 0.1831082745 | AN143: 0.1021590908 | AO143: 0.3108329136 | AQ143: 0.02481965202 | AR143: 61.68549792 | AS143: 234.4027373 | AT143: 5.817794372
A144: 0.2283333333 | B144: =B143+J143*dt/2 -> 0.3151801651 | C144: =C143+K143*dt/2 -> -0.2021967952 | D144: =D143+B144*dt/2 -> -0.04292999637 | E144: =E143+C144*dt/2 -> -0.08088899949 | F144: -0.08088899949 | H144: 0.09157518674 | I144: 2.247368185 | J144: 1.052460215 | K144: 1.985696667 | L144: 0.06948004085 | N144: =N143+V143*dt/2 -> -0.6322743797 | O144: =O143+W143*dt/2 -> 0.4030268304 | P144: =P143+N144*dt/2 -> 0.08563487125 | Q144: =Q143+O144*dt/2 -> 0.1616767768 | R144: 0.1616767768 | T144: 0.18295549 | U144: 4.508384355 | V144: -2.11131189 | W144: -3.983452221 | X144: 0.1388637748 | Z144: 0.2745306558 | AA144: 0.1285648676 | AB144: 0.2425657763 | AC144: 0.09203065584 | AE144: -0.0001616161616 | AF144: -0.0001970846947 | AG144: 0.0427683802 | AH144: 0.08069191479 | AI144: 0.09132534948 | AJ144: -0.08579648741 | AK144: -0.1618738615 | AL144: 0.1832053064 | AN144: 0.1024826635 | AO144: 0.3108264792 | AQ144: 0.02484596362 | AR144: 62.07548711 | AS144: 234.1281295 | AT144: 5.817138987
A145: 0.23 | B145: =B143+J144*dt -> 0.3169145867 | C145: =C143+K144*dt -> -0.198870075 | D145: =D143+B144*dt -> -0.04240469609 | E145: =E143+C144*dt -> -0.08122599415 | F145: -0.08122599415 | H145: 0.09162870934 | I145: 2.2512291 | J145: 1.040719955 | K145: 1.996230056 | L145: 0.06936215226 | N145: =N143+V144*dt -> -0.6357537559 | O145: =O143+W144*dt -> 0.3963531873 | P145: =P143+N144*dt -> 0.08458108062 | Q145: =Q143+O144*dt -> 0.1623484882 | R145: 0.1623484882 | T145: 0.1830600743 | U145: 4.516129631 | V145: -2.087760071 | W145: -4.004582966 | X145: 0.1386358357 | Z145: 0.2746887619 | AA145: 0.1269857767 | AB145: 0.2435744823 | AC145: 0.0921887619 | AE145: -0.0001616161616 | AF145: -0.0001985232691 | AG145: 0.04224307993 | AH145: 0.08102747088 | AI145: 0.09137794504 | AJ145: -0.08474269678 | AK145: -0.1625470114 | AL145: 0.1833108169 | AN145: 0.1028350906 | AO145: 0.3108330786 | AQ145: 0.02487459014 | AR145: 62.46504539 | AS145: 233.8642413 | AT145: 5.817277149
A146: 0.2316666667 | B146: =B145+J145*dt/2 -> 0.3186491199 | C146: =C145+K145*dt/2 -> -0.1955430249 | D146: =D145+B146*dt/2 -> -0.04187361422 | E146: =E145+C146*dt/2 -> -0.08155189919 | F146: -0.08155189919 | H146: 0.09167394302 | I146: 2.254481702 | J146: 1.028621944 | K146: 2.006146715 | L146: 0.0692581836 | N146: =N145+V145*dt/2 -> -0.639233356 | O146: =O145+W145*dt/2 -> 0.3896788823 | P146: =P145+N146*dt/2 -> 0.08351569169 | Q146: =Q145+O146*dt/2 -> 0.162997953 | R146: 0.162997953 | T146: 0.1831480369 | U146: 4.522654589 | V146: -2.063490579 | W146: -4.024476508 | X146: 0.1384358219 | Z146: 0.2748219573 | AA146: 0.1253893059 | AB146: 0.2445498521 | AC146: 0.09232195731 | AE146: -0.0001616161616 | AF146: -0.0001999618435 | AG146: 0.04171199806 | AH146: 0.08135193735 | AI146: 0.09142225381 | AJ146: -0.08367730785 | AK146: -0.1631979148 | AL146: 0.1833997035 | AN146: 0.10313246 | AO146: 0.3108264655 | AQ146: 0.02489871915 | AR146: 62.85419081 | AS146: 233.6111076 | AT146: 5.816617359
A147: 0.2333333333 | B147: =B145+J146*dt -> 0.3203433265 | C147: =C145+K146*dt -> -0.1921829193 | D147: =D145+B146*dt -> -0.04134253236 | E147: =E145+C146*dt -> -0.08187780423 | F147: -0.08187780423 | H147: 0.09172338746 | I147: 2.258043576 | J147: 1.0165903 | K147: 2.01626014 | L147: 0.0691490671 | N147: =N145+V146*dt -> -0.6426320578 | O147: =O145+W146*dt -> 0.3829382656 | P147: =P145+N146*dt -> 0.08245030277 | Q147: =Q145+O146*dt -> 0.1636474178 | R147: 0.1636474178 | T147: 0.1832444536 | U147: 4.529799967 | V147: -2.039354225 | W147: -4.044764775 | X147: 0.1382255662 | Z147: 0.2749678175 | AA147: 0.1237928351 | AB147: 0.245525222 | AC147: 0.0924678175 | AE147: -0.0001616161616 | AF147: -0.0002014004179 | AG147: 0.0411809162 | AH147: 0.08167640381 | AI147: 0.09147077565 | AJ147: -0.08261191893 | AK147: -0.1638488182 | AL147: 0.1834970418 | AN147: 0.103458597 | AO147: 0.3108332303 | AQ147: 0.02492515587 | AR147: 63.24294128 | AS147: 233.3687661 | AT147: 5.816752871
A148: 0.235 | B148: =B147+J147*dt/2 -> 0.3220376437 | C148: =C147+K147*dt/2 -> -0.1888224857 | D148: =D147+B148*dt/2 -> -0.04080580295 | E148: =E147+C148*dt/2 -> -0.08219250837 | F148: -0.08219250837 | H148: 0.09176449197 | I148: 2.260993415 | J148: 1.004210192 | K148: 2.025747545 | L148: 0.06905395773 | N148: =N147+V147*dt/2 -> -0.6460309815 | O148: =O147+W147*dt/2 -> 0.3761969909 | P148: =P147+N148*dt/2 -> 0.08137358446 | Q148: =Q147+O148*dt/2 -> 0.1642744127 | R148: 0.1642744127 | T148: 0.1833241472 | U148: 4.53571756 | V148: -2.014518826 | W148: -4.0637972 | X148: 0.1380434107 | Z148: 0.2750886147 | AA148: 0.1221793874 | AB148: 0.2464669211 | AC148: 0.09258861466 | AE148: -0.0001616161616 | AF148: -0.0002028389923 | AG148: 0.04064418679 | AH148: 0.08198966938 | AI148: 0.09151096003 | AJ148: -0.08153520062 | AK148: -0.1644772517 | AL148: 0.1835776546 | AN148: 0.1037290839 | AO148: 0.3108264523 | AQ148: 0.02494706061 | AR148: 63.63131497 | AS148: 233.137248 | AT148: 5.816089057
A149: 0.2366666667 | B149: =B147+J148*dt -> 0.3236906938 | C149: =C147+K148*dt -> -0.1854304274 | D149: =D147+B148*dt -> -0.04026907355 | E149: =E147+C148*dt -> -0.08250721252 | F149: -0.08250721252 | H149: 0.09180979469 | I149: 2.264251628 | J149: 0.9918959449 | K149: 2.035430635 | L149: 0.06895383385 | N149: =N147+V148*dt -> -0.6493471206 | O149: =O147+W148*dt -> 0.3693922749 | P149: =P147+N148*dt -> 0.08029686616 | Q149: =Q147+O148*dt -> 0.1649014077 | R149: 0.1649014077 | T149: 0.1834122705 | U149: 4.542253771 | V149: -1.989815549 | W149: -4.083222184 | X149: 0.1378512769 | Z149: 0.2752220398 | AA149: 0.1205659397 | AB149: 0.2474086202 | AC149: 0.09272203979 | AE149: -0.0001616161616 | AF149: -0.0002042775668 | AG149: 0.04010745738 | AH149: 0.08230293495 | AI149: 0.09155534522 | AJ149: -0.08045848232 | AK149: -0.1651056853 | AL149: 0.1836666946 | AN149: 0.1040282576 | AO149: 0.3108333684 | AQ149: 0.02497126643 | AR149: 64.0193299 | AS149: 232.9165872 | AT149: 5.816222154
A150: 0.2383333333 | B150: =B149+J149*dt/2 -> 0.3253438537 | C150: =C149+K149*dt/2 -> -0.1820380431 | D150: =D149+B150*dt/2 -> -0.03972683379 | E150: =E149+C150*dt/2 -> -0.08281060926 | F150: -0.08281060926 | H150: 0.09184671104 | I150: 2.26689442 | J150: 0.9792428451 | K150: 2.044478848 | L150: 0.06886779701 | N150: =N149+V149*dt/2 -> -0.6526634798 | O150: =O149+W149*dt/2 -> 0.3625869046 | P150: =P149+N150*dt/2 -> 0.07920909369 | Q150: =Q149+O150*dt/2 -> 0.1655057192 | R150: 0.1655057192 | T150: 0.1834835786 | U150: 4.547555404 | V150: -1.964432509 | W150: -4.101373559 | X150: 0.1376874037 | Z150: 0.2753302632 | AA150: 0.1189359275 | AB150: 0.2483163285 | AC150: 0.09283026321 | AE150: -0.0001616161616 | AF150: -0.0002057161412 | AG150: 0.03956521763 | AH150: 0.08260489311 | AI150: 0.09159134682 | AJ150: -0.07937070986 | AK150: -0.1657114354 | AL150: 0.1837389164 | AN150: 0.104271239 | AO150: 0.3108264397 | AQ150: 0.0249909088 | AR150: 64.40700434 | AS150: 232.7068112 | AT150: 5.815554696
A151: 0.24 | B151: =B149+J150*dt -> 0.3269548366 | C151: =C149+K150*dt -> -0.178615498 | D151: =D149+B150*dt -> -0.03918459403 | E151: =E149+C150*dt -> -0.08311400599 | F151: -0.08311400599 | H151: 0.09188781422 | I151: 2.269844773 | J151: 0.9666551941 | K151: 2.05372175 | L151: 0.06877686732 | N151: =N149+V150*dt -> -0.6558952289 | O151: =O149+W150*dt -> 0.3557210297 | P151: =P149+N150*dt -> 0.07812132123 | Q151: =Q149+O150*dt -> 0.1661100307 | R151: 0.1661100307 | T151: 0.1835632947 | U151: 4.553474028 | V151: -1.939180764 | W151: -4.119915495 | X151: 0.1375137926 | Z151: 0.2754510814 | AA151: 0.1173059153 | AB151: 0.2492240367 | AC151: 0.0929510814 | AE151: -0.0001616161616 | AF151: -0.0002071547156 | AG151: 0.03902297787 | AH151: 0.08290685128 | AI151: 0.09163153819 | AJ151: -0.07828293739 | AK151: -0.1663171855 | AL151: 0.1838195432 | AN151: 0.1045428327 | AO151: 0.3108334926 | AQ151: 0.02501284623 | AR151: 64.79435641 | AS151: 232.5079504 | AT151: 5.815685611
A152: 0.2416666667 | B152: =B151+J151*dt/2 -> 0.3285659286 | C152: =C151+K151*dt/2 -> -0.1751926284 | D152: =D151+B152*dt/2 -> -0.03863698415 | E152: =E151+C152*dt/2 -> -0.08340599371 | F152: -0.08340599371 | H152: 0.09192048918 | I152: 2.272176657 | J152: 0.9537386151 | K152: 2.062321366 | L152: 0.06870009712 | N152: =N151+V151*dt/2 -> -0.6591271969 | O152: =O151+W151*dt/2 -> 0.3488545039 | P152: =P151+N152*dt/2 -> 0.0770227759 | Q152: =Q151+O152*dt/2 -> 0.1666914549 | R152: 0.1666914549 | T152: 0.1836261124 | U152: 4.558151958 | V152: -1.913269165 | W152: -4.13716695 | X152: 0.1373685873 | Z152: 0.275546573 | AA152: 0.1156597601 | AB152: 0.2500974486 | AC152: 0.09304657302 | AE152: -0.0001616161616 | AF152: -0.00020859329 | AG152: 0.03847536799 | AH152: 0.08319740042 | AI152: 0.09166330443 | AJ152: -0.07718439206 | AK152: -0.1669000482 | AL152: 0.1838832686 | AN152: 0.1047577435 | AO152: 0.3108264279 | AQ152: 0.02503019182 | AR152: 65.18140443 | AS152: 232.320029 | AT152: 5.815014889
A153: 0.2433333333 | B153: =B151+J152*dt -> 0.3301339653 | C153: =C151+K152*dt -> -0.1717410934 | D153: =D151+B152*dt -> -0.03808937427 | E153: =E151+C152*dt -> -0.08369798142 | F153: -0.08369798142 | H153: 0.0919573408 | I153: 2.274815379 | J153: 0.9408871598 | K153: 2.071114763 | L153: 0.06861854365 | N153: =N151+V152*dt -> -0.6622727928 | O153: =O151+W152*dt -> 0.3419304732 | P153: =P151+N152*dt -> 0.07592423057 | Q153: =Q151+O152*dt -> 0.1672728791 | R153: 0.1672728791 | T153: 0.1836973186 | U153: 4.563445426 | V153: -1.887488209 | W153: -4.154807146 | X153: 0.13721386 | Z153: 0.2756546298 | AA153: 0.1140136048 | AB153: 0.2509708605 | AC153: 0.09315462977 | AE153: -0.0001616161616 | AF153: -0.0002100318644 | AG153: 0.03792775811 | AH153: 0.08348794956 | AI153: 0.09169925058 | AJ153: -0.07608584673 | AK153: -0.167482911 | AL153: 0.1839553792 | AN153: 0.1050011991 | AO153: 0.3108336028 | AQ153: 0.02504982706 | AR153: 65.56816665 | AS153: 232.1430738 | AT153: 5.815143853
A154: 0.245 | B154: =B153+J153*dt/2 -> 0.3317021106 | C154: =C153+K153*dt/2 -> -0.1682892355 | D154: =D153+B154*dt/2 -> -0.03753653742 | E154: =E153+C154*dt/2 -> -0.08397846348 | F154: -0.08397846348 | H154: 0.09198572699 | I154: 2.276832925 | J154: 0.9277170014 | K154: 2.079256918 | L154: 0.06855121447 | N154: =N153+V153*dt/2 -> -0.6654186065 | O154: =O153+W153*dt/2 -> 0.3350057946 | P154: =P153+N154*dt/2 -> 0.07481519956 | Q154: =Q153+O154*dt/2 -> 0.1678312221 | R154: 0.1678312221 | T154: 0.1837515529 | U154: 4.56749277 | V154: -1.861067912 | W154: -4.171140903 | X154: 0.1370876687 | Z154: 0.2757372491 | AA154: 0.112351737 | AB154: 0.2518096856 | AC154: 0.09323724911 | AE154: -0.0001616161616 | AF154: -0.0002114704388 | AG154: 0.03737492126 | AH154: 0.08376699304 | AI154: 0.09172673472 | AJ154: -0.07497681572 | AK154: -0.1680426925 | AL154: 0.1840105144 | AN154: 0.1051875339 | AO154: 0.310826417 | AQ154: 0.0250648452 | AR154: 65.95466145 | AS154: 231.9771058 | AT154: 5.814470247
A155: 0.2466666667 | B155: =B153+J154*dt -> 0.3332263553 | C155: =C153+K154*dt -> -0.164810237 | D155: =D153+B154*dt -> -0.03698370057 | E155: =E153+C154*dt -> -0.08425894554 | F155: -0.08425894554 | H155: 0.09201828085 | I155: 2.279156672 | J155: 0.9146117238 | K155: 2.087592041 | L155: 0.06847919908 | N155: =N153+V154*dt -> -0.6684763525 | O155: =O153+W154*dt -> 0.3280266702 | P155: =P153+N154*dt -> 0.07370616855 | Q155: =Q153+O154*dt -> 0.1683895651 | R155: 0.1683895651 | T155: 0.1838141586 | U155: 4.572154377 | V155: -1.83477777 | W155: -4.187861767 | X155: 0.1369521462 | Z155: 0.2758324075 | AA155: 0.1106898691 | AB155: 0.2526485106 | AC155: 0.09333240752 | AE155: -0.0001616161616 | AF155: -0.0002129090132 | AG155: 0.03682208441 | AH155: 0.08404603653 | AI155: 0.09175839011 | AJ155: -0.07386778471 | AK155: -0.1686024741 | AL155: 0.1840740174 | AN155: 0.1054023534 | AO155: 0.3108336986 | AQ155: 0.02508214822 | AR155: 66.34090715 | AS155: 231.8221485 | AT155: 5.814597488
A156: 0.2483333333 | B156: =B155+J155*dt/2 -> 0.3347507082 | C156: =C155+K155*dt/2 -> -0.1613309169 | D156: =D155+B156*dt/2 -> -0.03642578272 | E156: =E155+C156*dt/2 -> -0.0845278304 | F156: -0.0845278304 | H156: 0.09204233678 | I156: 2.280856881 | J156: 0.9011982543 | K156: 2.095268435 | L156: 0.06842146505 | N156: =N155+V155*dt/2 -> -0.6715343155 | O156: =O155+W155*dt/2 -> 0.3210469006 | P156: =P155+N156*dt/2 -> 0.07258694469 | Q156: =Q155+O156*dt/2 -> 0.1689246432 | R156: 0.1689246432 | T156: 0.1838597281 | U156: 4.575565119 | V156: -1.807869373 | W156: -4.203261173 | X156: 0.136845274 | Z156: 0.2759020318 | AA156: 0.1090127274 | AB156: 0.2534524736 | AC156: 0.09340203177 | AE156: -0.0001616161616 | AF156: -0.0002143475877 | AG156: 0.03626416656 | AH156: 0.08431348281 | AI156: 0.09178155131 | AJ156: -0.07274856085 | AK156: -0.1691389908 | AL156: 0.1841204805 | AN156: 0.1055596684 | AO156: 0.3108264074 | AQ156: 0.02509481204 | AR156: 66.72692218 | AS156: 231.6782197 | AT156: 5.813921376
A157: 0.25 | B157: =B155+J156*dt -> 0.3362303495 | C157: =C155+K156*dt -> -0.1578260089 | D157: =D155+B156*dt -> -0.03586786487 | E157: =E155+C156*dt -> -0.08479671526 | F157: -0.08479671526 | H157: 0.09207055257 | I157: 2.282862743 | J157: 0.8878494995 | K157: 2.103137078 | L157: 0.06835912898 | N157: =N155+V156*dt -> -0.6745025838 | O157: =O155+W156*dt -> 0.3140157996 | P157: =P155+N156*dt -> 0.07146772083 | Q157: =Q155+O156*dt -> 0.1694597214 | R157: 0.1694597214 | T157: 0.1839136545 | U157: 4.579589024 | V157: -1.781090798 | W157: -4.219046243 | X157: 0.1367292355 | Z157: 0.2759841726 | AA157: 0.1073355857 | AB157: 0.2542564367 | AC157: 0.09348417264 | AE157: -0.0001616161616 | AF157: -0.0002157861621 | AG157: 0.03570624871 | AH157: 0.0845809291 | AI157: 0.09180887628 | AJ157: -0.07162933699 | AK157: -0.1696755076 | AL157: 0.1841752964 | AN157: 0.1057454155 | AO157: 0.3108337799 | AQ157: 0.02510975659 | AR157: 67.11272495 | AS157: 231.5453399 | AT157: 5.814047125
A158: 0.2516666667 | B158: =B157+J157*dt/2 -> 0.3377100987 | C158: =C157+K157*dt/2 -> -0.1543207804 | D158: =D157+B158*dt/2 -> -0.03530501471 | E158: =E157+C158*dt/2 -> -0.08505391656 | F158: -0.08505391656 | H158: 0.09209024262 | I158: 2.28424305 | J158: 0.8742033363 | K158: 2.110339981 | L158: 0.06831112345 | N158: =N157+V157*dt/2 -> -0.6774710684 | O158: =O157+W157*dt/2 -> 0.3069840559 | P158: =P157+N158*dt/2 -> 0.07033860238 | Q158: =Q157+O158*dt/2 -> 0.1699713615 | R158: 0.1699713615 | T158: 0.1839504898 | U158: 4.582358021 | V158: -1.7537156 | W158: -4.233495793 | X158: 0.136641946 | Z158: 0.2760406968 | AA158: 0.1056436171 | AB158: 0.2550252781 | AC158: 0.09354069679 | AE158: -0.0001616161616 | AF158: -0.0002172247365 | AG158: 0.03514339855 | AH158: 0.08483669183 | AI158: 0.09182767961 | AJ158: -0.07050021855 | AK158: -0.1701885862 | AL158: 0.1842130172 | AN158: 0.1058733297 | AO158: 0.3108263991 | AQ158: 0.02512004307 | AR158: 67.49833393 | AS158: 231.4235237 | AT158: 5.813368884
A159: 0.2533333333 | B159: =B157+J158*dt -> 0.3391443606 | C159: =C157+K158*dt -> -0.1507915423 | D159: =D157+B158*dt -> -0.03474216455 | E159: =E157+C158*dt -> -0.08531111786 | F159: -0.08531111786 | H159: 0.09211408594 | I159: 2.28592855 | J159: 0.8606217926 | K159: 2.117734513 | L159: 0.06825858685 | N159: =N157+V158*dt -> -0.6803483024 | O159: =O157+W158*dt -> 0.299904147 | P159: =P157+N158*dt -> 0.06920948394 | Q159: =Q157+O158*dt -> 0.1704830016 | R159: 0.1704830016 | T159: 0.1839956698 | U159: 4.585739257 | V159: -1.726470033 | W159: -4.248329761 | X159: 0.1365456286 | Z159: 0.2761097187 | AA159: 0.1039516485 | AB159: 0.2557941195 | AC159: 0.09360971872 | AE159: -0.0001616161616 | AF159: -0.0002186633109 | AG159: 0.03458054838 | AH159: 0.08509245455 | AI159: 0.09185064044 | AJ159: -0.0693711001 | AK159: -0.1707016649 | AL159: 0.1842590783 | AN159: 0.1060296312 | AO159: 0.3108338466 | AQ159: 0.0251326068 | AR159: 67.88376758 | AS159: 231.3127887 | AT159: 5.813493368
A160: 0.255 | B160: =B159+J159*dt/2 -> 0.3405787303 | C160: =C159+K159*dt/2 -> -0.1472619848 | D160: =D159+B160*dt/2 -> -0.03417453333 | E160: =E159+C160*dt/2 -> -0.08555655451 | F160: -0.08555655451 | H160: 0.09212938048 | I160: 2.286986829 | J160: 0.8467538822 | K160: 2.124456782 | L160: 0.06822042201 | N160: =N159+V159*dt/2 -> -0.6832257525 | O160: =O159+W159*dt/2 -> 0.2928235974 | P160: =P159+N160*dt/2 -> 0.06807077435 | Q160: =Q159+O160*dt/2 -> 0.1709710409 | R160: 0.1709710409 | T160: 0.1840237136 | U160: 4.587862241 | V160: -1.698649994 | W160: -4.261815123 | X160: 0.1364781427 | Z160: 0.2761530557 | AA160: 0.1022453077 | AB160: 0.2565275954 | AC160: 0.09365305567 | AE160: -0.0001616161616 | AF160: -0.0002201018853 | AG160: 0.03401291717 | AH160: 0.08533645262 | AI160: 0.0918650569 | AJ160: -0.06823239051 | AK160: -0.1711911428 | AL160: 0.1842879988 | AN160: 0.1061278275 | AO160: 0.3108263923 | AQ160: 0.02514049683 | AR160: 68.26904442 | AS160: 231.2131465 | AT160: 5.812813376
A161: 0.2566666667 | B161: =B159+J160*dt -> 0.3419668736 | C161: =C159+K160*dt -> -0.1437100197 | D161: =D159+B160*dt -> -0.03360690211 | E161: =E159+C160*dt -> -0.08580199115 | F161: -0.08580199115 | H161: 0.09214882286 | I161: 2.288349928 | J161: 0.8329505614 | K161: 2.131370159 | L161: 0.06817778359 | N161: =N159+V160*dt -> -0.6860104691 | O161: =O159+W160*dt -> 0.2856980966 | P161: =P159+N160*dt -> 0.06693206476 | Q161: =Q159+O160*dt -> 0.1714590803 | R161: 0.1714590803 | T161: 0.1840600921 | U161: 4.590596718 | V161: -1.670959527 | W161: -4.275683862 | X161: 0.1364017402 | Z161: 0.2762088752 | AA161: 0.1005389669 | AB161: 0.2572610714 | AC161: 0.09370887516 | AE161: -0.0001616161616 | AF161: -0.0002215404597 | AG161: 0.03344528595 | AH161: 0.08558045069 | AI161: 0.09188362581 | AJ161: -0.06709368092 | AK161: -0.1716806207 | AL161: 0.1843252493 | AN161: 0.1062543747 | AO161: 0.3108338985 | AQ161: 0.02515066127 | AR161: 68.65418295 | AS161: 231.1246117 | AT161: 5.81293682
A162: 0.2583333333 | B162: =B161+J161*dt/2 -> 0.3433551245 | C162: =C161+K161*dt/2 -> -0.1401577361 | D162: =D161+B162*dt/2 -> -0.03303464357 | E162: =E161+C162*dt/2 -> -0.08603558737 | F162: -0.08603558737 | H162: 0.09215969819 | I162: 2.28908449 | J162: 0.8188721591 | K162: 2.137605247 | L162: 0.06814955006 | N162: =N161+V161*dt/2 -> -0.6887954016 | O162: =O161+W161*dt/2 -> 0.2785719568 | P162: =P161+N162*dt/2 -> 0.06578407243 | Q162: =Q161+O162*dt/2 -> 0.1719233668 | R162: 0.1719233668 | T162: 0.1840792988 | U162: 4.592070304 | V162: -1.642717226 | W162: -4.288191902 | X162: 0.1363542358 | Z162: 0.2762389558 | AA162: 0.098818716 | AB162: 0.2579589542 | AC162: 0.09373895578 | AE162: -0.0001616161616 | AF162: -0.0002229790341 | AG162: 0.03287302741 | AH162: 0.08581260834 | AI162: 0.09189363243 | AJ162: -0.06594568859 | AK162: -0.1721463459 | AL162: 0.1843453234 | AN162: 0.1063226012 | AO162: 0.310826387 | AQ162: 0.02515613966 | AR162: 69.03920173 | AS162: 231.047193 | AT162: 5.812255453
A163: 0.26 | B163: =B161+J162*dt -> 0.3446964475 | C163: =C161+K162*dt -> -0.1365846689 | D163: =D161+B162*dt -> -0.03246238503 | E163: =E161+C162*dt -> -0.0862691836 | F163: -0.0862691836 | H163: 0.09217471715 | I163: 2.290123589 | J163: 0.8048583765 | K163: 2.144031027 | L163: 0.06811688677 | N163: =N161+V162*dt -> -0.6914861932 | O163: =O161+W162*dt -> 0.2714041235 | P163: =P161+N162*dt -> 0.06463608009 | Q163: =Q161+O162*dt -> 0.1723876534 | R163: 0.1723876534 | T163: 0.1841068329 | U163: 4.594154811 | V163: -1.614604557 | W163: -4.301082486 | X163: 0.1362978983 | Z163: 0.2762815073 | AA163: 0.09709846512 | AB163: 0.258656837 | AC163: 0.0937815073 | AE163: -0.0001616161616 | AF163: -0.0002244176085 | AG163: 0.03230076887 | AH163: 0.08604476599 | AI163: 0.09190778761 | AJ163: -0.06479769625 | AK163: -0.172612071 | AL163: 0.1843737197 | AN163: 0.1064191504 | AO163: 0.3108339356 | AQ163: 0.0251638903 | AR163: 69.42411929 | AS163: 230.9809022 | AT163: 5.812378084
A164: 0.2616666667 | B164: =B163+J163*dt/2 -> 0.3460378781 | C164: =C163+K163*dt/2 -> -0.1330112838 | D164: =D163+B164*dt/2 -> -0.03188565523 | E164: =E163+C164*dt/2 -> -0.08649086907 | F164: -0.08649086907 | H164: 0.09218115557 | I164: 2.290533187 | J164: 0.7905810262 | K164: 2.149772993 | L164: 0.06809865338 | N164: =N163+V163*dt/2 -> -0.6941772008 | O164: =O163+W163*dt/2 -> 0.2642356527 | P164: =P163+N164*dt/2 -> 0.06347911809 | Q164: =Q163+O164*dt/2 -> 0.1728280462 | R164: 0.1728280462 | T164: 0.1841171692 | U164: 4.594976494 | V164: -1.585963152 | W164: -4.312601287 | X164: 0.1362705092 | Z164: 0.2762982805 | AA164: 0.09536477332 | AB164: 0.2593189153 | AC164: 0.0937982805 | AE164: -0.0001616161616 | AF164: -0.000225856183 | AG164: 0.03172403907 | AH164: 0.08626501289 | AI164: 0.09191336738 | AJ164: -0.06364073425 | AK164: -0.1730539024 | AL164: 0.1843849131 | AN164: 0.1064572208 | AO164: 0.3108263834 | AQ164: 0.02516694581 | AR164: 69.80895421 | AS164: 230.9257453 | AT164: 5.811695719
A165: 0.2633333333 | B165: =B163+J164*dt -> 0.3473317175 | C165: =C163+K164*dt -> -0.1294187589 | D165: =D163+B164*dt -> -0.03130892544 | E165: =E163+C164*dt -> -0.08671255455 | F165: -0.08671255455 | H165: 0.0921917346 | I165: 2.291247125 | J165: 0.7763683798 | K165: 2.155705343 | L165: 0.06807602016 | N165: =N163+V164*dt -> -0.696772737 | O165: =O163+W164*dt -> 0.2570287859 | P165: =P163+N164*dt -> 0.06232215609 | Q165: =Q163+O164*dt -> 0.1732684389 | R165: 0.1732684389 | T165: 0.1841358278 | U165: 4.596408706 | V165: -1.557451547 | W165: -4.324502014 | X165: 0.1362343428 | Z165: 0.2763275166 | AA165: 0.09363108152 | AB165: 0.2599809935 | AC165: 0.09382751656 | AE165: -0.0001616161616 | AF165: -0.0002272947574 | AG165: 0.03114730927 | AH165: 0.08648525979 | AI165: 0.09192309305 | AJ165: -0.06248377225 | AK165: -0.1734957337 | AL165: 0.1844044235 | AN165: 0.1065235946 | AO165: 0.3108339576 | AQ165: 0.0251722721 | AR165: 70.19372506 | AS165: 230.8817312 | AT165: 5.81181776
A166: 0.265 | B166: =B165+J165*dt/2 -> 0.3486256648 | C166: =C165+K165*dt/2 -> -0.1258259166 | D166: =D165+B166*dt/2 -> -0.03072788266 | E166: =E165+C166*dt/2 -> -0.08692226441 | F166: -0.08692226441 | H166: 0.09219372442 | I166: 2.291330952 | J166: 0.7619038931 | K166: 2.160948863 | L166: 0.06806783367 | N166: =N165+V165*dt/2 -> -0.6993684896 | O166: =O165+W165*dt/2 -> 0.2498212826 | P166: =P165+N166*dt/2 -> 0.06115654194 | Q166: =Q165+O166*dt/2 -> 0.1736848078 | R166: 0.1736848078 | T166: 0.1841372723 | U166: 4.596576869 | V166: -1.528434733 | W166: -4.335020897 | X166: 0.1362271585 | Z166: 0.2763309493 | AA166: 0.0918844246 | AB166: 0.2606070722 | AC166: 0.09383094931 | AE166: -0.0001616161616 | AF166: -0.0002287333318 | AG166: 0.0305662665 | AH166: 0.08669353108 | AI166: 0.09192423499 | AJ166: -0.0613181581 | AK166: -0.1739135411 | AL166: 0.1844067143 | AN166: 0.1065313893 | AO166: 0.3108263814 | AQ166: 0.02517289752 | AR166: 70.57845042 | AS166: 230.8488631 | AT166: 5.811134774
A167: 0.2666666667 | B167: =B165+J166*dt -> 0.3498713972 | C167: =C165+K166*dt -> -0.122215596 | D167: =D165+B166*dt -> -0.03014683989 | E167: =E165+C166*dt -> -0.08713197427 | F167: -0.08713197427 | H167: 0.09219985301 | I167: 2.291719011 | J167: 0.747504243 | K167: 2.166382568 | L167: 0.06805526333 | N167: =N165+V166*dt -> -0.7018675195 | O167: =O165+W166*dt -> 0.2425787163 | P167: =P165+N166*dt -> 0.05999092779 | Q167: =Q165+O166*dt -> 0.1741011766 | R167: 0.1741011766 | T167: 0.1841470366 | U167: 4.597355344 | V167: -1.499547985 | W167: -4.345921306 | X167: 0.1362112248 | Z167: 0.2763468405 | AA167: 0.09013776767 | AB167: 0.2612331508 | AC167: 0.0938468405 | AE167: -0.0001616161616 | AF167: -0.0002301719062 | AG167: 0.02998522372 | AH167: 0.08690180236 | AI167: 0.09192952135 | AJ167: -0.06015254395 | AK167: -0.1743313485 | AL167: 0.1844173191 | AN167: 0.1065674766 | AO167: 0.3108339647 | AQ167: 0.02517579288 | AR167: 70.96314888 | AS167: 230.8271473 | AT167: 5.81125645
A168: 0.2683333333 | B168: =B167+J167*dt/2 -> 0.3511172376 | C168: =C167+K167*dt/2 -> -0.1186049584 | D168: =D167+B168*dt/2 -> -0.02956164449 | E168: =E167+C168*dt/2 -> -0.0873296492 | F168: -0.0873296492 | H168: 0.09219738854 | I168: 2.291476703 | J168: 0.732864678 | K168: 2.171122946 | L168: 0.06805714831 | N168: =N167+V167*dt/2 -> -0.7043667661 | O168: =O167+W167*dt/2 -> 0.2353355141 | P168: =P167+N168*dt/2 -> 0.05881698318 | Q168: =Q167+O168*dt/2 -> 0.1744934024 | R168: 0.1744934024 | T168: 0.1841395802 | U168: 4.596869257 | V168: -1.470179951 | W168: -4.355430848 | X168: 0.1362242903 | Z168: 0.2763369179 | AA168: 0.08837862767 | AB168: 0.2618230516 | AC168: 0.09383691788 | AE168: -0.0001616161616 | AF168: -0.0002316104806 | AG168: 0.02940002833 | AH168: 0.08709803872 | AI168: 0.09192622049 | AJ168: -0.05897859934 | AK168: -0.1747250129 | AL168: 0.1844106974 | AN168: 0.1065449426 | AO168: 0.3108263812 | AQ168: 0.02517398497 | AR168: 71.34783904 | AS168: 230.816584 | AT168: 5.810573217
A169: 0.27 | B169: =B167+J168*dt -> 0.3523142794 | C169: =C167+K168*dt -> -0.1149785195 | D169: =D167+B168*dt -> -0.02897644909 | E169: =E167+C168*dt -> -0.08752732413 | F169: -0.08752732413 | H169: 0.0921990622 | I169: 2.291538608 | J169: 0.718290125 | K169: 2.17605342 | L169: 0.06805465137 | N169: =N167+V168*dt -> -0.7067681193 | O169: =O167+W168*dt -> 0.2280606134 | P169: =P167+N168*dt -> 0.05764303857 | Q169: =Q167+O168*dt -> 0.1748856283 | R169: 0.1748856283 | T169: 0.1841404433 | U169: 4.596993442 | V169: -1.440942336 | W169: -4.365321739 | X169: 0.136228606 | Z169: 0.2763394529 | AA169: 0.08661948766 | AB169: 0.2624129524 | AC169: 0.0938394529 | AE169: -0.0001616161616 | AF169: -0.000233049055 | AG169: 0.02881483293 | AH169: 0.08729427507 | AI169: 0.09192706379 | AJ169: -0.05780465473 | AK169: -0.1751186773 | AL169: 0.1844123891 | AN169: 0.1065506993 | AO169: 0.3108339567 | AQ169: 0.02517444685 | AR169: 71.73253947 | AS169: 230.817177 | AT169: 5.810694753
A170: 0.2716666667 | B170: =B169+J169*dt/2 -> 0.3535114297 | C170: =C169+K169*dt/2 -> -0.1113517638 | D170: =D169+B170*dt/2 -> -0.02838726338 | E170: =E169+C170*dt/2 -> -0.0877129104 | F170: -0.0877129104 | H170: 0.09219214377 | I170: 2.290970243 | J170: 0.7034877653 | K170: 2.180286591 | L170: 0.06806661014 | N170: =N169+V169*dt/2 -> -0.7091696898 | O170: =O169+W169*dt/2 -> 0.2207850772 | P170: =P169+N170*dt/2 -> 0.05646108908 | Q170: =Q169+O170*dt/2 -> 0.1752536034 | R170: 0.1752536034 | T170: 0.1841240888 | U170: 4.595853261 | V170: -1.411247723 | W170: -4.373813789 | X170: 0.1362619217 | Z170: 0.2763161781 | AA170: 0.08484835246 | AB170: 0.2629665138 | AC170: 0.09381617813 | AE170: -0.0001616161616 | AF170: -0.0002344876294 | AG170: 0.02822564722 | AH170: 0.08747842277 | AI170: 0.09191932121 | AJ170: -0.05662270525 | AK170: -0.175488091 | AL170: 0.1843968569 | AN170: 0.1064978509 | AO170: 0.3108263828 | AQ170: 0.02517020637 | AR170: 72.11726878 | AS170: 230.8289238 | AT170: 5.810011648
A171: 0.2733333333 | B171: =B169+J170*dt -> 0.3546592387 | C171: =C169+K170*dt -> -0.1077108975 | D171: =D169+B170*dt -> -0.02779807766 | E171: =E169+C170*dt -> -0.08789849668 | F171: -0.08789849668 | H171: 0.09218936403 | I171: 2.290706159 | J171: 0.6887506296 | K171: 2.184709884 | L171: 0.06807417485 | N171: =N169+V170*dt -> -0.7114722784 | O171: =O169+W170*dt -> 0.2134812341 | P171: =P169+N170*dt -> 0.0552791396 | Q171: =Q169+O170*dt -> 0.1756215785 | R171: 0.1756215785 | T171: 0.1841160561 | U171: 4.59532349 | V171: -1.381683955 | W171: -4.382687238 | X171: 0.1362864589 | Z171: 0.2763053638 | AA171: 0.08307721726 | AB171: 0.2635200752 | AC171: 0.0938053638 | AE171: -0.0001616161616 | AF171: -0.0002359262039 | AG171: 0.0276364615 | AH171: 0.08766257047 | AI171: 0.09191572372 | AJ171: -0.05544075576 | AK171: -0.1758575047 | AL171: 0.1843896401 | AN171: 0.1064733 | AO171: 0.3108339337 | AQ171: 0.02516823621 | AR171: 72.50204556 | AS171: 230.8518252 | AT171: 5.810133267
A172: 0.275 | B172: =B171+J171*dt/2 -> 0.3558071564 | C172: =C171+K171*dt/2 -> -0.1040697144 | D172: =D171+B172*dt/2 -> -0.02720506573 | E172: =E171+C172*dt/2 -> -0.0880719462 | F172: -0.0880719462 | H172: 0.09217799797 | I172: 2.289812258 | J172: 0.6737979622 | K172: 2.188432426 | L172: 0.06809618742 | N172: =N171+V171*dt/2 -> -0.713775085 | O172: =O171+W171*dt/2 -> 0.2061767554 | P172: =P171+N172*dt/2 -> 0.05408951446 | Q172: =Q171+O172*dt/2 -> 0.1759652065 | R172: 0.1759652065 | T172: 0.1840908185 | U172: 4.593530259 | V172: -1.351687815 | W172: -4.390154928 | X172: 0.1363399804 | Z172: 0.2762687582 | AA172: 0.0812945802 | AB172: 0.2640371527 | AC172: 0.09376875819 | AE172: -0.0001616161616 | AF172: -0.0002373647783 | AG172: 0.02704344957 | AH172: 0.08783458142 | AI172: 0.09190354649 | AJ172: -0.05425113062 | AK172: -0.1762025712 | AL172: 0.1843652117 | AN172: 0.1063902181 | AO172: 0.310826386 | AQ172: 0.02516156796 | AR172: 72.88688837 | AS172: 230.8858763 | AT172: 5.809450666
A173: 0.2766666667 | B173: =B171+J172*dt -> 0.3569052319 | C173: =C171+K172*dt -> -0.1004161228 | D173: =D171+B172*dt -> -0.02661205381 | E173: =E171+C172*dt -> -0.08824539572 | F173: -0.08824539572 | H173: 0.09217077234 | I173: 2.289222795 | J173: 0.6589107621 | K173: 2.192345232 | L173: 0.06811377979 | N173: =N171+V172*dt -> -0.7159779044 | O173: =O171+W172*dt -> 0.1988473844 | P173: =P171+N172*dt -> 0.05289988932 | Q173: =Q171+O172*dt -> 0.1763088344 | R173: 0.1763088344 | T173: 0.1840739074 | U173: 4.592347754 | V173: -1.321823007 | W173: -4.398004301 | X173: 0.1363846665 | Z173: 0.2762446194 | AA173: 0.07951194313 | AB173: 0.2645542301 | AC173: 0.09374461943 | AE173: -0.0001616161616 | AF173: -0.0002388033527 | AG173: 0.02645043765 | AH173: 0.08800659237 | AI173: 0.0918955165 | AJ173: -0.05306150548 | AK173: -0.1765476377 | AL173: 0.1843491029 | AN173: 0.1063354494 | AO173: 0.3108338958 | AQ173: 0.0251571712 | AR173: 73.27181581 | AS173: 230.9310751 | AT173: 5.809572592
A174: 0.2783333333 | B174: =B173+J173*dt/2 -> 0.3580034165 | C174: =C173+K173*dt/2 -> -0.09676221407 | D174: =D173+B174*dt/2 -> -0.02601538145 | E174: =E173+C174*dt/2 -> -0.08840666608 | F174: -0.08840666608 | H174: 0.092154971 | I174: 2.288004321 | J174: 0.6438204555 | K174: 2.19555437 | L174: 0.06814580396 | N174: =N173+V173*dt/2 -> -0.7181809428 | O174: =O173+W173*dt/2 -> 0.1915173772 | P174: =P173+N174*dt/2 -> 0.05170292108 | Q174: =Q173+O174*dt/2 -> 0.17662803 | R174: 0.17662803 | T174: 0.1840398137 | U174: 4.589903405 | V174: -1.291550752 | W174: -4.404442067 | X174: 0.1364583048 | Z174: 0.2761947224 | AA174: 0.07771830253 | AB174: 0.2650346961 | AC174: 0.0936947224 | AE174: -0.0001616161616 | AF174: -0.0002402419271 | AG174: 0.02585376529 | AH174: 0.08816642415 | AI174: 0.09187891775 | AJ174: -0.05186453724 | AK174: -0.1768682719 | AL174: 0.1843158046 | AN174: 0.1062222822 | AO174: 0.3108263909 | AQ174: 0.02514808393 | AR174: 73.65684642 | AS174: 230.9874138 | AT174: 5.80889087
A175: 0.28 | B175: =B173+J174*dt -> 0.3590513001 | C175: =C173+K174*dt -> -0.09309760822 | D175: =D173+B174*dt -> -0.02541870909 | E175: =E173+C174*dt -> -0.08856793644 | F175: -0.08856793644 | H175: 0.09214331303 | I175: 2.287090529 | J175: 0.6287958848 | K175: 2.198954029 | L175: 0.06817336786 | N175: =N173+V174*dt -> -0.7202830736 | O175: =O173+W174*dt -> 0.1841659108 | P175: =P173+N174*dt -> 0.05050595284 | Q175: =Q173+O174*dt -> 0.1769472256 | R175: 0.1769472256 | T175: 0.1840140536 | U175: 4.588070272 | V175: -1.261410368 | W175: -4.41126203 | X175: 0.1365230228 | Z175: 0.2761573022 | AA175: 0.07592466193 | AB175: 0.2655151621 | AC175: 0.09365730224 | AE175: -0.0001616161616 | AF175: -0.0002416805015 | AG175: 0.02525709292 | AH175: 0.08832625594 | AI175: 0.09186646957 | AJ175: -0.050667569 | AK175: -0.1771889061 | AL175: 0.1842908327 | AN175: 0.1061374522 | AO175: 0.3108338429 | AQ175: 0.02514127003 | AR175: 74.04199877 | AS175: 231.0548878 | AT175: 5.809013328
A176: 0.2816666667 | B176: =B175+J175*dt/2 -> 0.3600992932 | C176: =C175+K175*dt/2 -> -0.08943268484 | D176: =D175+B176*dt/2 -> -0.0248185436 | E176: =E175+C176*dt/2 -> -0.08871699091 | F176: -0.08871699091 | H176: 0.09212309473 | I176: 2.285548884 | J176: 0.6135807673 | K176: 2.201647643 | L176: 0.06821533936 | N176: =N175+V175*dt/2 -> -0.7223854242 | O176: =O175+W175*dt/2 -> 0.1768138074 | P176: =P175+N176*dt/2 -> 0.04930197714 | Q176: =Q175+O176*dt/2 -> 0.1772419153 | R176: 0.1772419153 | T176: 0.1839711431 | U176: 4.58497762 | V176: -1.230887734 | W176: -4.416665616 | X176: 0.1366166444 | Z176: 0.2760941712 | AA176: 0.07412052073 | AB176: 0.2659589062 | AC176: 0.09359417125 | AE176: -0.0001616161616 | AF176: -0.0002431190759 | AG176: 0.02465692744 | AH176: 0.08847387184 | AI176: 0.09184546841 | AJ176: -0.0494635933 | AK176: -0.1774850344 | AL176: 0.1842487028 | AN176: 0.1059944136 | AO176: 0.3108263974 | AQ176: 0.0251297765 | AR176: 74.42729137 | AS176: 231.1334866 | AT176: 5.808332859
A177: 0.2833333333 | B177: =B175+J176*dt -> 0.3610965693 | C177: =C175+K176*dt -> -0.08575878275 | D177: =D175+B176*dt -> -0.02421837811 | E177: =E175+C176*dt -> -0.08886604539 | F177: -0.08886604539 | H177: 0.09210702395 | I177: 2.284312255 | J177: 0.5984316733 | K177: 2.204532152 | L177: 0.06825279673 | N177: =N175+V176*dt -> -0.7243860327 | O177: =O175+W176*dt -> 0.1694436921 | P177: =P175+N176*dt -> 0.04809800143 | Q177: =Q175+O176*dt -> 0.177536605 | R177: 0.177536605 | T177: 0.1839365756 | U177: 4.582496852 | V177: -1.200497547 | W177: -4.422452152 | X177: 0.1367012334 | Z177: 0.2760435308 | AA177: 0.07231637954 | AB177: 0.2664026504 | AC177: 0.09354353077 | AE177: -0.0001616161616 | AF177: -0.0002445576503 | AG177: 0.02405676195 | AH177: 0.08862148774 | AI177: 0.09182862236 | AJ177: -0.04825961759 | AK177: -0.1777811626 | AL177: 0.1842149084 | AN177: 0.105879745 | AO177: 0.3108337752 | AQ177: 0.02512055887 | AR177: 74.81274278 | AS177: 231.2232026 | AT177: 5.808456073
A178: 0.285 | B178: =B177+J177*dt/2 -> 0.3620939554 | C178: =C177+K177*dt/2 -> -0.08208456249 | D178: =D177+B178*dt/2 -> -0.02361488818 | E178: =E177+C178*dt/2 -> -0.08900285299 | F178: -0.08900285299 | H178: 0.092082413 | I178: 2.282449283 | J178: 0.5831047099 | K178: 2.206708777 | L178: 0.06830462938 | N178: =N177+V177*dt/2 -> -0.7263868619 | O178: =O177+W177*dt/2 -> 0.1620729385 | P178: =P177+N178*dt/2 -> 0.04688735666 | Q178: =Q177+O178*dt/2 -> 0.1778067266 | R178: 0.1778067266 | T178: 0.1838848994 | U178: 4.578759594 | V178: -1.169750542 | W178: -4.426818619 | X178: 0.1368146611 | Z178: 0.2759672413 | AA178: 0.07050224484 | AB178: 0.2668095796 | AC178: 0.09346724129 | AE178: -0.0001616161616 | AF178: -0.0002459962248 | AG178: 0.02345327202 | AH178: 0.08875685677 | AI178: 0.09180324391 | AJ178: -0.04704897282 | AK178: -0.1780527228 | AL178: 0.1841639974 | AN178: 0.1057071149 | AO178: 0.3108264054 | AQ178: 0.02510667577 | AR178: 75.19837145 | AS178: 231.3240226 | AT178: 5.807777233
A179: 0.2866666667 | B179: =B177+J178*dt -> 0.3630402516 | C179: =C177+K178*dt -> -0.07840308682 | D179: =D177+B178*dt -> -0.02301139826 | E179: =E177+C178*dt -> -0.0891396606 | F179: -0.0891396606 | H179: 0.0920619549 | I179: 2.280891748 | J179: 0.5678440706 | K179: 2.209076793 | L179: 0.06835188046 | N179: =N177+V178*dt -> -0.7282852012 | O179: =O177+W178*dt -> 0.15468763 | P179: =P177+N178*dt -> 0.04567671189 | Q179: =Q177+O178*dt -> 0.1780768481 | R179: 0.1780768481 | T179: 0.1838415781 | U179: 4.575635064 | V179: -1.139136587 | W179: -4.431569031 | X179: 0.1369189165 | Z179: 0.2759034596 | AA179: 0.06868811015 | AB179: 0.2672165087 | AC179: 0.09340345958 | AE179: -0.0001616161616 | AF179: -0.0002474347992 | AG179: 0.0228497821 | AH179: 0.0888922258 | AI179: 0.09178202628 | AJ179: -0.04583832805 | AK179: -0.1783242829 | AL179: 0.1841214333 | AN179: 0.1055628958 | AO179: 0.3108336927 | AQ179: 0.02509507177 | AR179: 75.5841959 | AS179: 231.4359362 | AT179: 5.807901429
A180: 0.2883333333 | B180: =B179+J179*dt/2 -> 0.3639866584 | C180: =C179+K179*dt/2 -> -0.07472129217 | D180: =D179+B180*dt/2 -> -0.02240475383 | E180: =E179+C180*dt/2 -> -0.08926419608 | F180: -0.08926419608 | H180: 0.09203298157 | I180: 2.278709729 | J180: 0.5524183407 | K180: 2.210735626 | L180: 0.06841346649 | N180: =N179+V179*dt/2 -> -0.7301837622 | O180: =O179+W179*dt/2 -> 0.1473016817 | P180: =P179+N180*dt/2 -> 0.04445973895 | Q180: =Q179+O180*dt/2 -> 0.1783223509 | R180: 0.1783223509 | T180: 0.1837811993 | U180: 4.571257777 | V180: -1.108191449 | W180: -4.434896772 | X180: 0.1370519296 | Z180: 0.275814105 | AA180: 0.06686449278 | AB180: 0.267586547 | AC180: 0.09331410503 | AE180: -0.0001616161616 | AF180: -0.0002488733736 | AG180: 0.02224313767 | AH180: 0.08901532271 | AI180: 0.09175230161 | AJ180: -0.04462135511 | AK180: -0.1785712243 | AL180: 0.1840618034 | AN180: 0.1053610186 | AO180: 0.3108264147 | AQ180: 0.02507881974 | AR180: 75.97023454 | AS180: 231.5589271 | AT180: 5.807224593
A181: 0.29 | B181: =B179+J180*dt -> 0.3648816461 | C181: =C179+K180*dt -> -0.07103396807 | D181: =D179+B180*dt -> -0.0217981094 | E181: =E179+C180*dt -> -0.08938873157 | F181: -0.08938873157 | H181: 0.0920081676 | I181: 2.276833657 | J181: 0.5370592424 | K181: 2.212586466 | L181: 0.06847039016 | N181: =N179+V180*dt -> -0.7319791727 | O181: =O179+W180*dt -> 0.1399046408 | P181: =P179+N180*dt -> 0.04324276602 | Q181: =Q179+O180*dt -> 0.1785678537 | R181: 0.1785678537 | T181: 0.1837291898 | U181: 4.567494239 | V181: -1.077379978 | W181: -4.438609693 | X181: 0.137175604 | Z181: 0.2757372791 | AA181: 0.06504087541 | AB181: 0.2679565853 | AC181: 0.09323727909 | AE181: -0.0001616161616 | AF181: -0.000250311948 | AG181: 0.02163649323 | AH181: 0.08913841962 | AI181: 0.09172674469 | AJ181: -0.04340438218 | AK181: -0.1788181657 | AL181: 0.1840105344 | AN181: 0.1051876016 | AO181: 0.3108335957 | AQ181: 0.02506485065 | AR181: 76.35650584 | AS181: 231.6929822 | AT181: 5.807349997
A182: 0.2916666667 | B182: =B181+J181*dt/2 -> 0.3657767449 | C182: =C181+K181*dt/2 -> -0.06734632396 | D182: =D181+B182*dt/2 -> -0.02118848149 | E182: =E181+C182*dt/2 -> -0.08950097544 | F182: -0.08950097544 | H182: 0.09197486805 | I182: 2.274335309 | J182: 0.5215479163 | K182: 2.213727371 | L182: 0.06854160052 | N182: =N181+V181*dt/2 -> -0.733774806 | O182: =O181+W181*dt/2 -> 0.132506958 | P182: =P181+N182*dt/2 -> 0.04201980801 | Q182: =Q181+O182*dt/2 -> 0.1787886987 | R182: 0.1787886987 | T182: 0.1836601836 | U182: 4.562482372 | V182: -1.046263128 | W182: -4.44089843 | X182: 0.1373279393 | Z182: 0.2756349707 | AA182: 0.06320828949 | AB182: 0.2682896741 | AC182: 0.09313497073 | AE182: -0.0001616161616 | AF182: -0.0002517505224 | AG182: 0.02102686533 | AH182: 0.08924922492 | AI182: 0.0916927108 | AJ182: -0.04218142417 | AK182: -0.1790404492 | AL182: 0.1839422599 | AN182: 0.1049568856 | AO182: 0.3108264253 | AQ182: 0.0250462542 | AR182: 76.74302814 | AS182: 231.8380822 | AT182: 5.80667554
A183: 0.2933333333 | B183: =B181+J182*dt -> 0.3666201392 | C183: =C181+K182*dt -> -0.06365487684 | D183: =D181+B182*dt -> -0.02057885358 | E183: =E181+C182*dt -> -0.08961321932 | F183: -0.08961321932 | H183: 0.09194573558 | I183: 2.272143505 | J183: 0.5061035301 | K183: 2.21506102 | L183: 0.06860805468 | N183: =N181+V182*dt -> -0.7354667164 | O183: =O181+W182*dt -> 0.125101646 | P183: =P181+N182*dt -> 0.04079685 | Q183: =Q181+O182*dt -> 0.1790095436 | R183: 0.1790095436 | T183: 0.1835995634 | U183: 4.558085452 | V183: -1.015280563 | W183: -4.443573828 | X183: 0.1374707431 | Z183: 0.2755452154 | AA183: 0.06137570358 | AB183: 0.2686227629 | AC183: 0.09304521542 | AE183: -0.0001616161616 | AF183: -0.0002531890968 | AG183: 0.02041723742 | AH183: 0.08936003022 | AI183: 0.09166285281 | AJ183: -0.04095846616 | AK183: -0.1792627327 | AL183: 0.1838823626 | AN183: 0.1047546866 | AO183: 0.3108334843 | AQ183: 0.02502994518 | AR183: 77.12981987 | AS183: 231.9942108 | AT183: 5.806802379
A184: 0.295 | B184: =B183+J183*dt/2 -> 0.3674636451 | C184: =C183+K183*dt/2 -> -0.05996310847 | D184: =D183+B184*dt/2 -> -0.01996641417 | E184: =E183+C184*dt/2 -> -0.08971315783 | F184: -0.08971315783 | H184: 0.09190815188 | I184: 2.269331979 | J184: 0.4905198461 | K184: 2.215684524 | L184: 0.06868873943 | N184: =N183+V183*dt/2 -> -0.7371588507 | O184: =O183+W183*dt/2 -> 0.1176956897 | P184: =P183+N184*dt/2 -> 0.03956825191 | Q184: =Q183+O184*dt/2 -> 0.1792057031 | R184: 0.1792057031 | T184: 0.1835220166 | U184: 4.552445325 | V184: -0.9840185577 | W184: -4.444824622 | X184: 0.1376420953 | Z184: 0.2754300823 | AA184: 0.05953466608 | AB184: 0.2689188609 | AC184: 0.09293008226 | AE184: -0.0001616161616 | AF184: -0.0002546276712 | AG184: 0.01980479801 | AH184: 0.08945853016 | AI184: 0.09162455262 | AJ184: -0.03972986807 | AK184: -0.1794603307 | AL184: 0.1838055296 | AN184: 0.1044956023 | AO184: 0.310826437 | AQ184: 0.02500903264 | AR184: 77.5168993 | AS184: 232.1613458 | AT184: 5.806130677
A185: 0.2966666667 | B185: =B183+J184*dt -> 0.3682552053 | C185: =C183+K184*dt -> -0.05626926176 | D185: =D183+B184*dt -> -0.01935397476 | E185: =E183+C184*dt -> -0.08981309634 | F185: -0.08981309634 | H185: 0.09187474416 | I185: 2.266827679 | J185: 0.4750034046 | K185: 2.216501634 | L185: 0.06876456147 | N185: =N183+V184*dt -> -0.7387467783 | O185: =O183+W184*dt -> 0.110285564 | P185: =P183+N184*dt -> 0.03833965383 | Q185: =Q183+O184*dt -> 0.1794018626 | R185: 0.1794018626 | T185: 0.183452875 | U185: 4.547421519 | V185: -0.9528914453 | W185: -4.446463804 | X185: 0.1378036979 | Z185: 0.2753275302 | AA185: 0.05769362859 | AB185: 0.2692149589 | AC185: 0.09282753018 | AE185: -0.0001616161616 | AF185: -0.0002560662457 | AG185: 0.0191923586 | AH185: 0.0895570301 | AI185: 0.09159043765 | AJ185: -0.03850126999 | AK185: -0.1796579288 | AL185: 0.1837370925 | AN185: 0.1042650993 | AO185: 0.3108333587 | AQ185: 0.02499041267 | AR185: 77.90428477 | AS185: 232.3394678 | AT185: 5.806259179
A186: 0.2983333333 | B186: =B185+J185*dt/2 -> 0.3690468777 | C186: =C185+K185*dt/2 -> -0.05257509237 | D186: =D185+B186*dt/2 -> -0.01873889663 | E186: =E185+C186*dt/2 -> -0.0899007215 | F186: -0.0899007215 | H186: 0.09183292423 | I186: 2.263706555 | J186: 0.4593606454 | K186: 2.216608934 | L186: 0.0688545503 | N186: =N185+V185*dt/2 -> -0.7403349307 | O186: =O185+W185*dt/2 -> 0.102874791 | P186: =P185+N186*dt/2 -> 0.03710576228 | Q186: =Q185+O186*dt/2 -> 0.1795733205 | R186: 0.1795733205 | T186: 0.1833668864 | U186: 4.541160317 | V186: -0.9215109303 | W186: -4.446679056 | X186: 0.137993721 | Z186: 0.2751997189 | AA186: 0.05584465891 | AB186: 0.269474042 | AC186: 0.09269971886 | AE186: -0.0001616161616 | AF186: -0.0002575048201 | AG186: 0.01857728047 | AH186: 0.08964321668 | AI186: 0.09154791994 | AJ186: -0.03726737844 | AK186: -0.1798308254 | AL186: 0.1836517989 | AN186: 0.1039781783 | AO186: 0.3108264496 | AQ186: 0.02496721617 | AR186: 78.29199447 | AS186: 232.5285513 | AT186: 5.805590607
A187: 0.3 | B187: =B185+J186*dt -> 0.3697864075 | C187: =C185+K186*dt -> -0.04888056531 | D187: =D185+B186*dt -> -0.0181238185 | E187: =E185+C186*dt -> -0.08998834665 | F187: -0.08998834665 | H187: 0.09179529035 | I187: 2.260893431 | J187: 0.4437854189 | K187: 2.216910825 | L187: 0.06893955757 | N187: =N185+V186*dt -> -0.7418184814 | O187: =O185+W186*dt -> 0.09546330045 | P187: =P185+N186*dt -> 0.03587187072 | Q187: =Q185+O186*dt -> 0.1797447785 | R187: 0.1797447785 | T187: 0.1832893246 | U187: 4.535516983 | V187: -0.890265891 | W187: -4.447284671 | X187: 0.1381737516 | Z187: 0.2750845202 | AA187: 0.05399568923 | AB187: 0.2697331252 | AC187: 0.09258452023 | AE187: -0.0001616161616 | AF187: -0.0002589433945 | AG187: 0.01796220234 | AH187: 0.08972940326 | AI187: 0.09150959798 | AJ187: -0.03603348689 | AK187: -0.1800037219 | AL187: 0.1835749223 | AN187: 0.10371991 | AO187: 0.3108332191 | AQ187: 0.02494631799 | AR187: 78.68004668 | AS187: 232.7285736 | AT187: 5.805721003
A188: 0.3016666667 | B188: =B187+J187*dt/2 -> 0.3705260498 | C188: =C187+K187*dt/2 -> -0.04518571394 | D188: =D187+B188*dt/2 -> -0.01750627509 | E188: =E187+C188*dt/2 -> -0.09006365618 | F188: -0.09006365618 | H188: 0.09174928791 | I188: 2.257466717 | J188: 0.4280968875 | K188: 2.216503786 | L188: 0.06903866032 | N188: =N187+V187*dt/2 -> -0.7433022579 | O188: =O187+W187*dt/2 -> 0.08805115933 | P188: =P187+N188*dt/2 -> 0.03463303363 | Q188: =Q187+O188*dt/2 -> 0.1798915305 | R188: 0.1798915305 | T188: 0.1831950047 | U188: 4.528642746 | V188: -0.8587935536 | W188: -4.446468121 | X188: 0.1383820595 | Z188: 0.2749441949 | AA188: 0.05213930872 | AB188: 0.2699551866 | AC188: 0.09244419489 | AE188: -0.0001616161616 | AF188: -0.0002603819689 | AG188: 0.01734465893 | AH188: 0.08980327421 | AI188: 0.09146291736 | AJ188: -0.03479464979 | AK188: -0.1801519124 | AL188: 0.1834812775 | AN188: 0.1034057429 | AO188: 0.3108264628 | AQ188: 0.02492087339 | AR188: 79.06845949 | AS188: 232.939506 | AT188: 5.805055937
A189: 0.3033333333 | B189: =B187+J188*dt -> 0.3712133971 | C189: =C187+K188*dt -> -0.04149221936 | D189: =D187+B188*dt -> -0.01688873167 | E189: =E187+C188*dt -> -0.0901389657 | F189: -0.0901389657 | H189: 0.09170748276 | I189: 2.254348862 | J189: 0.4124761605 | K189: 2.216292446 | L189: 0.06913265077 | N189: =N187+V188*dt -> -0.7446811266 | O189: =O187+W188*dt -> 0.08064174004 | P189: =P187+N188*dt -> 0.03339419653 | Q189: =Q187+O188*dt -> 0.1800382824 | R189: 0.1800382824 | T189: 0.1831091355 | U189: 4.522388101 | V189: -0.8274572369 | W189: -4.446044158 | X189: 0.1385801084 | Z189: 0.2748165174 | AA189: 0.0502829282 | AB189: 0.2701772481 | AC189: 0.09231651743 | AE189: -0.0001616161616 | AF189: -0.0002618205433 | AG189: 0.01672711551 | AH189: 0.08987714516 | AI189: 0.09142044418 | AJ189: -0.03355581269 | AK189: -0.1803001029 | AL189: 0.1833960732 | AN189: 0.1031203066 | AO189: 0.3108330658 | AQ189: 0.02489773346 | AR189: 79.45725109 | AS189: 233.1613224 | AT189: 5.805188458
A190: 0.305 | B190: =B189+J189*dt/2 -> 0.3719008574 | C190: =C189+K189*dt/2 -> -0.03779839861 | D190: =D189+B190*dt/2 -> -0.01626889691 | E190: =E189+C190*dt/2 -> -0.09020196303 | F190: -0.09020196303 | H190: 0.09165735727 | I190: 2.25062099 | J190: 0.3967551563 | K190: 2.215373599 | L190: 0.06924065797 | N190: =N189+V189*dt/2 -> -0.746060222 | O190: =O189+W189*dt/2 -> 0.07323166645 | P190: =P189+N190*dt/2 -> 0.03215076283 | Q190: =Q189+O190*dt/2 -> 0.1801603352 | R190: 0.1801603352 | T190: 0.1830066062 | U190: 4.514909718 | V190: -0.7959197568 | W190: -4.444200885 | X190: 0.1388062767 | Z190: 0.2746638595 | AA190: 0.04841965974 | AB190: 0.2703622982 | AC190: 0.09216385954 | AE190: -0.0001616161616 | AF190: -0.0002632591177 | AG190: 0.01610728075 | AH190: 0.08993870391 | AI190: 0.09136966102 | AJ190: -0.03231237899 | AK190: -0.1804235943 | AL190: 0.1832941985 | AN190: 0.1027795418 | AO190: 0.3108264765 | AQ190: 0.02487008025 | AR190: 79.84643946 | AS190: 233.3939905 | AT190: 5.804527274
A191: 0.3066666667 | B191: =B189+J190*dt -> 0.3725359143 | C191: =C189+K190*dt -> -0.03410764069 | D191: =D189+B190*dt -> -0.01564906215 | E191: =E189+C190*dt -> -0.09026496036 | F191: -0.09026496036 | H191: 0.09161144151 | I191: 2.247202923 | J191: 0.3811022028 | K191: 2.214651685 | L191: 0.06934341077 | N191: =N189+V190*dt -> -0.7473341924 | O191: =O189+W190*dt -> 0.06582773709 | P191: =P189+N190*dt -> 0.03090732912 | Q191: =Q189+O190*dt -> 0.1802823879 | R191: 0.1802823879 | T191: 0.182912554 | U191: 4.508052827 | V191: -0.7645187914 | W191: -4.442752673 | X191: 0.1390218965 | Z191: 0.2745238883 | AA191: 0.04655639127 | AB191: 0.2705473483 | AC191: 0.09202388829 | AE191: -0.0001616161616 | AF191: -0.0002646976921 | AG191: 0.01548744599 | AH191: 0.09000026267 | AI191: 0.09132309819 | AJ191: -0.03106894529 | AK191: -0.1805470856 | AL191: 0.1832007901 | AN191: 0.1024675918 | AO191: 0.310832899 | AQ191: 0.02484473866 | AR191: 80.23604269 | AS191: 233.6374808 | AT191: 5.804662153
A192: 0.3083333333 | B192: =B191+J191*dt/2 -> 0.3731710846 | C192: =C191+K191*dt/2 -> -0.03041655455 | D192: =D191+B192*dt/2 -> -0.01502711034 | E192: =E191+C192*dt/2 -> -0.09031565462 | F192: -0.09031565462 | H192: 0.09155725812 | I192: 2.243178744 | J192: 0.3653619974 | K192: 2.213224229 | L192: 0.06946009438 | N192: =N191+V191*dt/2 -> -0.7486083904 | O192: =O191+W191*dt/2 -> 0.05842314931 | P192: =P191+N192*dt/2 -> 0.02965964847 | Q192: =Q191+O192*dt/2 -> 0.1803797599 | R192: 0.1803797599 | T192: 0.1828019489 | U192: 4.499980031 | V192: -0.7329427924 | W192: -4.439889091 | X192: 0.1392654633 | Z192: 0.2743590965 | AA192: 0.04468675881 | AB192: 0.2706954145 | AC192: 0.0918590965 | AE192: -0.0001616161616 | AF192: -0.0002661362665 | AG192: 0.01486549418 | AH192: 0.09004951835 | AI192: 0.09126827857 | AJ192: -0.02982126464 | AK192: -0.1806458961 | AL192: 0.1830908179 | AN192: 0.1021009327 | AO192: 0.3108264903 | AQ192: 0.0248149199 | AR192: 80.62607865 | AS192: 233.8917574 | AT192: 5.804005227
A193: 0.31 | B193: =B191+J192*dt -> 0.3737537876 | C193: =C191+K192*dt -> -0.0267302266 | D193: =D191+B192*dt -> -0.01440515853 | E193: =E191+C192*dt -> -0.09036634888 | F193: -0.09036634888 | H193: 0.09150729808 | I193: 2.239465404 | J193: 0.3496900567 | K193: 2.211995063 | L193: 0.06957137059 | N193: =N191+V192*dt -> -0.7497773351 | O193: =O191+W192*dt -> 0.05102810679 | P193: =P191+N192*dt -> 0.02841196782 | Q193: =Q191+O192*dt -> 0.1804771318 | R193: 0.1804771318 | T193: 0.1826998495 | U193: 4.4925308 | V193: -0.7015037372 | W193: -4.437423294 | X193: 0.1394981702 | Z193: 0.2742070337 | AA193: 0.04281712635 | AB193: 0.2708434807 | AC193: 0.09170703368 | AE193: -0.0001616161616 | AF193: -0.000267574841 | AG193: 0.01424354237 | AH193: 0.09009877403 | AI193: 0.09121769336 | AJ193: -0.02857358398 | AK193: -0.1807447066 | AL193: 0.1829893403 | AN193: 0.1017631783 | AO193: 0.3108327191 | AQ193: 0.02478742032 | AR193: 81.01656531 | AS193: 234.1567869 | AT193: 5.804142698
A194: 0.3116666667 | B194: =B193+J193*dt/2 -> 0.3743366044 | C194: =C193+K193*dt/2 -> -0.02304356816 | D194: =D193+B194*dt/2 -> -0.01378126419 | E194: =E193+C194*dt/2 -> -0.09040475482 | F194: -0.09040475482 | H194: 0.09144912759 | I194: 2.235150184 | J194: 0.3339438693 | K194: 2.210062858 | L194: 0.06969648466 | N194: =N193+V193*dt/2 -> -0.750946508 | O194: =O193+W193*dt/2 -> 0.0436324013 | P194: =P193+N194*dt/2 -> 0.02716039031 | Q194: =Q193+O194*dt/2 -> 0.1805498524 | R194: 0.1805498524 | T194: 0.1825813134 | U194: 4.483874154 | V194: -0.6699157378 | W194: -4.43354715 | X194: 0.1397586377 | Z194: 0.2740303236 | AA194: 0.0409416545 | AB194: 0.2709546073 | AC194: 0.09153032364 | AE194: -0.0001616161616 | AF194: -0.0002690134154 | AG194: 0.01361964803 | AH194: 0.09013574141 | AI194: 0.09115890901 | AJ194: -0.02732200647 | AK194: -0.1808188659 | AL194: 0.1828714146 | AN194: 0.1013713818 | AO194: 0.3108265041 | AQ194: 0.02475548259 | AR194: 81.40752041 | AS194: 234.4325297 | AT194: 5.803490407
A195: 0.3133333333 | B195: =B193+J194*dt -> 0.3748669338 | C195: =C193+K194*dt -> -0.0193633504 | D195: =D193+B194*dt -> -0.01315736985 | E195: =E193+C194*dt -> -0.09044316077 | F195: -0.09044316077 | H195: 0.09139519523 | I195: 2.231146922 | J195: 0.3182661212 | K195: 2.208330425 | L195: 0.069816028 | N195: =N193+V194*dt -> -0.7520103875 | O195: =O193+W194*dt -> 0.03624961629 | P195: =P193+N194*dt -> 0.0259088128 | Q195: =Q193+O194*dt -> 0.1806225731 | R195: 0.1806225731 | T195: 0.1824713142 | U195: 4.47584332 | V195: -0.6384650327 | W195: -4.430071763 | X195: 0.1400079134 | Z195: 0.2738663884 | AA195: 0.03906618265 | AB195: 0.2710657339 | AC195: 0.09136638843 | AE195: -0.0001616161616 | AF195: -0.0002704519898 | AG195: 0.01299575369 | AH195: 0.09017270878 | AI195: 0.09110437433 | AJ195: -0.02607042896 | AK195: -0.1808930251 | AL195: 0.1827620141 | AN195: 0.1010085849 | AO195: 0.3108325263 | AQ195: 0.02472587214 | AR195: 81.79896181 | AS195: 234.7189485 | AT195: 5.803630707
A196: 0.315 | B196: =B195+J195*dt/2 -> 0.3753973774 | C196: =C195+K195*dt/2 -> -0.0156827997 | D196: =D195+B196*dt/2 -> -0.01253170755 | E196: =E195+C196*dt/2 -> -0.09046929877 | F196: -0.09046929877 | H196: 0.09133311401 | I196: 2.226546337 | J196: 0.3025270936 | K196: 2.205897991 | L196: 0.06994930944 | N196: =N195+V195*dt/2 -> -0.7530744959 | O196: =O195+W195*dt/2 -> 0.02886616335 | P196: =P195+N196*dt/2 -> 0.02465368864 | Q196: =Q195+O196*dt/2 -> 0.1806706834 | R196: 0.1806706834 | T196: 0.1823450032 | U196: 4.46661421 | V196: -0.6068913963 | W196: -4.425192124 | X196: 0.1402847496 | Z196: 0.2736779926 | AA196: 0.03718539619 | AB196: 0.2711399822 | AC196: 0.09117799256 | AE196: -0.0001616161616 | AF196: -0.0002718905642 | AG196: 0.01237009139 | AH196: 0.0901974082 | AI196: 0.09104170258 | AJ196: -0.0248153048 | AK196: -0.1809425739 | AL196: 0.18263629 | AN196: 0.1005924586 | AO196: 0.3108265176 | AQ196: 0.02469186541 | AR196: 82.19090708 | AS196: 235.0159995 | AT196: 5.802983429
A197: 0.3166666667 | B197: =B195+J196*dt -> 0.3758753575 | C197: =C195+K196*dt -> -0.0120103571 | D197: =D195+B196*dt -> -0.01190604526 | E197: =E195+C196*dt -> -0.09049543677 | F197: -0.09049543677 | H197: 0.09127528685 | I197: 2.222258917 | J197: 0.2868566337 | K197: 2.203666936 | L197: 0.07007684712 | N197: =N195+V196*dt -> -0.7540333588 | O197: =O195+W196*dt -> 0.02149897587 | P197: =P195+N196*dt -> 0.02339856448 | Q197: =Q195+O196*dt -> 0.1807187937 | R197: 0.1807187937 | T197: 0.1822272625 | U197: 4.458013333 | V197: -0.5754553118 | W197: -4.420716465 | X197: 0.1405500425 | Z197: 0.2735024209 | AA197: 0.03530460974 | AB197: 0.2712142304 | AC197: 0.09100242093 | AE197: -0.0001616161616 | AF197: -0.0002733291386 | AG197: 0.0117444291 | AH197: 0.09022210763 | AI197: 0.09098329693 | AJ197: -0.02356018064 | AK197: -0.1809921228 | AL197: 0.182519124 | AN197: 0.1002054314 | AO197: 0.3108323211 | AQ197: 0.02466019461 | AR197: 82.58337395 | AS197: 235.3236415 | AT197: 5.803126796
A198: 0.3183333333 | B198: =B197+J197*dt/2 -> 0.3763534519 | C198: =C197+K197*dt/2 -> -0.008337578872 | D198: =D197+B198*dt/2 -> -0.01127878951 | E198: =E197+C198*dt/2 -> -0.09050933273 | F198: -0.09050933273 | H198: 0.09120937674 | I198: 2.217379047 | J198: 0.2711378056 | K198: 2.20073945 | L198: 0.07021801652 | N198: =N197+V197*dt/2 -> -0.754992451 | O198: =O197+W197*dt/2 -> 0.0141311151 | P198: =P197+N198*dt/2 -> 0.02214024373 | Q198: =Q197+O198*dt/2 -> 0.1807423455 | R198: 0.1807423455 | T198: 0.1820933438 | U198: 4.448223958 | V198: -0.5439221971 | W198: -4.414843715 | X198: 0.1408426825 | Z198: 0.2733025882 | AA198: 0.03341903323 | AB198: 0.2712516782 | AC198: 0.09080258823 | AE198: -0.0001616161616 | AF198: -0.000274767713 | AG198: 0.01111717334 | AH198: 0.09023456502 | AI198: 0.0909168206 | AJ198: -0.02230185989 | AK198: -0.1810171132 | AL198: 0.1823857676 | AN198: 0.09976583136 | AO198: 0.3108265304 | AQ198: 0.02462417216 | AR198: 82.97637983 | AS198: 235.6418266 | AT198: 5.802484906
A199: 0.32 | B199: =B197+J198*dt -> 0.3767791502 | C199: =C197+K198*dt -> -0.004674558932 | D199: =D197+B198*dt -> -0.01065153375 | E199: =E197+C198*dt -> -0.0905232287 | F199: -0.0905232287 | H199: 0.0911477378 | I199: 2.212813634 | J199: =k*$AC199*$AA199/$Z199/MA -> 0.2554876199 | K199: =k*$AC199*$AB199/$Z199/MA -> 2.198015071 | L199: 0.07035326004 | N199: =N197+V198*dt -> -0.7558464328 | O199: =O197+W198*dt -> 0.006782830159 | P199: =P197+N198*dt -> 0.02088192297 | Q199: =Q197+O198*dt -> 0.1807658974 | R199: 0.1807658974 | T199: 0.1819680311 | U199: 4.439065407 | V199: =-k*$AC199*$AA199/$Z199/MB -> -0.5125267841 | W199: =-k*$AC199*$AB199/$Z199/MB -> -4.409378412 | X199: 0.1411234097 | Z199: 0.2731156327 | AA199: 0.03153345673 | AB199: 0.2712891261 | AC199: =Z199-L-CA-CB -> 0.09061563269 | AE199: -0.0001616161616 | AF199: -0.0002762062874 | AG199: 0.01048991759 | AH199: 0.09024702241 | AI199: 0.09085462798 | AJ199: -0.02104353914 | AK199: -0.1810421037 | AL199: 0.1822610047 | AN199: =0.5*k*(Z199-L-CA-CB)^2 -> 0.09935543394 | AO199: 0.3108321037 | AQ199: =MA*(AG199*AG199+AH199*AH199)+MB*(AJ199*AJ199+AK199*AK199) -> 0.02459049483 | AR199: 83.36994231 | AS199: 235.9705089 | AT199: 5.80263158
A200: =A199+dt/2 -> 0.3216666667 | B200: =B199+J199*dt/2 -> 0.3772049629 | C200: =C199+K199*dt/2 -> -0.00101120048 | D200: =D199+B200*dt/2 -> -0.01002285881 | E200: =E199+C200*dt/2 -> -0.09052491403 | F200: =IF($AC200<0,NA(),$E200) -> -0.09052491403 | G200: =IF($AC200>=0,NA(),$E200) ->  | H200: 0.09107808605 | I200: 2.207660958 | J200: 0.2398019035 | K200: 2.194598358 | L200: 0.07050202254 | N200: =N199+V199*dt/2 -> -0.7567006441 | O200: =O199+W199*dt/2 -> -0.0005661338611 | P200: =P199+N200*dt/2 -> 0.01962075523 | Q200: =Q199+O200*dt/2 -> 0.1807649538 | R200: =IF($AC200<0,NA(),$Q200) -> 0.1807649538 | S200: =IF($AC200>=0,NA(),$Q200) ->  | T200: 0.1818266828 | U200: 4.428728764 | V200: -0.4810600939 | W200: -4.402524236 | X200: 0.1414312578 | Z200: 0.2729046285 | AA200: 0.02964361405 | AB200: 0.2712898678 | AC200: 0.09040462849 | AE200: -0.0001616161616 | AF200: -0.0002776448619 | AG200: =AE200-D200 -> 0.009861242653 | AH200: =AF200-E200 -> 0.09024726917 | AI200: =SQRT(AG200*AG200+AH200*AH200) -> 0.09078443534 | AJ200: =AE200-P200 -> -0.01978237139 | AK200: =AF200-Q200 -> -0.1810425987 | AL200: =SQRT(AJ200*AJ200+AK200*AK200) -> 0.1821201932 | AN200: 0.09889326192 | AO200: 0.3108265422 | AQ200: 0.02455251316 | AR200: 83.76407862 | AS200: 236.3096363 | AT200: 5.801995456
A201: 0.3233333333 | B201: =B199+J200*dt -> 0.3775784898 | C201: =C199+K200*dt -> 0.002640768928 | D201: =D199+B200*dt -> -0.009394183876 | E201: =E199+C200*dt -> -0.09052659937 | F201: -0.09052659937 | H201: 0.09101272375 | I201: 2.202824117 | J201: 0.2241848432 | K201: 2.191386604 | L201: 0.07064466863 | N201: =N199+V200*dt -> -0.7574499665 | O201: =O199+W200*dt -> -0.007892250629 | P201: =P199+N200*dt -> 0.01835958749 | Q201: =Q199+O200*dt -> 0.1807640103 | R201: 0.1807640103 | T201: 0.1816939786 | U201: 4.419025709 | V201: -0.4497311328 | W201: -4.396081223 | X201: 0.1417268066 | Z201: 0.2727065579 | AA201: 0.02775377137 | AB201: 0.2712906096 | AC201: 0.09020655786 | AE201: -0.0001616161616 | AF201: -0.0002790834363 | AG201: 0.009232567715 | AH201: 0.09024751593 | AI201: 0.09071854517 | AJ201: -0.01852120365 | AK201: -0.1810430937 | AL201: 0.1819880127 | AN201: 0.09846039927 | AO201: 0.3108318745 | AQ201: 0.02451688631 | AR201: 84.15880617 | AS201: =IF(ABS((AR201-AR199)/dt)<1000,(AR201-AR199)/dt,AS200) -> 236.6591584 | AT201: 5.80214568
... 1606 more rows

Sheet Notes
B19: to do:
A20: DONE | B20: increase # rows so 30 fps * 30 sec = 900 rows
A21: DONE | B21: study E; if conserved better than 1%, no need to shorten dt
A22: DONE | B22: determine when spring is compressed and thus in danger of buckling
A23: DONE | B23: be more sophisticated with the numerical integration (see 2)
A24: DONE | B24: plot L and angular velocity (around cm,or mass A?)
A25: 3 | B25: model spring damping?
A26: 2 | B26: include spring mass correction
A27: DONE | B27: highlight one timestep;animate
